{"text_format":"1","workbook":"xlsx","n_sheets":26,"sheets":["Dane Wnioskodawcy","Lokalizacja projektu","Rachunek bankowy","Zaliczki","Podatek VAT","Rozpoczęcie projektu","Trwałość","Zasady horyzontalne","Środowisko","Paliwa kopalne","Wykonalność","Specyfikacja kosztów","Inwestycja początkowa","Własność intelektualna","RSI","Potencjał","Formularz pomocy innej","Formularz pomocy de minimis","Pomoc de minimis","Kumulacja pomocy","Tajemnica przedsiębiorstwa","Oświadczenia","Słownik 2.7","słownik RIS","słownik koszty 1.3","Słownik"],"not_rendered":{"charts":0,"images":6,"macros":1,"external_links":0,"defined_names":29,"comments":2,"pivot_tables":0},"unopened":[],"bounds":{"document_bytes":16777216,"sheet_cells":100000,"rows_first":2000,"rows_last":500,"rows_between":2000,"halvings":0,"cell_chars":16384,"cell_head_chars":4096},"cells_cut":0,"cells_raw":0,"read":"whole","date_system":"1900"}

{"sheet":"Dane Wnioskodawcy","index":0,"n_rows":29,"n_cols":2,"rows_kept":29,"cut":false,"hidden":false,"merged":[]}
["Opis pola","Dane do wypełnienia"]
["Nazwa Wnioskodawcy"]
["NIP"]
["Numer naboru","FELU.01.03-IP.01-001/25"]
["Nazwa Działania","Badania i innowacje w sektorze przedsiębiorstw "]
["Data sporządzania dokumentu"]
["Lp.","Niniejszy dokument składa się z następujących zakładek/arkuszy (kliknij aby przejść do zakładki):"]
["1.","Lokalizacja projektu"]
["2.","Rachunek bankowy"]
["3.","Zaliczki"]
["4.","Podatek VAT"]
["5.","Rozpoczęcie projektu"]
["6.","Trwałość"]
["7.","Zasady horyzontalne"]
["8.","Środowisko "]
["9.","Paliwa kopalne"]
["10.","Wykonalność"]
["11.","Specyfikacja kosztów"]
["12.","Inwestycja początkowa"]
["13.","Własność intelektualna"]
["14.","RSI"]
["15.","Potencjał"]
["16.","Formularz informacji przedstawianych przy ubieganiu się o pomoc inną niż pomoc w rolnictwie lub rybołówstwie, pomoc de minimis lub pomoc de minimis w rolnictwie lub rybołówstwie "]
["17.","Formularz informacji przedstawianych przy ubieganiu się o pomoc de minimis "]
["18.","Pomoc de minimis"]
["19.","Kumulacja pomocy"]
["20.","Tajemnica przedsiębiorstwa"]
["21.","Oświadczenia"]
[null,"Klauzula informacyjna Lubelskiej Agencji Wspierania Przedsiębiorczości w Lublinie (LAWP):Zgodnie z art. 47 ust. 1 pkt 2) ustawy z dnia 28 kwietnia 2022 r. o zasadach realizacji zadań finansowanych ze środków europejskich  w perspektywie finansowej 2021–2027 (ustawa wdrożeniowa) LAWP informuje, iż może wymagać od wnioskodawców oświadczeń na potwierdzenie faktów lub stanu prawnego, niezbędnych do oceny projektu lub objęcia go dofinansowanie.\nPonadto, zgodnie z art. 47 ust. 2 ustawy wdrożeniowej, oświadczenia o których mowa powyżej, są składane pod rygorem odpowiedzialności karnej za składanie fałszywych oświadczeń."]

{"sheet":"Lokalizacja projektu","index":1,"n_rows":7,"n_cols":11,"rows_kept":7,"cut":false,"hidden":false,"merged":[[0,0,0,10]]}
["Miejsce realizacji projektu\nW tabeli poniżej należy wskazać miejsca, gdzie będzie realizowany projekt. W przypadku gdy projekt posiada wiele lokalizacji, należy wskazać wszystkie miejsca lokalizacji projektu. Przez pojęcie lokalizacji projektu należy rozumieć miejsce lub miejsca na obszarze województwa lubelskiego, bezpośrednio związane z jego realizacją."]
["Lp.","Województwo","Powiat","Gmina","Miejscowość","Kod pocztowy","Ulica","Numer budynku","Numer lokalu ","Numer księgi wieczystej nieruchomości, na której zlokalizowany jest projekt","Numer działki"]
[null,"W polu poniżej należy podać nazwę województwa w którym będzie zlokalizowany projekt","W polu poniżej należy wskazać powiat","W polu poniżej należy wskazać gminę","W polu poniżej należy wskazać miejscowość","W polu poniżej należy wskazać kod pocztowy miejscowości ","W polu poniżej należy wskazać ulicę","W polu poniżej należy wskazać numer budynku","W polu poniżej należy wskazać numer lokalu","W polu poniżej należy podać numer księgi wieczystej w następującym formacie XXXX/XXXXXXXX/X. Jeżeli jedna nieruchomość będąca lokalizacją projektu objęta jest więcej niż jedną księgą wieczystą należy wymienić wszystkie numery ksiąg dotyczące realizowanej inwestycji, czytelnie oddzielając je od siebie.","W polu poniżej należy podać numer działki, na której zlokalizowana jest nieruchomość lub na której będzie realizowana inwestycja, jeżeli działka jest niezabudowana. Jeżeli jedna nieruchomość będąca lokalizacją znajduje się na kilku działkach lub inwestycja jest realizowana na kilku działkach niezabudowanych należy wymienić wszystkie numery działek, czytelnie oddzielając je od siebie."]
[1,"Lubelskie"]
[2,"Lubelskie"]
[3,"Lubelskie"]
[4,"Lubelskie"]

{"sheet":"Rachunek bankowy","index":2,"n_rows":2,"n_cols":1,"rows_kept":2,"cut":false,"hidden":false,"merged":[]}
["Rachunek bankowy"]
["W wierszu poniżej należy wskazać numer rachunku bankowego, na który LAWP będzie przekazywać płatności w formie refundacji. Jeżeli na dzień składania wniosku, wnioskodawca nie dysponuje wyodrębnionym rachunkiem bankowym, wówczas istnieje możliwość wskazania numeru rachunku bankowego przed podpisaniem umowy o dofinansowanie (w takim przypadku należy pole poniżej pozostawić puste)."]

{"sheet":"Zaliczki","index":3,"n_rows":4,"n_cols":1,"rows_kept":4,"cut":false,"hidden":false,"merged":[]}
["Deklaracja korzystania z płatności zaliczkowych"]
["W wierszu poniżej należy wskazać czy wnioskodawca zamierza finansować realizację projektu w formie zaliczki, wybierając TAK/NIE."]
[]
["Jeżeli wnioskodawca zamierza finansować projekt w formie zaliczki, należy wskazać w wierszu poniżej wyodrębniony numer rachunku bankowego. Jeżeli na dzień składania wniosku, wnioskodawca nie dysponuje wyodrębnionym rachunkiem bankowym do celów zaliczkowych, wówczas istnieje możliwość wskazania numeru rachunku bankowego przed podpisaniem umowy o dofinansowaniem (w takim przypadku należy pole poniżej pozostawić puste)."]

{"sheet":"Podatek VAT","index":4,"n_rows":4,"n_cols":1,"rows_kept":4,"cut":false,"hidden":false,"merged":[]}
["Kwalifikowalność podatku VAT"]
["W poniższym polu należy wskazać, czy wnioskodawca ma możliwość odzyskania VAT. Jeżeli wnioskodawca ma zgodnie z obowiązującymi przepisami prawa możliwość odzyskania podatku VAT tj. obniżenia kwoty podatku należnego o kwotę podatku naliczonego lub ubiegania się o zwrot VAT wówczas należy wybrać TAK, a podatek VAT stanowi w takim przypadku koszty niekwalifikowalne projektu (UWAGA! Dla uznania podatku VAT za niekwalifikowalny wystarczające jest posiadanie prawa, tj. potencjalnej możliwości prawnej, do ubiegania się o zwrot VAT, nawet jeśli faktycznie zwrot nie nastąpi np. ze względu na niepodjęcie czynności zmierzających do realizacji tego prawa).\nJeżeli wnioskodawca zgodnie z obowiązującymi przepisami prawa nie ma możliwości odzyskania podatku VAT, tj. obniżenia kwoty podatku należnego o kwotę podatku naliczonego lub ubiegania się o zwrot VAT wówczas, należy wybrać opcję \"NIE\"."]
[]
["W przypadku wybrania opcji NIE w wierszu poniżej należy wskazać podstawy prawne oraz opisać, z czego wynika brak możliwości odzyskania VAT i/lub brak możliwości ubiegania się o zwrot VAT."]

{"sheet":"Rozpoczęcie projektu","index":5,"n_rows":4,"n_cols":1,"rows_kept":4,"cut":false,"hidden":false,"merged":[]}
["Rozpoczęcie projektu"]
["W wierszu poniżej należy wskazać czy wnioskodawca przed dniem złożenia wniosku o dofinansowanie podejmował czynności związane lub służące rozpoczęciu realizacji projektu."]
[]
["Jeżeli w pytaniu powyżej wybrano opcję TAK, w wierszu poniżej należy opisać jakie działania w związku z rozpoczęciem realizacji projektu zostały podjęte przez wnioskodawcę (np. prace przygotowawcze, uzyskanie niezbędnych zezwoleń, decyzji, opracowanie niezbędnych do wdrożenia projektu dokumentów itp.). Jeżeli wnioskodawca podejmował działania związane z realizacją przedmiotowego projektu, dla każdego z tych działań należy wskazać daty ich przeprowadzenia oraz wskazać czy działania zostały ukończone i jakie są ich ewentualne efekty. Jeżeli wnioskodawca rozpoczął realizację projektu i Regulamin wyboru projektów dopuszcza taką możliwość, należy jednoznacznie wskazać czy projekt realizowany był dotychczas zgodnie z prawem krajowym i unijnym oraz nie został fizycznie ukończony lub w pełni wdrożony przed przedłożeniem wniosku o dofinansowanie w ramach naboru, niezależnie od tego, czy dokonano wszystkich powiązanych płatności\nJeżeli wybrano opcję NIE wiersz poniżej może pozostać niewypełniony."]

{"sheet":"Trwałość","index":6,"n_rows":2,"n_cols":1,"rows_kept":2,"cut":false,"hidden":false,"merged":[]}
["Zachowanie trwałości projektu"]
["W wierszu poniżej należy opisać warunki zachowania trwałości projektu w odniesieniu do art. 65 Rozporządzenia Parlamentu Europejskiego i Rady (UE) nr 2021/1060, w tym złożyć deklarację że trwałość zostanie zachowana przez wymagany okres, w zależności od statusu przedsiębiorstwa. Wnioskodawca zobligowany jest do zachowania okresu trwałości, zgodnie z art. 65 Rozporządzenia ogólnego, tj. 5 lat od zakończenia realizacji projektu, natomiast w przypadku MŚP 3 lata od zakończenia realizacji projektu. Zgodnie z art. 65 trwałość operacji nie zostanie zachowana w przypadku: a) zaprzestania lub przeniesienia działalności produkcyjnej poza region na poziomie NUTS 2, w którym dana operacja otrzymała wsparcie; b) zmiany własności elementu infrastruktury, która daje przedsiębiorstwu lub podmiotowi publicznemu nienależną korzyść; c) istotnej zmiany wpływającej na charakter operacji, jej cele lub warunki wdrażania, mogącej doprowadzić do naruszenia pierwotnych celów operacji."]

{"sheet":"Zasady horyzontalne","index":7,"n_rows":15,"n_cols":1,"rows_kept":15,"cut":false,"hidden":false,"merged":[]}
["Zasady horyzontalne (na podstawie art. 9 ust. 1-4 Rozporządzenia Parlamentu Europejskiego i Rady (UE) 2021/1060 z dnia 24 czerwca 2021 r.)"]
["Zgodność z Kartą Praw Podstawowych Unii Europejskiej"]
["W wierszu poniżej należy opisać czy projekt jest zgodny z Kartą Praw Podstawowych Unii Europejskiej, w zakresie odnoszącym się do sposobu realizacji i zakresu projektu. Należy wskazać z jakimi aspektami Karty Praw Podstawowych projekt jest zgodny i w jaki sposób przejawia się ww. zgodność w projekcie. Zgodność projektu z Kartą Praw Podstawowych Unii Europejskiej należy rozumieć jako brak sprzeczności pomiędzy zapisami projektu a wymogami tego dokumentu lub stwierdzenie, że te wymagania są neutralne wobec zakresu i zawartości projektu. Zastosowanie mają Wytyczne Komisji Europejskiej dotyczące zapewnienia poszanowania Karty praw podstawowych Unii Europejskiej przy wdrażaniu europejskich funduszy strukturalnych i inwestycyjnych, w szczególności załącznik nr III."]
[]
["Zgodność z zasadą równości mężczyzn i kobiet"]
["W wierszu poniżej należy opisać czy projekt ma pozytywny wpływ na zasadę równości mężczyzn i kobiet. Należy wskazać w jaki sposób przejawia się ww. zgodność w projekcie. Przez zgodność z tą zasadą należy rozumieć, z jednej strony zaplanowanie takich działań w projekcie, które wpłyną na wyrównywanie szans danej płci będącej w gorszym położeniu (o ile takie nierówności zostały zdiagnozowane w projekcie), z drugiej strony zaś stworzenie takich mechanizmów, aby na żadnym etapie wdrażania projektu nie dochodziło do dyskryminacji i wykluczenia ze względu na płeć. Dopuszczalne jest także uznanie neutralności projektu w stosunku do zasady równości kobiet i mężczyzn. O neutralności można mówić jednak tylko wtedy, kiedy wnioskodawca uzasadni, dlaczego dany projekt nie jest w stanie zrealizować jakichkolwiek działań w zakresie spełnienia ww. zasady."]
[]
["Zgodność z zasadami dostępności dla osób z niepełnosprawnościami, w tym z koncepcją uniwersalnego projektowania "]
["W wierszu poniżej należy opisać czy projekt ma pozytywny bądź neutralny wpływ na realizację zasad dostępności dla osób z niepełnosprawnościami zgodnie z Wytycznymi dotyczącymi realizacji zasad równościowych w ramach funduszy unijnych na lata 2021-2027, w tym czy realizacja projektu uwzględnia działania zgodne z koncepcją uniwersalnego projektowania. Należy szczegółowo opisać, które rozwiązania zastosowane w projekcie mają pozytywny wpływ na realizację zasad dostępności i wyjaśnić dlaczego lub wskazać że projekt w tym zakresie jest neutralny i wyjaśnić dlaczego. Ponadto należy szczegółowo opisać w jakim zakresie w projekcie ma zastosowanie uniwersalne projektowanie i w jaki sposób przejawia się to w projekcie. W opisie należy się odwoływać do aspektów, które zostały szczegółowo opisane w Wytycznych dotyczących realizacji zasad równościowych w ramach funduszy unijnych na lata 2021-2027, w tym do standardów dostępności."]
[]
["Zgodność z Konwencją o Prawach Osób Niepełnosprawnych"]
["W wierszu poniżej należy opisać czy projekt jest zgodny z Konwencją o Prawach Osób Niepełnosprawnych, w zakresie odnoszącym się do sposobu realizacji, zakresu projektu i wnioskodawcy. Należy wskazać z jakimi aspektami Konwencji o Prawach Osób Niepełnosprawnych projekt jest zgodny i w jaki sposób przejawia się ww. zgodność w projekcie. Zgodność projektu z Konwencją o Prawach Osób Niepełnosprawnych należy rozumieć jako brak sprzeczności pomiędzy zapisami projektu a wymogami tego dokumentu lub stwierdzenie, że te wymagania są neutralne wobec zakresu i zawartości projektu."]
[]
["Zgodnośc z zasadami niedyskryminacji"]
["W wierszu poniżej należy opisać czy realizacja projektu nie będzie skutkować jakąkolwiek dyskryminacją ze względu na płeć, rasę lub pochodzenie etniczne, religię lub światopogląd, niepełnosprawność, wiek lub orientację seksualną. Należy wskazać w jaki sposób brak dyskryminacji przejawia się w projekcie."]

{"sheet":"Środowisko","index":8,"n_rows":67,"n_cols":1,"rows_kept":67,"cut":false,"hidden":false,"merged":[]}
["Sekcja I. Zgodność z zasadą „nie czyń poważnych szkód” (DNSH - Do No Significant Harm) "]
["Zasada \"nie czyń poważnych szkód\" DNSH wynika z art. 9 ust. 4 Rozporządzenia Parlamentu Europejskiego i Rady (UE) 2021/1060 z dnia 24 czerwca 2021 r. ustanawiającego wspólne przepisy dotyczące Europejskiego Funduszu Rozwoju Regionalnego, Europejskiego Funduszu Społecznego Plus, Funduszu Spójności, Funduszu na rzecz Sprawiedliwej Transformacji i Europejskiego Funduszu Morskiego, Rybackiego i Akwakultury, a także przepisy finansowe na potrzeby tych funduszy oraz na potrzeby Funduszu Azylu, Migracji i Integracji, Funduszu Bezpieczeństwa Wewnętrznego i Instrumentu Wsparcia Finansowego na rzecz Zarządzania Granicami i Polityki Wizowej). \nZasada DNSH dotyczy niewspierania ani nieprowadzenia działalności gospodarczej, która powoduje znaczące szkody dla któregokolwiek z celów środowiskowych określonych w art. 17 Rozporządzenia Parlamentu Europejskiego i Rady (UE) 2020/852 z dnia 18 czerwca 2020 r. w sprawie ustanowienia ram ułatwiających zrównoważone inwestycje, zmieniającego rozporządzenie (UE) 2019/2088 (Tekst mający znaczenie dla EOG), dalej rozporządzenie o taksonomii.\nProjekt podlega ocenie względem sześciu poniżej wskazanych celów środowiskowych. Należy wybrać odpowiedź TAK/NIE/NIE DOTYCZY w każdym z poniższych pytań oraz uzasadnić odpowiedź w polu opisowym, zgodnie z poniższymi instrukcjami. Aby można było uznać że projekt jest zgodny z zasadą DNSH nie może powodować znaczących szkód względem 6 celów środowiskowych wymienionych poniżej. Przy ocenie należy uwzględnić zarówno skutki środowiskowe samej działalności której dotyczy przedsięwzięcie, jak również wpływ, jaki na środowisko mają produkty dostarczane i usługi świadczone w ramach tej działalności przez cały cykl ich życia, szczególnie z uwzględnieniem wytwarzania, użytkowania i zakończenia cyklu życia tych produktów i usług."]
["Cel 1: Łagodzenie zmian klimatu: Czy projekt doprowadzi do znacznych emisji gazów cieplarnianych?"]
[]
["Zgodnie z art. 17 ust. 1 lit. a) rozporządzenia o taksonomii, jeżeli projekt prowadzi do znacznych emisji gazów cieplarnianych to wyrządza poważne szkody dla środowiska i jest niezgodny z zasadą DNSH. W przypadku wskazania odpowiedzi \"NIE\" należy opisać w poniższym polu, w jaki sposób realizacja projektu przyczynia się do realizacji celów polityki ochrony środowiska oraz w jaki sposób wpisuje się w cele klimatyczne określone w Strategii Europejski Zielony Ład, Prawie Klimatycznym, Pakiecie energetyczno - klimatycznym, Krajowym Planie na Rzecz Energii i Klimatu na lata 2021-2030, w cel dążenia do neutralności klimatycznej do roku 2050. W przypadku udzielania odpowiedzi TAK projekt nie może kwalifikować się do wsparcia."]
[]
["Cel 2: Adaptacja do zmian klimatu: Czy projekt doprowadzi do zwiększonego niekorzystnego wpływu obecnego i spodziewanego przyszłego klimatu na samo działanie lub na ludność, przyrodę lub aktywa?"]
[]
["Zgodnie z art. 17 ust. 1 lit. b) rozporządzenia o taksonomii, jeżeli działalność prowadzi do nasilenia niekorzystnych skutków obecnych i oczekiwanych, dla przyszłych warunków klimatycznych, wywieranych na tę działalność lub na ludzi, przyrodę lub aktywa to wpływa znacząco na środowisko i jest niezgodny z zasadą DNSH.\nW przypadku wskazania odpowiedzi \"NIE\" należy opisać w poniższym polu:\n- w jaki sposób uwzględniono zagrożenia związane ze zmianami klimatu (np. obciążenia śniegiem, wiatrem, różnicy temperatur i odziaływania np. fali upałów, zagrożenia powodziowego, suszy), \n- w jaki sposób uwzględniono kwestie dotyczące przystosowania się do zmian klimatu i ich łagodzenia oraz odporności na klęski żywiołowe,\n- czy w trakcie przygotowywania projektu przeprowadzono ocenę zagrożeń wynikających ze zmian klimatycznych lub kontrolę podatności (ocenę ryzyka związanego prognozowanymi zmianami klimat lub analizę podatności),\n- w jaki sposób projekt odnosi się do strategii krajowej lub regionalnej w zakresie przystosowania się do zmian klimatu,\n- czy projekt w połączeniu ze zmianami klimatu będzie miał jakikolwiek pozytywny lub negatywny wpływ na otoczenie,\n- czy zmiany klimatu wpłynęły na wybór lokalizacji projektu.\nW przypadku udzielania odpowiedzi \"TAK\" projekt nie może kwalifikować się do wsparcia."]
[]
["Cel 3: Zrównoważone wykorzystywanie i ochrona zasobów wodnych i morskich: Czy projekt obejmuje zmiany charakterystyki fizycznej lub chemicznej części wód powierzchniowych, wód gruntowych lub zmiany poziomu części wód podziemnych, które pogarszają stan jednolitej części wód lub uniemożliwiają osiągnięcie dobrego stanu wód w tym stanu wód morskich? "]
[]
["Cele dla osiągnięcia dobrego stanu ekologicznego i chemicznego wód powierzchniowych, jak również dobrego stanu chemicznego i ilościowego wód podziemnych wyznacza Dyrektywa 2000/60/WE Parlamentu Europejskiego i Rady z dnia 23 października 2000 r. ustanawiająca ramy wspólnotowego działania w dziedzinie polityki wodnej (Ramowa dyrektywa wodna). Osiągnięcie celów ww. Dyrektywy wspierane jest poprzez opracowanie niezbędnych dokumentów planistycznych, jakimi są Plany gospodarowania wodami na obszarach dorzeczy oraz Program wodnośrodowiskowy kraju, w tym w oparciu o Ustawę z dnia 20 lipca 2017 r. Prawo wodne. Zgodnie z art. 17 ust. 1 lit. c) rozporządzenia o taksonomii, jeżeli projekt będzie zagrażał dobremu stanowi lub dobremu potencjałowi ekologicznemu jednolitych części wód, w tym wód powierzchniowych i wód gruntowych lub dobremu stanowi środowiska wód morskich to wpływa znacząco na środowisko i jest niezgodny z zasadą DNSH. Dotyczy projektów infrastrukturalnych, które z racji swojego charakteru i zakresu mogą oddziaływać na określoną jednolitą część wód. W pozostałych przypadkach można uznać neutralny charakter projektu i wówczas należy wybrać opcję \"NIE DOTYCZY\".\nW przypadku projektów infrastrukturalnych, które z racji swojego charakteru i zakresu mogą oddziaływać na określoną jednolitą część wód i wskazania odpowiedzi \"NIE\", wnioskodawca będzie zobligowany na wezwanie LAWP do przedstawienia deklaracji zgodności właściwego organu w sprawach ocen wodnoprawnych, że projekt nie pogarsza stanu jednolitego części wód lub ich dobrego potencjału.\nW przypadku projektów infrastrukturalnych, które z racji swojego charakteru i zakresu mogą oddziaływać na określoną jednolitą część wód i wskazania odpowiedzi „TAK” (tj. inwestycji lub działań mogących wpłynąć na możliwość osiągnięcia celów środowiskowych, o których mowa w art. 56, art. 57, art. 59 oraz w art. 61 Prawa wodnego, dotyczy np. takich działań jak budowle piętrzące, falochrony, duży pobór wody), wnioskodawca będzie zobligowany na wezwanie LAWP do przedstawienia oceny wodnoprawnej, o której mowa w art. 430, art. 431 i art. 434 ust. 1 ustawy z dnia 20 lipca 2017 r. Prawo wodne, wydanej w drodze decyzji, przez organ właściwy w sprawach ocen wodnoprawnych, potwierdzającej zgodność inwestycji lub działań z celami środowiskowymi lub przedłożenia decyzji o środowiskowych uwarunkowaniach, w treści której znajdą się wnioski z przeprowadzonej analizy oddziaływania inwestycji na jednolite części wód (jeżeli taka decyzja została wydana)."]
[]
["Cel 4: Gospodarka o obiegu zamkniętym, w tym zapobieganie powstawaniu odpadów i recykling: Czy projekt prowadzi do znacznego zwiększenia wytwarzania, spalania lub unieszkodliwiania odpadów (z wyjątkiem spalania odpadów niebezpiecznych nienadających się do recyklingu) lub doprowadzi do znaczącej nieefektywności w zakresie bezpośredniego lub pośredniego korzystania z jakiegokolwiek zasobu naturalnego na dowolnym etapie jego cyklu życia, która nie zostanie ograniczona do minimum za pomocą odpowiednich środków lub długotrwałego składowania odpadów, prowadzącego do wyrządzenia poważnych i długoterminowych szkód dla środowiska?"]
[]
["Zgodnie z art. 17 ust. 1 lit. d) rozporządzenia o taksonomii, jeżeli projekt prowadzi do znacznego zwiększenia wytwarzania, spalania lub unieszkodliwiania odpadów (z wyjątkiem spalania odpadów niebezpiecznych nienadających się do recyklingu) lub doprowadzi do znaczącego braku efektywności w wykorzystywaniu materiałów lub w bezpośrednim lub pośrednim wykorzystywaniu zasobów naturalnych, takich jak nieodnawialne źródła energii, surowce, woda i grunty, na co najmniej jednym z etapów cyklu życia produktów, w tym pod względem trwałości produktów, a także możliwości ich naprawy, ulepszenia, ponownego użycia lub recyklingu lub długotrwałego składowania odpadów, prowadzącego do wyrządzenia poważnych i długoterminowych szkód dla środowiska to wpływa znacząco na środowisko i jest niezgodny z zasadą DNSH.\nW przypadku wybrania odpowiedzi \"NIE\" należy opisać, w jaki sposób realizacja projektu wpływa na zapobieganie powstawaniu odpadów oraz ich ponowne użycie i recykling, np. czy została uwzględniona hierarchia sposobów postępowania z odpadami (od zapobiegania powstawaniu odpadów, poprzez selektywne zbieranie, przygotowanie do ponownego użytku, recykling, inne procesy odzysku do unieszkodliwiania). W przypadku udzielania odpowiedzi \"TAK\" projekt nie może kwalifikować się do wsparcia."]
[]
["Cel 5: Zapobieganie zanieczyszczeniom powietrza, wody lub gleby i jego kontrola: Czy projekt doprowadzi do istotnego zwiększenia poziomu emisji zanieczyszczeń do powietrza, wody lub gleby?"]
[]
["Zgodnie z art. 17 ust. 1 lit. e) rozporządzenia o taksonomii, jeżeli projekt prowadzi do znaczącego wzrostu emisji zanieczyszczeń do powietrza, wody lub ziemi w porównaniu z sytuacją sprzed rozpoczęcia realizacji projektu to wpływa znacząco na środowisko i jest niezgodny z zasadą DNSH.\nW przypadku odpowiedzi \"NIE\" należy w polu opisowym wykazać aspekty projektu, które wpływają na brak zwiększenia poziomu emisji zanieczyszczeń, w tym np. działania dążące do poprawy jakości powietrza, wody lub gleby na obszarach, na których prowadzona jest dana działalność gospodarcza, przy jednoczesnym minimalizowaniu i zapobieganiu wszelkich niekorzystnych skutków lub zagrożeń dla zdrowia ludzi dla środowiska wynikających z produkcji, stosowania lub unieszkodliwiania chemikaliów lub minimalizowania takich niekorzystnych skutków. \nDodatkowo w przypadku, gdy działalność wnioskodawcy ma wpływ na środowisko należy dodatkowo opisać w jaki sposób w projekcie została uwzględniona zasada \"zanieczyszczający płaci\", według której sprawcy szkód w środowisku powinni ponosić pełne koszty tych działań, które są niezbędne dla usunięcia zanieczyszczenia lub koszty równoważnych działań umożliwiających osiągnięcie celów ochrony środowiska.\nW przypadku udzielania odpowiedzi \"TAK\" projekt nie może kwalifikować się do wsparcia."]
[]
["Cel 6: Ochrona i odbudowa bioróżnorodności i ekosystemów: Czy projekt  będzie w znacznym stopniu szkodliwy dla dobrego stanu i odporności ekosystemów lub będzie szkodliwy dla stanu zachowania siedlisk i gatunków w tym siedlisk i gatunków objętych zakresem zainteresowania Unii?"]
[]
["Zgodnie z art. 17 ust. 1 lit. f) rozporządzenia o taksonomii przedsięwzięcie, które będzie w znacznym stopniu szkodliwe dla dobrego stanu i odporności ekosystemów lub będzie szkodliwe dla stanu zachowania siedlisk i gatunków, w tym siedlisk i gatunków objętych zakresem zainteresowania Unii wpływa znacząco na środowisko i jest niezgodne z zasadą DNSH. W przypadku projektów, które nie obejmują robót budowlanych (nie zależnie czy wnioskodawca ponosi bezpośrednie nakłady na roboty czy ponosi je podmiot trzeci, a wnioskodawca nabywa wyłącznie środki trwałe, będący efektem tych robót) należy wybrać opcję \"NIE DOTYCZY\".\nW przypadku projektów, których realizacja wymaga przeprowadzenia robót budowlanych, gdy nie istniało lub nie istnieje prawdopodobieństwo, że projekt może znacząco oddziaływać na obszary Natura 2000, należy wybrać opcję \"NIE\". W takim przypadku wnioskodawca zobligowany jest do przedłożenia Deklaracji organu odpowiedzialnego za monitorowanie obszarów Natura2000.\nW przypadku projektów, których realizacja wymaga przeprowadzenia robót budowlanych, jeżeli wybrano odpowiedz \"TAK\" wnioskodawca będzie zobligowany na wezwanie LAWP do przedstawienia:\na) decyzji administracyjnej, w przypadku której prowadzi się postępowanie w sprawie oceny oddziaływania na obszar Natura 2000 (dla przedsięwzięć mogących wpływać na obszar Natura 2000);\nb) postanowienia RDOŚ uzgadniającego decyzję, w przypadku której prowadzi się postępowanie w sprawie oceny oddziaływania na obszar Natura 2000 (dla przedsięwzięć mogących wpływać na obszar Natura 2000);\nc) formularza „Informacja na temat projektów, które mogą wywierać istotny negatywny wpływ na obszary NATURA 2000, zgłoszone Komisji na mocy dyrektywy 92/43/EWG” wraz z niezbędnymi opiniami, jeżeli organ, który wydał zgodę na realizację przedsięwzięcia, stwierdził występowanie negatywnego oddziaływania na obszar Natura 2000."]
[]
["Sekcja II Stosowanie Dyrektywy OOŚ"]
["W poniższych polach należy wskazać czy projekt dotyczy rodzaju przedsięwzięcia objętego Załącznikiem I lub Załącznikiem II do Dyrektywy Parlamentu Europejskiego i Rady 2011/92/UE w sprawie oceny skutków wywieranych na niektóre przedsięwzięcia publiczne i prywatne na środowisko, dalej dyrektywa OOŚ oraz czy wzięto pod uwagę ocenę rozwiązań alternatywnych na podstawie wymogów dyrektywy OOŚ z uwzględnieniem Wytycznych w sprawie działań naprawczych w odniesieniu do projektów współfinansowanych w okresie programowania 2014-2020 oraz ubiegających się o współfinansowanie w okresie 2021-2027 z Funduszy UE, dotkniętych naruszeniem 2016/2046 w zakresie specustaw, dla których prowadzone jest postępowanie w sprawie oceny oddziaływania na środowisko (sygn. Ares(2021)1423319)."]
["Czy projekt objęty jest załącznikiem I do dyrektywy OOŚ?                                                                                                              "]
[]
["Czy projekt objęty jest załącznikiem II do dyrektywy OOŚ?"]
[]
["Czy przeprowadzono ocenę oddziaływania na środowisko?"]
[]
["Jeżeli powyżej wybrano, że projekt jest objęty I lub II aneksem dyrektywy OOŚ wnioskodawca zobligowany będzie na wezwanie LAWP do przedstawienia dokumentów potwierdzających przeprowadzenie procedury OOŚ."]
["Sekcja III Zgodność projektu z zasadami zrównoważonego rozwoju"]
["W poniższych polach należy udzielić odpowiedzi, czy projekt będzie realizowany zgodnie z zasadą zrównoważonego rozwoju, o której mowa w art. 9 ust. 4 Rozporządzenia Parlamentu Europejskiego i Rady 2021/1060 tj. cele Funduszy są realizowane zgodnie z celem wspierania zrównoważonego rozwoju, określonym w art. 11 TFUE, oraz z uwzględnieniem celów ONZ dotyczących zrównoważonego rozwoju, a także porozumienia paryskiego i zasady „nie czyń poważnych szkód” oraz ustawą z dnia 27 kwietnia 2001 r. Prawo ochrony środowiska, określającą zasady ochrony środowiska oraz warunki korzystania z jego zasobów. Należy wskazać, jakie działania zostaną podjęte w ramach projektu w celu spełnienia przynajmniej dwóch z niżej wskazanych zasad (6R) lub wskazać czy projekt wywiera pozytywny wpływ na inne aspekty środowiskowe, które nie są objęte poniższymi zasadami (6R). "]
["1. Czy w projekcie uwzględniono działania zgodne z zasadą zrównoważonego rozwoju - Refuse (odmów)? \nCelem tej zasady jest zmniejszenie ilości odpadów, zużycia surowców i emisji zanieczyszczeń poprzez unikanie produkcji i konsumpcji niepotrzebnych rzeczy oraz unikanie wszelkich działań, produktów i usług, które są nieodpowiednie lub szkodliwe dla środowiska. Zasada ta polegać może np. na rezygnacji z użycia materiałów i innych produktów, które nie nadają się do ponownego użycia.  "]
[]
["Jeżeli w pytaniu powyżej wybrano opcję TAK, w wierszu poniżej należy opisać jakie działania zostaną podjęte oraz w jaki sposób wnioskodawca będzie monitorował spełnienie założeń."]
[]
["2. Czy w projekcie uwzględniono działania zgodne z zasadą zrównoważonego rozwoju - Reduce (ogranicz)? \nCelem tej zasady jest zminimalizowanie negatywnego wpływu na środowisko i ograniczenie marnowania surowców. Zasada ta polegać może np. na zmniejszaniu zużycia zasobów, materiałów i substancji poprzez zastosowanie odpowiednich działań, np. technologicznych, poprzez wybór produktów i usług, które są bardziej wydajne i zużywają mniej surowców i energii, a także poprzez zmianę nawyków i stylów życia, które wprowadzają bardziej oszczędne i zrównoważone podejście do konsumpcji."]
[]
["Jeżeli w pytaniu powyżej wybrano opcję TAK, w wierszu poniżej należy opisać jakie działania zostaną podjęte oraz w jaki sposób wnioskodawca będzie monitorował spełnienie założeń."]
[]
["3. Czy w projekcie uwzględniono działania zgodne z zasadą zrównoważonego rozwoju - Reuse (użyj ponownie)? \nCelem tej zasady jest zwiększenie wydajności i zmniejszenie zużycia surowców, a także zmniejszenie ilości odpadów i zanieczyszczeń. Zasada ta polegać może np. ponownym użyciu produktów, ponownym wykorzystaniu opakowań, renowację i naprawianie produktów, a także stosowanie produktów wielokrotnego użytku, takich jak butelki na wodę i torby na zakupy."]
[]
["Jeżeli w pytaniu powyżej wybrano opcję TAK, w wierszu poniżej należy opisać jakie działania zostaną podjęte oraz w jaki sposób wnioskodawca będzie monitorował spełnienie założeń."]
[]
["4. Czy w projekcie uwzględniono działania zgodne z zasadą zrównoważonego rozwoju - Recover (napraw)? \nCelem tej zasady jest zmniejszenie ilości odpadów i zapotrzebowania na surowce pierwotne. Zasada ta polegać może np. na wprowadzaniu rozwiązań umożliwiających naprawę i ponowne użycie produktów, które można ponownie wykorzystać w procesie produkcji a także odzysk energii z biogazu, odpadów."]
[]
["Jeżeli w pytaniu powyżej wybrano opcję TAK, w wierszu poniżej należy opisać jakie działania zostaną podjęte oraz w jaki sposób wnioskodawca będzie monitorował spełnienie założeń.\nJeżeli wybrano opcję NIE wiersz poniżej może pozostać niewypełniony."]
[]
["5. Czy w projekcie uwzględniono działania zgodne z zasadą zrównoważonego rozwoju - Recycle (recyklinguj)? \nCelem tej zasady jest zmniejszenie ilości odpadów, które trafiają do składowisk, a także zmniejszenie zapotrzebowania na surowce pierwotne. Zasada ta polegać może np. na ponownym wykorzystaniu surowców i produktów, w celu zmniejszenia ich negatywnego wpływu na środowisko."]
[]
["Jeżeli w pytaniu powyżej wybrano opcję TAK, w wierszu poniżej należy opisać jakie działania zostaną podjęte oraz w jaki sposób wnioskodawca będzie monitorował spełnienie założeń."]
[]
["6. Czy w projekcie uwzględniono działania zgodne z zasadą zrównoważonego rozwoju - Rethink (ulepsz)? \nCelem tej zasady jest zmiana sposobu myślenia i działania, aby zapobiegać powstawaniu odpadów, poprzez zmianę projektów, produktów i procesów, tak aby były one bardziej efektywne i przyjazne dla środowiska. Zasada ta polegać może np. na zmniejszaniu zużycia zasobów, materiałów i substancji poprzez zastosowanie odpowiednich działań, np. technologicznych."]
[]
["Jeżeli w pytaniu powyżej wybrano opcję TAK, w wierszu poniżej należy opisać jakie działania zostaną podjęte oraz w jaki sposób wnioskodawca będzie monitorował spełnienie założeń."]
[]
["7. Czy w projekcie uwzględniono inne działania mające pozytywny wpływ na środowisko, nie wymienione wyżej?"]
[]
["Jeżeli w pytaniu powyżej wybrano opcję TAK, w wierszu poniżej należy opisać jakie działania zostaną podjęte oraz w jaki sposób wnioskodawca będzie monitorował spełnienie założeń."]
[]
["Sekcja IV Uodparnianie na zmiany klimatu inwestycji."]
["W przypadku inwestycji w infrastrukturę o przewidywanej trwałości wynoszącej co najmniej 5 lat, należy opisać w polu tekstowym poniżej, w jaki sposób wnioskodawca w ramach projektu zapewni uodparnianie na zmiany klimatu, co oznacza działania mające na celu zapobieganie podatności infrastruktury na potencjalne długoterminowe skutki zmian klimatu, przy jednoczesnym zapewnieniu przestrzegania zasady „efektywności energetycznej przede wszystkim” oraz zgodności poziomu emisji gazów cieplarnianych wynikających z projektu, z celem osiągnięcia neutralności klimatycznej w 2050 r. Jeżeli projekt nie dotyczy inwestycji w infrastrukturę o przewidywanej trwałości co najmniej 5 lat, należy w wierszu poniżej, wpisać \"nie dotyczy\"."]

{"sheet":"Paliwa kopalne","index":9,"n_rows":22,"n_cols":1,"rows_kept":22,"cut":false,"hidden":false,"merged":[]}
["Zakup urządzeń lub maszyn, które będą funkcjonować w oparciu o spalanie paliw kopalnych"]
["1. Czy zaplanowane w projekcie wydatki obejmują zakup nowych urządzeń lub maszyn, które będą funkcjonować w oparciu o spalanie paliw kopalnych? "]
[]
["Jeżeli w pytaniu powyżej wybrano opcję TAK, w wierszach poniżej należy wypełnić dalszą część zakładki. Dodatkowo w polu poniżej należy wymienić urządzenia lub maszyny, które będą funkcjonować w oparciu o spalanie paliw kopalnych (nazwy muszą być zgodne z nazwami maszyn/urządzeń w zakładce \"Specyfikacja kosztów\"). Jeżeli w polu powyżej wybrano opcję NIE wiersze poniżej należy pozostawić niewypełnione."]
[]
["2. Konieczność zakupu urządzeń lub maszyn zasilanych poprzez spalanie paliw kopalnych"]
["W wierszu poniżej należy opisać czy zakup urządzeń lub maszyn zasilanych poprzez spalanie paliw kopalnych jest niezbędny z punktu widzenia osiągnięcia celu inwestycji. Odpowiedź należy uzasadnić w polu poniżej, w odniesieniu do każdego urządzenia/maszyny zaplanowanego do zakupu w ramach projektu zasilanego paliwami kopalnymi."]
[]
["3. Zamiennik planowanej do nabycia maszyny/urządzenia, które będą funkcjonować w oparciu o spalanie paliw kopalnych"]
["W wierszu poniżej należy wyjaśnić czy planowana do nabycia maszyna/urządzenie, które będą funkcjonować w oparciu o spalanie paliw kopalnych, posiada zamiennik będący realną alternatywną technologią o niezbędnej funkcjonalności, parametrach. Jeżeli TAK, należy scharakteryzować alternatywne urządzenia. Jeżeli NIE, należy uzasadnić. Odpowiedzi należy udzielić w odniesieniu do każdego urządzenia/maszyny zaplanowanego do zakupu w ramach projektu zasilanego paliwami kopalnymi. "]
[]
["W punkcie poniżej należy opisać czy zamiennik wskazany w pkt. 3 jest dostępny w czasie umożliwiającym realizację projektu według założeń przyjętych przez wnioskodawcę. Dodatkowo jeżeli zamiennik jest dostępny w czasie umożliwiającym realizację projektu według założeń przyjętych przez wnioskodawcę, należy scharakteryzować alternatywne urządzenia. W przypadku gdy ww. zamiennik nie jest dostępny w czasie umożliwiającym realizację projektu według założeń przyjętych przez wnioskodawcę, należy uzasadnić. Odpowiedzi należy udzielić w odniesieniu do każdego urządzenia/maszyny zaplanowanego do zakupu w ramach projektu zasilanego paliwami kopalnymi posiadającego zamiennik który jest dostępny w czasie umożliwiającym realizację projektu według założeń przyjętych przez wnioskodawcę."]
["W wierszu poniżej należy opisać czy zamiennik wskazany w pkt. 3 gwarantuje ciągłość działania oraz stałą, porównywalną wydajność procesową pracy umożliwiającą osiągnięcie celu projektu w zakresie nie mniejszym niż z wykorzystaniem technologii opartych na spalaniu paliw kopalnych. W przypadku gdy zamiennik wskazany w pkt. 3 gwarantuje ciągłość działania oraz stałą, porównywalną wydajność procesową pracy umożliwiającą osiągnięcie celu projektu w zakresie nie mniejszym niż z wykorzystaniem technologii opartych na spalaniu paliw kopalnych w  polu poniżej, należy uzasadnić wybraną odpowiedź w odniesieniu do zamiennika każdej maszyny/urządzenia które będzie funkcjonować w oparciu o spalanie paliw kopalnych."]
[]
["4. Infrastruktura umożliwiająca szybkie ładowanie/tankowanie zamiennika."]
["W wierszu poniżej należy opisać czy infrastruktura umożliwiająca szybkie ładowanie/tankowanie zamiennika, o którym mowa w pkt 3 jest wymagana dla jego efektywnego wykorzystania i jest dostępna w miejscu realizacji inwestycji/wykorzystania. Należy uzasadnić wybraną odpowiedź w odniesieniu do zamiennika każdej maszyny/urządzenia, które będzie funkcjonować w oparciu o spalanie paliw kopalnych."]
[]
["5. Dodatkowe działania przy zakupie zamiennika."]
["W wierszu poniżej należy opisać czy zakup zamiennika, o którym mowa w pkt. 3 wymuszałby dodatkowe działania (np. związane z koniecznością dostosowania infrastruktury technicznej wnioskodawcy w celu zapewnienia jej kompatybilności z tym zamiennikiem). Należy uzasadnić w odniesieniu do zamiennika każdej maszyny/urządzenia, które będzie funkcjonować w oparciu o spalanie paliw kopalnych. "]
[]
["6. Koszt nabycia zamiennika, o którym mowa w pkt 3 i jego użytkowania / eksploatacji w okresie realizacji i trwałości projektu."]
["W wierszu ponizej należy opisać czy koszt nabycia zamiennika, o którym mowa w pkt 3 i jego użytkowania / eksploatacji w okresie realizacji i trwałości projektu przekroczy odpowiednie koszty maszyny/urządzenia zasilanego paliwem kopalnym. "]

{"sheet":"Wykonalność","index":10,"n_rows":3,"n_cols":1,"rows_kept":3,"cut":false,"hidden":false,"merged":[]}
["Wykonalność"]
["Decyzje administracyjne i uzgodnienia z właściwymi organami"]
["W wierszu poniżej należy wskazać czy realizacja projektu wymaga uzyskania decyzji administracyjnych i/lub innych uzgodnień z właściwymi organami lub opinii z właściwych organów (np. zgoda komisji bioetycznej, pozwolenie na budowę, dokonanie zgłoszenia robót budowalnych, opinie/decyzje dotyczące przeprowadzenia postepowania OOŚ, zgoda konserwatora zabytków itp.). Jeżeli realizacja projektu wymaga uzyskania decyzji administracyjnych i/lub innych uzgodnień lub opinii z właściwych organów, należy wskazać jakich oraz czy wnioskodawca już je pozyskał (jeśli tak to kiedy) czy dopiero planuje ich pozyskanie (jeśli tak to kiedy)."]

{"sheet":"Specyfikacja kosztów","index":11,"n_rows":35,"n_cols":14,"rows_kept":35,"cut":false,"hidden":false,"merged":[]}
["Specyfikacja kosztów z uwzględnieniem analizy rynku"]
["Uwaga: pola oznaczone kolorem żółtym są polami nieedytowalnymi."]
[null,"Instrukcja wypełniania arkusza (kliknij)"]
["Lp.","Nazwa kosztu","Nazwa zadania","Opis i uzasadnienie kosztów","Jednostka miary ","Ilość ","Analiza rynku ","Wartość netto zł","Stawka VAT %","Wartość ogółem zł","Wydatki kwalifikowalne zł","% poziom wsparcia","Dofinansowanie zł","Limity"]
[{"$f":"ROW()-4","v":1},null,null,null,null,null,null,null,null,{"$f":"IF(I5=\"ZW/ND\",H5,ROUNDDOWN($H5*(1+($I5/100)),2))","v":0},null,null,{"$f":"ROUNDDOWN((Specyfikacja_wnioskodawca[[#This Row],[Wydatki kwalifikowalne zł]]*Specyfikacja_wnioskodawca[[#This Row],[% poziom wsparcia]]/100),2)","v":0}]
[{"$f":"ROW()-4","v":2},null,null,null,null,null,null,null,null,0,null,null,{"$f":"ROUNDDOWN((Specyfikacja_wnioskodawca[[#This Row],[Wydatki kwalifikowalne zł]]*Specyfikacja_wnioskodawca[[#This Row],[% poziom wsparcia]]/100),2)","v":0}]
[{"$f":"ROW()-4","v":3},null,null,null,null,null,null,null,null,{"$f":"IF(I7=\"ZW/ND\",H7,ROUNDDOWN($H7*(1+($I7/100)),2))","v":0},null,null,{"$f":"ROUNDDOWN((Specyfikacja_wnioskodawca[[#This Row],[Wydatki kwalifikowalne zł]]*Specyfikacja_wnioskodawca[[#This Row],[% poziom wsparcia]]/100),2)","v":0}]
[{"$f":"ROW()-4","v":4},null,null,null,null,null,null,null,null,0,null,null,{"$f":"ROUNDDOWN((Specyfikacja_wnioskodawca[[#This Row],[Wydatki kwalifikowalne zł]]*Specyfikacja_wnioskodawca[[#This Row],[% poziom wsparcia]]/100),2)","v":0}]
[5,null,null,null,null,null,null,null,null,0,null,null,{"$f":"ROUNDDOWN((Specyfikacja_wnioskodawca[[#This Row],[Wydatki kwalifikowalne zł]]*Specyfikacja_wnioskodawca[[#This Row],[% poziom wsparcia]]/100),2)","v":0}]
[6,null,null,null,null,null,null,null,null,0,null,null,{"$f":"ROUNDDOWN((Specyfikacja_wnioskodawca[[#This Row],[Wydatki kwalifikowalne zł]]*Specyfikacja_wnioskodawca[[#This Row],[% poziom wsparcia]]/100),2)","v":0}]
[7,null,null,null,null,null,null,null,null,0,null,null,{"$f":"ROUNDDOWN((Specyfikacja_wnioskodawca[[#This Row],[Wydatki kwalifikowalne zł]]*Specyfikacja_wnioskodawca[[#This Row],[% poziom wsparcia]]/100),2)","v":0}]
[8,null,null,null,null,null,null,null,null,0,null,null,{"$f":"ROUNDDOWN((Specyfikacja_wnioskodawca[[#This Row],[Wydatki kwalifikowalne zł]]*Specyfikacja_wnioskodawca[[#This Row],[% poziom wsparcia]]/100),2)","v":0}]
[9,null,null,null,null,null,null,null,null,0,null,null,{"$f":"ROUNDDOWN((Specyfikacja_wnioskodawca[[#This Row],[Wydatki kwalifikowalne zł]]*Specyfikacja_wnioskodawca[[#This Row],[% poziom wsparcia]]/100),2)","v":0}]
[10,null,null,null,null,null,null,null,null,0,null,null,{"$f":"ROUNDDOWN((Specyfikacja_wnioskodawca[[#This Row],[Wydatki kwalifikowalne zł]]*Specyfikacja_wnioskodawca[[#This Row],[% poziom wsparcia]]/100),2)","v":0}]
[11,null,null,null,null,null,null,null,null,0,null,null,{"$f":"ROUNDDOWN((Specyfikacja_wnioskodawca[[#This Row],[Wydatki kwalifikowalne zł]]*Specyfikacja_wnioskodawca[[#This Row],[% poziom wsparcia]]/100),2)","v":0}]
[12,null,null,null,null,null,null,null,null,0,null,null,{"$f":"ROUNDDOWN((Specyfikacja_wnioskodawca[[#This Row],[Wydatki kwalifikowalne zł]]*Specyfikacja_wnioskodawca[[#This Row],[% poziom wsparcia]]/100),2)","v":0}]
[13,null,null,null,null,null,null,null,null,0,null,null,{"$f":"ROUNDDOWN((Specyfikacja_wnioskodawca[[#This Row],[Wydatki kwalifikowalne zł]]*Specyfikacja_wnioskodawca[[#This Row],[% poziom wsparcia]]/100),2)","v":0}]
[14,null,null,null,null,null,null,null,null,0,null,null,{"$f":"ROUNDDOWN((Specyfikacja_wnioskodawca[[#This Row],[Wydatki kwalifikowalne zł]]*Specyfikacja_wnioskodawca[[#This Row],[% poziom wsparcia]]/100),2)","v":0}]
[15,null,null,null,null,null,null,null,null,0,null,null,{"$f":"ROUNDDOWN((Specyfikacja_wnioskodawca[[#This Row],[Wydatki kwalifikowalne zł]]*Specyfikacja_wnioskodawca[[#This Row],[% poziom wsparcia]]/100),2)","v":0}]
[16,null,null,null,null,null,null,null,null,0,null,null,{"$f":"ROUNDDOWN((Specyfikacja_wnioskodawca[[#This Row],[Wydatki kwalifikowalne zł]]*Specyfikacja_wnioskodawca[[#This Row],[% poziom wsparcia]]/100),2)","v":0}]
[17,null,null,null,null,null,null,null,null,0,null,null,{"$f":"ROUNDDOWN((Specyfikacja_wnioskodawca[[#This Row],[Wydatki kwalifikowalne zł]]*Specyfikacja_wnioskodawca[[#This Row],[% poziom wsparcia]]/100),2)","v":0}]
[18,null,null,null,null,null,null,null,null,0,null,null,{"$f":"ROUNDDOWN((Specyfikacja_wnioskodawca[[#This Row],[Wydatki kwalifikowalne zł]]*Specyfikacja_wnioskodawca[[#This Row],[% poziom wsparcia]]/100),2)","v":0}]
[19,null,null,null,null,null,null,null,null,0,null,null,{"$f":"ROUNDDOWN((Specyfikacja_wnioskodawca[[#This Row],[Wydatki kwalifikowalne zł]]*Specyfikacja_wnioskodawca[[#This Row],[% poziom wsparcia]]/100),2)","v":0}]
[20,null,null,null,null,null,null,null,null,0,null,null,{"$f":"ROUNDDOWN((Specyfikacja_wnioskodawca[[#This Row],[Wydatki kwalifikowalne zł]]*Specyfikacja_wnioskodawca[[#This Row],[% poziom wsparcia]]/100),2)","v":0}]
[21,null,null,null,null,null,null,null,null,0,null,null,{"$f":"ROUNDDOWN((Specyfikacja_wnioskodawca[[#This Row],[Wydatki kwalifikowalne zł]]*Specyfikacja_wnioskodawca[[#This Row],[% poziom wsparcia]]/100),2)","v":0}]
[22,null,null,null,null,null,null,null,null,0,null,null,{"$f":"ROUNDDOWN((Specyfikacja_wnioskodawca[[#This Row],[Wydatki kwalifikowalne zł]]*Specyfikacja_wnioskodawca[[#This Row],[% poziom wsparcia]]/100),2)","v":0}]
[{"$f":"ROW()-4","v":23},null,null,null,null,null,null,null,null,{"$f":"IF(I27=\"ZW/ND\",H27,ROUNDDOWN($H27*(1+($I27/100)),2))","v":0},null,null,{"$f":"ROUNDDOWN((Specyfikacja_wnioskodawca[[#This Row],[Wydatki kwalifikowalne zł]]*Specyfikacja_wnioskodawca[[#This Row],[% poziom wsparcia]]/100),2)","v":0}]
[24,null,null,null,null,null,null,null,null,0,null,null,{"$f":"ROUNDDOWN((Specyfikacja_wnioskodawca[[#This Row],[Wydatki kwalifikowalne zł]]*Specyfikacja_wnioskodawca[[#This Row],[% poziom wsparcia]]/100),2)","v":0}]
[25,null,null,null,null,null,null,null,null,0,null,null,{"$f":"ROUNDDOWN((Specyfikacja_wnioskodawca[[#This Row],[Wydatki kwalifikowalne zł]]*Specyfikacja_wnioskodawca[[#This Row],[% poziom wsparcia]]/100),2)","v":0}]
[26,null,null,null,null,null,null,null,null,0,null,null,{"$f":"ROUNDDOWN((Specyfikacja_wnioskodawca[[#This Row],[Wydatki kwalifikowalne zł]]*Specyfikacja_wnioskodawca[[#This Row],[% poziom wsparcia]]/100),2)","v":0}]
[27,null,null,null,null,null,null,null,null,0,null,null,{"$f":"ROUNDDOWN((Specyfikacja_wnioskodawca[[#This Row],[Wydatki kwalifikowalne zł]]*Specyfikacja_wnioskodawca[[#This Row],[% poziom wsparcia]]/100),2)","v":0}]
[28,null,null,null,null,null,null,null,null,0,null,null,{"$f":"ROUNDDOWN((Specyfikacja_wnioskodawca[[#This Row],[Wydatki kwalifikowalne zł]]*Specyfikacja_wnioskodawca[[#This Row],[% poziom wsparcia]]/100),2)","v":0}]
[{"$f":"ROW()-4","v":29},null,null,null,null,null,null,null,null,{"$f":"IF(I33=\"ZW/ND\",H33,ROUNDDOWN($H33*(1+($I33/100)),2))","v":0},null,null,{"$f":"ROUNDDOWN((Specyfikacja_wnioskodawca[[#This Row],[Wydatki kwalifikowalne zł]]*Specyfikacja_wnioskodawca[[#This Row],[% poziom wsparcia]]/100),2)","v":0}]
[30,null,null,null,null,null,null,null,null,0,null,null,{"$f":"ROUNDDOWN((Specyfikacja_wnioskodawca[[#This Row],[Wydatki kwalifikowalne zł]]*Specyfikacja_wnioskodawca[[#This Row],[% poziom wsparcia]]/100),2)","v":0}]
["Suma",null,null,null,null,null,"Razem",{"$f":"SUM(H5:H34)","v":0},null,{"$f":"SUM(J5:J34)","v":0},{"$f":"SUM(K5:K34)","v":0},null,{"$f":"SUM(M5:M34)","v":0}]

{"sheet":"Inwestycja początkowa","index":12,"n_rows":68,"n_cols":5,"rows_kept":68,"cut":false,"hidden":false,"merged":[]}
["1. Inwestycja początkowa"]
["W wierszu poniżej należy zadeklarować czy projekt dotyczy inwestycji początkowej w rozumieniu art. 14 Rozporządzenia Komisji (UE) Nr 651/2014."]
[]
["Z rozwijanej listy poniżej należy wybrać właściwą opcję dotyczącą rodzaju \"inwestycji początkowej\", której dotyczy projekt."]
[]
["W wierszu poniżej należy opisać w jaki sposób realizacja projektu wpisuje się w wybraną przez wnioskodawcę inwestycję początkową. Należy wskazać wszystkie przesłanki kwalifikujące daną inwestycję w wybrany rodzaj inwestycji początkowej. \nW przypadku jeżeli w polu powyżej wybrano \"dywersyfikacja produkcji zakładu poprzez wprowadzenie produktów lub usług dotąd niewytwarzanych lub nieświadczonych przez ten zakład\", należy w polu opisowym określić jaki nowy produkt/usługa będzie przez przedsiębiorstwo wytwarzane/świadczone na rynku."]
[]
["2. Dywersyfikacja istniejącego zakładu  "]
["Jeżeli realizacja projektu ma na celu dywersyfikację należy wskazać poniżej, czy w projekcie będą wykorzystywane posiadane i użytkowane przez wnioskodawcę dotychczas aktywa. Pojęcie aktywów w kontekście inwestycji początkowej należy odnosić do rzeczowych aktywów trwałych oraz wartości niematerialnych i prawnych. Rzeczowe aktywa trwałe składają się z gruntów, budynków, zakładów, urządzeń i wyposażenia (art. 2 pkt 29 Rozporządzenia 651/2014). Należy także wziąć pod uwagę zakres, w jakim aktywa będą ponownie wykorzystywane (np. jeśli ma być używane tylko 30% pojemności składnika aktywów, należy brać pod uwagę tylko proporcjonalną wartość księgową tych aktywów)."]
[]
["W przypadku odpowiedzi \"TAK\" powyżej należy wypełnić tabelę poniżej, wskazać nazwę/rodzaj ponownie wykorzystywanych aktywów, rok, za jaki wnioskodawca wykazuje wartość księgową tych aktywów, stopień ich wykorzystania oraz podać wartość księgową we wskazanym roku. Zgodnie z art. 14 rozporządzenia 651/2014 w przypadku dywersyfikacji koszty kwalifikowalne (objęte regionalną pomocą inwestycyjną na podstawie ww. art. 14) w projekcie muszą przekraczać o co najmniej 200 % wartość księgową ponownie wykorzystywanych aktywów, odnotowaną w roku obrotowym poprzedzającym rozpoczęcie projektu, żeby projekt mógł kwalifikować się do wsparcia (tj. koszty kwalifikowalne muszą stanowić co najmniej trzykrotność wartości ponownie wykorzystywanych aktywów). "]
["Nazwa danego środka trwałego/wartości niematerialnej i prawnej","ROK","Wartość księgowa w roku poprzedzającym rozpoczęcie projektu (zł)","Stopień wykorzytania (%)","Wartość księgowa w roku poprzedzającym rozpoczęcie projektu (zł) uwzględniająca stopień wykorzystania"]
[]
[]
[]
[]
[]
[]
[]
[]
[]
[]
[]
[]
[]
[]
[]
[]
[]
[]
[]
[]
[]
[]
[]
[]
[]
[]
[]
[]
[]
[]
[]
[]
[]
[]
[]
[]
[]
[]
[]
[]
[]
[]
[]
[]
[]
[]
[]
[]
[]
[]
[]
[]
[]
[]
[]
[null,null,null,"SUMA",{"$f":"SUBTOTAL(109,E13:E67)","v":0}]

{"sheet":"Własność intelektualna","index":13,"n_rows":14,"n_cols":1,"rows_kept":14,"cut":false,"hidden":false,"merged":[]}
["1. Wdrożenie wyników prac B+R w projekcie"]
["Informacje w punkcie nr 1 dotyczą wyłącznie projektów obejmujących inwestycje związane z wdrożeniem wyników prac B+R. W wierszach poniżej należy wskazać, czy projekt dotyczy wdrożenia wyników prac B+R przeprowadzonych/zleconych i zakupionych/zakupionych przez wnioskodawcę."]
["Czy projekt dotyczy wdrożenia wyników prac B+R przeprowadzonych przez wnioskodawcę?"]
[]
["Czy projekt dotyczy wdrożenia wyników prac B+R zleconych i zakupionych przez wnioskodawcę?"]
[]
["Czy projekt dotyczy wdrożenia wyników prac B+R zakupionych przez wnioskodawcę?"]
[]
["W polu poniżej należy opisać zakres wdrożenia wyników prac B+R oraz wskazać, czy stanowią one rezultat badań przemysłowych i eksperymentalnych prac rozwojowych czy wyłącznie eksperymentalnych prac rozwojowych, o których mowa z art. 2 pkt. 85 i 86 Rozporządzenia Komisji (UE) Nr 651/2014. Należy szczegółowo opisać wyniki prac B+R, których będzie dotyczyło planowane w ramach projektu wdrożenie. Należy pamiętać o zachowaniu zgodności z przedkładanymi w ramach załączników do wniosku dokumentami potwierdzającymi przeprowadzenie lub zakupienie prac B+R. Z przedłożonych w ramach dokumentacji apliakcyjnej dokumentów musi jednoznacznie wynikać, iż przeprowadzone/zakupione prace B+R to prace, których dotyczy wdrożenie będące przedmiotem projektu. "]
[]
["2. Dysponowanie własnością intelektualną"]
["Należy w wierszu poniżej wskazać, czy kwestia praw własności intelektualnej nie stanowi bariery do wdrożenia innowacji produktowej/procesowej zaplanowanej w ramach projektu. Wybranie odpowiedzi \"TAK\" oznaczna, że kwestia praw własności intelektualnej nie stanowi bariery do wdrożenia innowacji produktowej/procesowej zaplanowanej w ramach projektu. "]
[]
["W polu poniżej należy szczegółowo uzasadnić wybraną odpowiedź, opisując czy kwestia praw własności intelektulanej nie stanowi bariery do wdrożenia innowacji. Jeżeli powyżej wybrano opcję \"TAK\" należy dodatkowo szczegółowo opisać jakie prawa własności intelektualnej są niezbędne do wdrożenia innowacji produktowej/procesowej zaplanowanej w ramach projektu. Następnie należy wskazać, czy wnioskodawca posiada te prawa, a jeśli tak na jakich zasadach zostały pozyskane. "]

{"sheet":"RSI","index":14,"n_rows":8,"n_cols":5,"rows_kept":8,"cut":false,"hidden":false,"merged":[[0,0,0,4]]}
["Inteligentne specjalizacje województwa lubelskiego - lista zagadnień szczegółowych "]
["Lp.","Nazwa specjalizacji RSI","Projekt wpisuje się\nw specjalizację","Szczegółowe zagadnienie RSI","Uzasadnienie"]
[null,"W punktach od I do V przedstawiono regionalne inteligentne specjalizacje zgodnie z Regionalną Strategią Innowacji do 2030 r. (RSI). Dla każdej specjalizacji należy wypełnić kolumny obok.","Należy wybrać z listy  właściwą opcję TAK lub NIE, w zależności czy działalność gospodarcza   wnioskodawcy, w której znajdą zastosowanie wdrożone w wyniku realizacji projektu innowacje produktowe/procesowe (wyniki prac B+R i/lub innowacyjne rozwiązania) wpisuje się w daną specjalizację RSI.","W przypadku wyboru w poprzedniej kolumnie opcji \"TAK\" należy w tej kolumnie wybrać z listy najbardziej adekwatne zagadnienie szczegółowe. W przypadku wyboru w poprzedniej kolumnie opcji NIE kolumnę należy pozostawić niewypełnioną.","W przypadku wyboru opcji \"TAK\" i wskazania zagadnienia szczegółowego należy w tej kolumnie uzasadnić swój wybór. W przypadku wyboru opcji NIE kolumnę należy pozostawić niewypełnioną."]
["I.","ŻYWNOŚĆ WYSOKIEJ JAKOŚCI "]
["II.","ZIELONA GOSPODARKA"]
["III.","ZDROWE SPOŁECZEŃSTWO"]
["IV.","CYFROWE SPOŁECZEŃSTWO"]
["V.","TECHNOLOGIE MATERIAŁOWE,\nPROCESY PRODUKCYJNE I LOGISTYCZNE"]

{"sheet":"Potencjał","index":15,"n_rows":41,"n_cols":1,"rows_kept":41,"cut":false,"hidden":false,"merged":[]}
["1. Komplementarność"]
["W wierszu poniżej należy wskazać, czy realizowany projekt jest komplementarny z innymi projektami realizowanymi przez wnioskodawcę współfinansowanymi z funduszy publicznych."]
[]
["Jeżeli w pytaniu powyżej wybrano opcję TAK, w wierszu poniżej należy wskazać do jakich innych projektów, realizowanych przez wnioskodawcę i współfinansowanych ze środków publicznych, komplementarny jest przedmiotowy projekt. Należy również opisać na czym ta komplementarność polega, tj. należy szczegółowo opisać, w jaki sposób działania objęte projektem są komplementarne z innym projektem/projektami współfinansowanym/i ze środków publicznych. W przypadku, gdy wnioskodawca w ramach dodatkowych załączników przedkłada dokumenty potwierdzające komplementarność wówczas opis musi dotyczyć tych projektów. Jeżeli wybrano opcję NIE pole poniżej należy pozostawić niewypełnione."]
[]
["W wierszu poniżej należy wskazać, czy wnioskodawca aplikował w Programie Horyzont Europa. "]
[]
["Jeżeli w pytaniu powyżej wybrano opcję TAK, w wierszu poniżej należy wskazać nabór, w którym projekt wnioskodawcy został wybrany w ramach Programu Horyzont Europa oraz opisać cele projektu, w którym wnioskodawca uczestniczył. Jeżeli wnioskodawca aplikował do Programu Horyzont Europa i projekt, w którym uczestniczył nie otrzymał dofinansowania ze względu na wyczerpanie alokacji należy opisać powyższe. Jeżeli wybrano opcję NIE pole poniżej należy pozostawić niewypełnione."]
[]
["2. Miejsce odprowadzania podatku dochodowego."]
["W wierszu poniżej należy wskazać, czy Urząd Skarbowy, do którego wnioskodawca odprowadza podatek dochodowy znajduje się na terenie województwa lubelskiego."]
[]
["Jeżeli w pytaniu powyżej wybrano opcję TAK, to poniżej należy wpisać adres Urzędu Skarbowego, do którego wnioskodawca odprowadza podatek dochodowy. W przypadku gdy wybrano opcję NIE i z obowiązujących przepisów prawa wynika, że wnioskodawca posiadający główną siedzibę w województwie lubelskim jest obsługiwany przez wyspecjalizowany Urząd Skarbowy o zasięgu krajowym należy w wierszu poniżej złożyć wyjaśnienie w tym zakresie. W innym przypadku należy wpisać NIE DOTYCZY."]
[]
["3. Dodatkowe działania w projekcie."]
["W wierszu poniżej należy wskazać, czy wnioskodawca w ramach projektu zaplanował działania w zakresie internacjonalizacji produktów/usług wdrożonych w ramach projektu. Należy pamiętać, iż kwestia dotycząca wdrożenia dodatkowych działań zaplanowanych w projekcie będzie podlegała monitorowaniu i kontroli na etapie realizacji i trwałości projektu."]
[]
["Jeżeli w pytaniu powyżej wybrano opcję TAK, w wierszu poniżej należy szczegółowo opisać plan działań w zakresie internacjonalizacji produktów/usług planowanych do wdrożenia w ramach projektu, pamiętając, żeby w budżecie projektu ująć koszty niezbędne do zrealizowania tych działań. Jeżeli wybrano opcję NIE, pole poniżej należy pozostawić niewypełnione."]
[]
["W wierszu poniżej należy wskazać czy wnioskodawca zaplanował wdrożenie innowacji organizacyjnej. \nInnowacja organizacyjna to nowa metoda organizacyjna w praktykach biznesowych przedsiębiorstwa (w tym w zarządzaniu wiedzą, bussines inteligence, SaaS). Innowacja organizacyjna musi być wynikiem strategicznych decyzji kierownictwa i wdrażana przy wsparciu projektu."]
[]
["Jeżeli w pytaniu powyżej wybrano opcję TAK, w wierszu poniżej należy szczegółowo opisać dotychczas stosowane praktyki biznesowe oraz na czym polega planowana do wdrożenia innowacja organizacyjna oraz jakie korzyści wynikają z jej wdrożenia. Innowacja organizacyjna musi być powiązana z działalnością gospodarczą, w której zastosowanie znajdzie wdrażana innowacja produktowa/procesowa. Jeżeli wybrano opcję NIE pole poniżej należy pozostawić niewypełnione."]
[]
["W wierszu poniżej należy wskazać czy wnioskodawca zaplanował wdrożenie innowacji marketingowej.\nInnowacja marketingowa to wdrożenie nowej koncepcji lub strategii marketingowej, która różni się istotnie od dotychczasowych metod marketingowych przedsiębiorstwa i która nie była wcześniej stosowana. Wymaga ona znaczących zmian w projekcie lub opakowaniu produktu, lokowaniu produktu, promocji produktu lub cenie. Innowacja marketingowa nie obejmuje sezonowych, regularnych lub innych rutynowych zmian w metodach marketingowych."]
[]
["Jeżeli w pytaniu powyżej wybrano opcję TAK, w wierszu poniżej należy szczegółowo opisać dotychczas stosowane działania marketingowe oraz na czym polega wdrażana w ramach projektu innowacja marketingowa oraz jakie korzyści wynikają z jej wdrożenia. Innowacja marketingowa musi dotyczyć wdrażanej innowacji produktowej/procesowej. Jeżeli wybrano opcję NIE pole poniżej należy pozostawić niewypełnione."]
[]
["4. Wdrożenie ekoinnowacji."]
["W wierszu poniżej należy wskazać, czy projekt dotyczy wdrożenia innowacji produktowej lub procesowej nakierowanej na transformację przedsiębiorstwa w kierunku osiągnięcia celu zrównoważonego rozwoju dotyczącego działań w dziedzinie klimatu."]
[]
["Jeżeli w pytaniu powyżej wybrano opcję TAK, w wierszu poniżej należy szczegółowo opisać czy projekt ma na celu stworzenie/ulepszenie co najmniej jednego produktu/usługi/technologii istotnie przyczyniających się do transformacji przedsiębiorstwa w kierunku osiągnięcia celu zrównoważonego rozwoju dotyczącego działań w dziedzinie klimatu, np. poprzez gospodarkę o obiegu zamkniętym, łagodzenie zmian klimatu i adaptację do zmian klimatu oraz wszystkie inne działania związane z tzw. zazielenianiem przedsiębiorstw. Jeżeli wybrano opcję NIE pole poniżej należy pozostawić niewypełnione."]
[]
["5. Wzrost zatrudnienia."]
["W wierszu poniżej należy wskazać czy w wyniku realizacji projektu w okresie do 12 miesięcy od zakończenia finansowego realizacji projektu lub o ile wynika to ze specyfiki projektu, od utworzenia produktu w ramach projektu (zatrudnienie w oparciu o umowę o pracę), stan zatrudnienia zwiększy się przynajmniej o jeden etat. \nNowo utworzone stanowiska muszą zostać utrzymane przez ponad rok po finansowym zakończeniu projektu w okresie trwałości projektu (wskaźnik rezultatu bezpośredniego). Liczbę miejsc pracy należy wyliczyć w średnich rocznych ekwiwalentach pełnego czasu pracy (EPC) utworzonych w ramach działalności wspieranej przez projekt. Roczne EPC definiuje się jako stosunek godzin pracy przepracowanych efektywnie w ciągu roku kalendarzowego podzielony przez całkowitą liczbę godzin umownie przepracowanych w tym samym okresie przez osobę lub grupę. Zgodnie z konwencją dana osoba nie może wykonywać więcej niż jednego EPC rocznie. Liczba godzin umownie przepracowanych ustalana jest na podstawie normatywnych/ustawowych godzin pracy zgodnie z krajowym ustawodawstwem. \nZwiększenie o co najmniej o jeden pełny etat  jest obliczane jako różnica między rocznymi EPC obsadzonymi przed rozpoczęciem projektu i rok po zakończeniu projektu w ramach wspieranej działalności. Nowe stanowiska muszą zostać obsadzone i mogą być utworzone w pełnym wymiarze godzin, w niepełnym wymiarze godzin lub powtarzać się sezonowo. Należy pamiętać, iż kwestia zatrudnienia będącego wynikiem realizacji projektu będzie podlegała monitorowaniu i kontroli na etapie realizacji i trwałości projektu, bezpośrednio po jego zakończeniu i utrzymane w okresie trwałości projektu."]
[]
["Jeżeli w pytaniu powyżej wybrano opcję TAK, w wierszu poniżej należy szczegółowo opisać planowane zwiększenie zatrudnienia w wyniku realizacji projektu. Jeżeli wybrano opcję NIE pole poniżej należy pozostawić niewypełnione."]
[]
["6. Wdrożenie innowacji nakierowanej na zapewnienie dostępności dla osób ze szczególnymi potrzebami."]
["W wierszu poniżej należy wskazać, czy projekt dotyczy wdrożenia innowacji produktowej lub procesowej nakierowanej na zapewnienie dostępności dla osób ze szczególnymi potrzebami zgodnie z rozwiązaniami wskazanymi jako dobre praktyki wskazane w załączniku nr 2 Standardy dostępności dla polityki spójności stanowiącymi załącznik do Wytycznych dotyczących realizacji zasad równościowych w ramach funduszy unijnych na lata 2021-2027."]
[]
["Jeżeli w pytaniu powyżej wybrano opcję TAK, w wierszu poniżej należy szczegółowo opisać planowane wdrożenie innowacji nakierowanej na zapewnienie dostępności dla osób ze szczególnymi potrzebami. Z przedstawionego uzasadnienia powinno wynikać, czy projekt ma na celu stworzenie/ulepszenie co najmniej jednego produktu/usługi/technologii istotnie przyczyniających się do zapewnienia dostępności dla osób ze szczególnymi potrzebami, rozumianej jako zniesienie jednej lub więcej barier we właściwościach środowiska (w tym: przestrzeni fizycznej, rzeczywistości cyfrowej, systemów informacyjno- komunikacyjnych, produktów, usług), co w efekcie pozwoli osobom ze szczególnymi potrzebami na korzystanie z niego na zasadzie równości z innymi. Jeżeli wybrano opcję NIE pole poniżej należy pozostawić niewypełnione."]

{"sheet":"Formularz pomocy innej","index":16,"n_rows":401,"n_cols":31,"rows_kept":401,"cut":false,"hidden":false,"merged":[[398,0,398,31],[399,0,399,31],[400,0,400,31],[395,0,395,27],[395,28,395,31],[396,0,396,27],[396,28,396,31],[397,0,397,27],[397,28,397,31],[392,0,392,27],[392,28,392,31],[393,0,393,27],[393,28,393,31],[394,0,394,27],[394,28,394,31],[389,0,389,27],[389,28,389,31],[390,0,390,27],[390,28,390,31],[391,0,391,27],[391,28,391,31],[386,0,386,27],[386,28,386,31],[387,0,387,27],[387,28,387,31],[388,0,388,27],[388,28,388,31],[383,0,383,27],[383,28,383,31],[384,0,384,27],[384,28,384,31],[385,0,385,27],[385,28,385,31],[380,0,380,27],[380,28,380,31],[381,0,381,27],[381,28,381,31],[382,0,382,27],[382,28,382,31],[377,0,377,27],[377,28,377,31],[378,0,378,27],[378,28,378,31],[379,0,379,27],[379,28,379,31],[374,0,374,27],[374,28,374,31],[375,0,375,27],[375,28,375,31],[376,0,376,27],[376,28,376,31],[371,0,371,27],[371,28,371,31],[372,0,372,27],[372,28,372,31],[373,0,373,27],[373,28,373,31],[368,0,368,27],[368,28,368,31],[369,0,369,27],[369,28,369,31],[370,0,370,27],[370,28,370,31],[365,0,365,27],[365,28,365,31],[366,0,366,27],[366,28,366,31],[367,0,367,27],[367,28,367,31],[362,0,362,27],[362,28,362,31],[363,0,363,27],[363,28,363,31],[364,0,364,27],[364,28,364,31],[359,0,359,27],[359,28,359,31],[360,0,360,27],[360,28,360,31],[361,0,361,27],[361,28,361,31],[356,0,356,27],[356,28,356,31],[357,0,357,27],[357,28,357,31],[358,0,358,27],[358,28,358,31],[353,0,353,27],[353,28,353,31],[354,0,354,27],[354,28,354,31],[355,0,355,27],[355,28,355,31],[350,0,350,27],[350,28,350,31],[351,0,351,27],[351,28,351,31],[352,0,352,27],[352,28,352,31],[346,0,346,27],[346,28,347,31],[347,0,347,27],[348,0,348,27],[348,28,348,31],[349,0,349,27],[349,28,349,31],[342,0,342,27],[342,28,342,31],[343,0,343,27],[343,28,343,31],[344,0,344,27],[344,28,345,31],[345,0,345,27],[338,0,338,31],[339,0,339,27],[339,28,339,31],[340,0,340,27],[340,28,340,31],[341,0,341,27],[341,28,341,31],[335,0,335,27],[335,28,335,31],[336,0,336,27],[336,28,336,31],[337,0,337,27],[337,28,337,31],[331,0,331,27],[331,28,331,31],[332,0,332,27],[332,28,332,31],[333,0,333,31],[334,0,334,27],[334,28,334,31],[327,0,327,31],[328,0,328,31],[329,0,329,27],[329,28,329,31],[330,0,330,27],[330,28,330,31],[323,0,323,31],[324,0,324,31],[325,0,325,27],[325,28,325,31],[326,0,326,27],[326,28,326,31],[320,0,320,27],[320,28,320,31],[321,0,321,31],[322,0,322,27],[322,28,322,31],[316,0,316,27],[316,28,316,31],[317,0,317,31],[318,0,318,27],[318,28,318,31],[319,0,319,27],[319,28,319,31],[313,0,313,27],[313,28,313,31],[314,0,314,27],[314,28,314,31],[315,0,315,27],[315,28,315,31],[309,0,309,31],[310,0,310,27],[310,28,310,31],[311,0,311,27],[311,28,311,31],[312,0,312,27],[312,28,312,31],[306,0,306,27],[306,28,306,31],[307,0,307,27],[307,28,307,31],[308,0,308,27],[308,28,308,31],[303,0,303,27],[303,28,303,31],[304,0,304,27],[304,28,304,31],[305,0,305,27],[305,28,305,31],[300,0,300,27],[300,28,300,31],[301,0,301,27],[301,28,301,31],[302,0,302,27],[302,28,302,31],[297,0,297,27],[297,28,297,31],[298,0,298,27],[298,28,298,31],[299,0,299,27],[299,28,299,31],[293,0,293,27],[293,28,293,31],[294,0,294,31],[295,0,295,27],[295,28,295,31],[296,0,296,27],[296,28,296,31],[289,0,289,31],[290,0,290,27],[290,28,290,31],[291,0,291,27],[291,28,291,31],[292,0,292,27],[292,28,292,31],[286,0,286,27],[286,28,286,31],[287,0,287,27],[287,28,287,31],[288,0,288,27],[288,28,288,31],[283,0,283,27],[283,28,283,31],[284,0,284,27],[284,28,284,31],[285,0,285,27],[285,28,285,31],[280,0,280,27],[280,28,280,31],[281,0,281,27],[281,28,281,31],[282,0,282,27],[282,28,282,31],[277,0,277,27],[277,28,277,31],[278,0,278,27],[278,28,278,31],[279,0,279,27],[279,28,279,31],[274,0,274,27],[274,28,274,31],[275,0,275,27],[275,28,275,31],[276,0,276,27],[276,28,276,31],[271,0,271,27],[271,28,271,31],[272,0,272,27],[272,28,272,31],[273,0,273,27],[273,28,273,31],[267,0,267,27],[267,28,267,31],[268,0,268,27],[268,28,268,31],[269,0,269,31],[270,0,270,27],[270,28,270,31],[264,0,264,27],[264,28,264,31],[265,0,265,27],[265,28,265,31],[266,0,266,27],[266,28,266,31],[261,0,261,27],[261,28,261,31],[262,0,262,27],[262,28,262,31],[263,0,263,27],[263,28,263,31],[257,0,257,27],[257,28,257,31],[258,0,258,31],[259,0,259,31],[260,0,260,27],[260,28,260,31],[254,0,254,27],[254,28,254,31],[255,0,255,27],[255,28,255,31],[256,0,256,27],[256,28,256,31],[249,0,249,31],[250,0,250,31],[251,0,251,31],[252,0,252,31],[253,0,253,27],[253,28,253,31],[244,0,246,13],[244,14,244,26],[245,14,245,26],[246,14,246,26],[247,0,248,13],[247,14,248,26],[240,0,241,13],[240,14,241,26],[242,0,242,13],[242,14,242,26],[243,0,243,13],[243,14,243,26],[235,0,235,31],[236,0,236,31],[237,0,237,31],[238,0,238,31],[239,0,239,13],[239,14,239,26],[230,0,230,31],[231,0,231,31],[232,0,232,31],[233,0,233,31],[234,0,234,31],[224,0,224,31],[225,0,225,31],[226,0,226,31],[227,0,227,31],[228,0,228,31],[229,0,229,31],[218,0,218,31],[219,0,219,31],[220,0,220,31],[221,0,221,31],[222,0,222,31],[223,0,223,31],[212,0,212,31],[213,0,213,31],[214,0,214,31],[215,0,215,31],[216,0,216,31],[217,0,217,31],[208,0,208,31],[209,0,209,31],[210,0,210,31],[211,0,211,31],[203,1,203,30],[204,1,204,30],[205,1,205,30],[207,1,207,13],[207,18,207,30],[197,1,197,30],[198,1,198,30],[199,1,199,30],[200,1,200,30],[201,1,201,30],[202,1,202,30],[191,1,191,30],[192,1,192,30],[193,1,193,30],[194,1,194,30],[195,1,195,30],[196,1,196,30],[185,2,185,30],[186,2,186,30],[187,2,187,30],[188,2,188,30],[189,2,189,30],[190,1,190,30],[180,22,181,23],[180,24,181,25],[180,26,181,27],[183,1,183,30],[184,2,184,30],[176,26,179,27],[180,1,181,5],[180,6,181,7],[180,8,181,9],[180,10,181,11],[180,12,181,13],[180,14,181,15],[180,16,181,17],[180,18,181,19],[180,20,181,21],[176,14,179,15],[176,16,179,17],[176,18,179,19],[176,20,179,21],[176,22,179,23],[176,24,179,25],[171,22,175,23],[171,24,175,25],[171,26,175,27],[176,1,179,5],[176,6,179,7],[176,8,179,9],[176,10,179,11],[176,12,179,13],[171,1,175,5],[171,6,175,7],[171,8,175,9],[171,10,175,11],[171,12,175,13],[171,14,175,15],[171,16,175,17],[171,18,175,19],[171,20,175,21],[163,26,166,27],[167,4,170,5],[167,6,170,7],[167,8,170,9],[167,10,170,11],[167,12,170,13],[167,14,170,15],[167,16,170,17],[167,18,170,19],[167,20,170,21],[163,14,166,15],[163,16,166,17],[163,18,166,19],[163,20,166,21],[163,22,166,23],[163,24,166,25],[163,4,166,5],[163,6,166,7],[163,8,166,9],[163,10,166,11],[163,12,166,13],[167,22,170,23],[167,24,170,25],[167,26,170,27],[158,26,158,27],[158,1,158,5],[158,6,158,7],[158,8,158,9],[158,10,158,11],[158,12,158,13],[158,14,158,15],[159,16,162,17],[159,18,162,19],[159,20,162,21],[159,22,162,23],[159,24,162,25],[159,26,162,27],[159,1,162,5],[159,6,162,7],[159,8,162,9],[159,10,162,11],[159,12,162,13],[159,14,162,15],[158,24,158,25],[163,1,170,3],[153,8,157,9],[153,10,157,11],[153,12,157,13],[153,14,157,15],[158,16,158,17],[158,18,158,19],[158,20,158,21],[158,22,158,23],[148,16,152,17],[148,18,152,19],[148,20,152,21],[148,22,152,23],[148,24,152,25],[148,26,152,27],[143,1,146,24],[145,27,145,30],[147,1,147,30],[148,1,157,3],[148,4,152,5],[148,6,152,7],[148,8,152,9],[148,10,152,11],[148,12,152,13],[148,14,152,15],[153,16,157,17],[153,18,157,19],[153,20,157,21],[153,22,157,23],[153,24,157,25],[153,26,157,27],[153,4,157,5],[153,6,157,7],[131,1,135,23],[137,1,138,24],[139,1,140,24],[141,1,142,24],[124,1,124,30],[125,1,125,30],[126,1,126,30],[127,1,127,30],[128,1,128,30],[129,1,129,30],[136,1,136,30],[113,1,113,24],[114,1,116,23],[115,26,115,29],[116,26,116,29],[117,1,122,30],[123,1,123,30],[107,1,107,23],[108,1,108,23],[109,1,109,23],[110,1,110,23],[111,1,111,24],[112,1,112,23],[98,1,99,30],[100,1,100,29],[101,1,101,24],[102,1,103,24],[104,1,105,24],[106,1,106,23],[91,1,92,24],[92,27,92,30],[93,1,94,30],[95,1,97,23],[97,26,97,29],[80,2,80,16],[81,2,81,16],[82,2,82,16],[83,2,84,16],[85,2,85,30],[86,2,90,30],[72,1,73,24],[74,2,74,16],[75,2,75,16],[76,2,77,16],[78,2,78,16],[79,2,79,16],[62,1,64,24],[63,27,63,30],[65,1,65,24],[67,1,68,24],[69,1,71,24],[70,27,70,30],[71,27,71,30],[50,1,52,24],[53,1,54,30],[55,1,57,30],[58,1,58,30],[59,1,61,24],[60,27,60,30],[38,1,38,30],[39,1,40,24],[41,1,42,24],[43,1,44,24],[45,1,47,24],[48,1,49,24],[31,3,31,9],[32,3,32,15],[33,1,33,31],[35,1,35,9],[37,1,37,12],[23,3,24,30],[25,3,25,11],[26,3,26,30],[27,1,28,30],[29,3,29,8],[30,3,30,9],[13,1,13,14],[15,1,15,9],[16,3,16,16],[17,3,17,15],[18,3,19,29],[20,3,22,30],[7,1,7,14],[8,1,8,14],[8,17,8,30],[9,1,10,14],[9,17,10,31],[11,1,11,14],[11,17,11,30],[0,0,1,31],[2,0,2,31],[3,0,3,31],[4,1,4,14],[4,17,4,30],[5,1,5,14]]}
["Formularz informacji przedstawianych przy ubieganiu się o pomoc inną niż pomoc w rolnictwie lub rybołówstwie, pomoc de minimis lub pomoc de minimis w rolnictwie lub rybołówstwie "]
[]
["Zgodnie z art. 37 ust. 8 ustawy z dnia 30 kwietnia 2004 r. o postępowaniu w sprawach dotyczących pomocy publicznej (Dz. U. z 2007 r. Nr 59, poz. 404, z późn. zm.) niniejszy formularz wypełnia się wyłącznie w zakresie, w którym informacje w nim określone nie są przedstawiane na podstawie odrębnych ustaw."]
["Wraz z formularzem przedstawia się sprawozdania finansowe zgodnie z § 2 ust. 2 rozporządzenia Rady Ministrów z dnia 29 marca 2010 r. w sprawie zakresu informacji przedstawianych przez podmiot ubiegający się o pomoc inną niż pomoc de minimis lub pomoc de minimis w rolnictwie lub rybołówstwie (Dz. U. Nr 53, poz. 312, z późn. zm.).\n"]
[null,"A. Informacje dotyczące podmiotu, któremu ma być udzielona pomoc publiczna1)",null,null,null,null,null,null,null,null,null,null,null,null,null,null,null,"A1. Informacje dotyczące wspólnika spółki cywilnej lub osobowej wnioskującego o pomoc w związku z działalnością prowadzoną w tej spółce2)"]
[null,"1) Identyfikator podatkowy NIP podmiotu",null,null,null,null,null,null,null,null,null,null,null,null,null,null,null,"1a) Identyfikator podatkowy NIP wspólnika3)"]
[]
[null,"2) Imię i nazwisko albo nazwa podmiotu",null,null,null,null,null,null,null,null,null,null,null,null,null,null,null,"2a) Imię i nazwisko albo nazwa wspólnika"]
[]
[null,"3) Adres miejsca zamieszkania albo adres siedziby podmiotu",null,null,null,null,null,null,null,null,null,null,null,null,null,null,null,"3a) Adres miejsca zamieszkania albo adres siedziby wspólnika"]
[]
[]
[]
[null,"4) Identyfikator gminy, w której podmiot ma miejsce zamieszkania albo siedzibę4)"]
[]
[null,"5) Forma prawna podmiotu5)"]
[null,null,null,"przedsiębiorstwo państwowe"]
[null,null,null,"jednoosobowa spółka Skarbu Państwa"]
[null,null,null,"jednoosobowa spółka jednostki samorządu terytorialnego, w rozumieniu ustawy z dnia 20 grudnia 1996 r. o gospodarce komunalnej (Dz. U. z 2011 r. Nr 45, poz. 236)"]
[]
[null,null,null,"spółka akcyjna albo spółka z ograniczoną odpowiedzialnością, w stosunku do których Skarb Państwa, jednostka samorządu terytorialnego, przedsiębiorstwo państwowe lub jednoosobowa spółka Skarbu Państwa są podmiotami, które posiadają uprawnienia takie, jak przedsiębiorcy dominujący w rozumieniu przepisów ustawy z dnia 16 lutego 2007 r. o ochronie konkurencji i konsumentów (Dz. U. z 2015 r. poz. 184)"]
[]
[]
[null,null,null,"jednostka sektora finansów publicznych w rozumieniu przepisów ustawy z dnia 27 sierpnia 2009 r. o finansach publicznych (Dz. U. z 2013 r. poz. 885, z późn. zm.)"]
[]
[null,null,null,"inna (podać jaka)"]
[]
[null,"6) Wielkość podmiotu, zgodnie z załącznikiem I do rozporządzenia Komisji (UE) nr 651/2014 z dnia 17 czerwca 2014 r. uznającego niektóre rodzaje pomocy za zgodne z rynkiem wewnętrznym w zastosowaniu art. 107 i 108 Traktatu (Dz. Urz. UE L 187 z 26.06.2014, str. 1), zwanego dalej \"rozporządzeniem Komisji (UE) nr 651/2014\"5)"]
[]
[null,null,null,"mikroprzedsiębiorca"]
[null,null,null,"mały przedsiębiorca"]
[null,null,null,"średni przedsiębiorca"]
[null,null,null,"inny przedsiębiorca"]
[null,"7) Klasa działalności, zgodnie z rozporządzeniem Rady Ministrów z dnia 24 grudnia 2007 r. w sprawie Polskiej Klasyfikacji Działalności (PKD) (Dz. U. Nr 251, poz. 1885, z późn. zm.)6)"]
[]
[null,"8) Data utworzenia podmiotu"]
[null,null,null," - ",null,null," - "]
[null,"9) Powiązania z innymi przedsiębiorcami"]
[null,"Czy pomiędzy podmiotem a innymi przedsiębiorcami istnieją powiązania polegające na tym, że:"]
[null,"a) jeden przedsiębiorca posiada w drugim większość praw głosu?",null,null,null,null,null,null,null,null,null,null,null,null,null,null,null,null,null,null,null,null,null,null,null,null,null,"tak",null,null,"nie"]
[]
[null,"b) jeden przedsiębiorca ma prawo powołać lub odwołać większość członków organu zarządzającego lub nadzorującego innego przedsiębiorcy?",null,null,null,null,null,null,null,null,null,null,null,null,null,null,null,null,null,null,null,null,null,null,null,null,null,"tak",null,null,"nie"]
[]
[null,"c) jeden przedsiębiorca ma prawo wywierać dominujący wpływ na innego przedsiębiorcę zgodnie z umową zawartą z tym przedsiębiorcą lub jego dokumentami założycielskimi?",null,null,null,null,null,null,null,null,null,null,null,null,null,null,null,null,null,null,null,null,null,null,null,null,null,"tak",null,null,"nie"]
[]
[null,"d) jeden przedsiębiorca, który jest akcjonariuszem lub wspólnikiem innego przedsiębiorcy lub jego członkiem, zgodnie z porozumieniem z innymi akcjonariuszami, wspólnikami lub członkami tego przedsiębiorcy, samodzielnie kontroluje większość praw głosu u tego przedsiębiorcy?",null,null,null,null,null,null,null,null,null,null,null,null,null,null,null,null,null,null,null,null,null,null,null,null,null,"tak",null,null,"nie"]
[]
[]
[null,"e) przedsiębiorca pozostaje w jakimkolwiek ze stosunków opisanych w lit. a-d  poprzez jednego innego przedsiębiorcę lub kilku innych przedsiębiorców?",null,null,null,null,null,null,null,null,null,null,null,null,null,null,null,null,null,null,null,null,null,null,null,null,null,"tak",null,null,"nie"]
[]
[null,"f) przedsiębiorca pozostaje w jakimkolwiek ze stosunków opisanych w lit. a-d za pośrednictwem osoby fizycznej lub grupy osób fizycznych działających wspólnie oraz prowadzi swoją działalność lub część działalności na tym samym rynku właściwym lub rynkach pokrewnych7)? ",null,null,null,null,null,null,null,null,null,null,null,null,null,null,null,null,null,null,null,null,null,null,null,null,null,"tak",null,null,"nie"]
[]
[]
[null,"W przypadku zaznaczenia przynajmniej jednej odpowiedzi twierdzącej w lit. a - f, należy podać identyfikator podatkowy NIP wszystkich powiązanych z podmiotem przedsiębiorców: "]
[]
[]
[]
[]
[null,"B. Informacje dotyczące sytuacji ekonomicznej podmiotu, któremu ma być udzielona pomoc publiczna8)"]
[null,"1) Czy, w przypadku spółki akcyjnej, spółki z ograniczoną odpowiedzialnością oraz  spółki komandytowo-akcyjnej, wysokość niepokrytych strat przewyższa 50 % wysokości kapitału zarejestrowanego9)?",null,null,null,null,null,null,null,null,null,null,null,null,null,null,null,null,null,null,null,null,null,null,null,null,null,"tak",null,null,"nie"]
[null,null,null,null,null,null,null,null,null,null,null,null,null,null,null,null,null,null,null,null,null,null,null,null,null,null,null,"nie dotyczy"]
[]
[null,"2) Czy, w przypadku spółki jawnej, spółki komandytowej, spółki partnerskiej oraz spółki cywilnej, wysokość niepokrytych strat przewyższa 50 % wysokości jej kapitału według ksiąg spółki?\n\n",null,null,null,null,null,null,null,null,null,null,null,null,null,null,null,null,null,null,null,null,null,null,null,null,null,"tak",null,null,"nie"]
[null,null,null,null,null,null,null,null,null,null,null,null,null,null,null,null,null,null,null,null,null,null,null,null,null,null,null,"nie dotyczy"]
[]
[null,"3) Czy podmiot spełnia kryteria kwalifikujące go do objęcia postępowaniem upadłościowym? ",null,null,null,null,null,null,null,null,null,null,null,null,null,null,null,null,null,null,null,null,null,null,null,null,null,"tak",null,null,"nie"]
[]
[null,"4) Czy podmiot otrzymał pomoc na ratowanie i nie spłacił do tej pory pożyczki lub nadal jest stroną umowy gwarancji lub otrzymał pomoc na restrukturyzację i nadal realizuje plan restrukturyzacyjny?",null,null,null,null,null,null,null,null,null,null,null,null,null,null,null,null,null,null,null,null,null,null,null,null,null,"tak",null,null,"nie"]
[]
[null,"5) Czy, w przypadku podmiotu innego niż mikro, mały lub średni przedsiębiorca, w ciągu ostatnich dwóch lat stosunek długów do kapitału własnego był większy niż 7,5 a stosunek zysku operacyjnego powiększonego o amortyzację do odsetek był niższy niż 1?",null,null,null,null,null,null,null,null,null,null,null,null,null,null,null,null,null,null,null,null,null,null,null,null,null,"tak",null,null,"nie"]
[null,null,null,null,null,null,null,null,null,null,null,null,null,null,null,null,null,null,null,null,null,null,null,null,null,null,null,"nie dotyczy"]
[]
[null,"6)  Czy w odniesieniu do okresu ostatnich 3 lat poprzedzających dzień wystąpienia z wnioskiem o udzielenie pomocy:10)"]
[]
[null,null,"a) podmiot odnotowuje rosnące straty?",null,null,null,null,null,null,null,null,null,null,null,null,null,null,null,"tak",null,null,"nie"]
[null,null,"b) obroty podmiotu maleją? ",null,null,null,null,null,null,null,null,null,null,null,null,null,null,null,"tak",null,null,"nie"]
[null,null,"c) zwiększeniu ulegają zapasy podmiotu lub niewykorzystany potencjał do świadczenia usług?",null,null,null,null,null,null,null,null,null,null,null,null,null,null,null,"tak",null,null,"nie"]
[]
[null,null,"d) podmiot ma nadwyżki produkcji11)?",null,null,null,null,null,null,null,null,null,null,null,null,null,null,null,"tak",null,null,"nie"]
[null,null,"e) zmniejsza się przepływ środków finansowych?",null,null,null,null,null,null,null,null,null,null,null,null,null,null,null,"tak",null,null,"nie"]
[null,null,"f) zwiększa się suma zadłużenia podmiotu?",null,null,null,null,null,null,null,null,null,null,null,null,null,null,null,"tak",null,null,"nie"]
[null,null,"g) rosną kwoty odsetek od zobowiązań podmiotu?",null,null,null,null,null,null,null,null,null,null,null,null,null,null,null,"tak",null,null,"nie"]
[null,null,"h) wartość aktywów netto podmiotu zmniejsza się lub jest zerowa?\n",null,null,null,null,null,null,null,null,null,null,null,null,null,null,null,"tak",null,null,"nie"]
[null,null,"i) zaistniały inne okoliczności wskazujące na trudności w zakresie płynności finansowej?",null,null,null,null,null,null,null,null,null,null,null,null,null,null,null,"tak",null,null,"nie"]
[]
[null,null,"Jeśli tak, należy wskazać jakie:"]
[]
[]
[]
[]
[]
[null,"7) Czy którykolwiek z przedsiębiorców powiązanych, których identyfikatory podatkowe są wskazane w części A pkt 9 Formularza spełnia co najmniej jedną z przesłanek określonych w pkt 1-5?",null,null,null,null,null,null,null,null,null,null,null,null,null,null,null,null,null,null,null,null,null,null,null,null,null,"tak",null,null,"nie"]
[null,null,null,null,null,null,null,null,null,null,null,null,null,null,null,null,null,null,null,null,null,null,null,null,null,null,null,"nie dotyczy"]
[null,"C. Informacja o decyzji Komisji Europejskiej nakładającej obowiązek zwrotu udzielonej pomocy publicznej"]
[]
[null,"Czy na podmiocie któremu ma być udzielona pomoc publiczna lub którymkolwiek przedsiębiorcy z nim powiązanym, którego identyfikator podatkowy jest wskazany w części A pkt 9 Formularza, ciąży obowiązek zwrotu udzielonej pomocy, wynikający z decyzji Komisji Europejskiej nakazującej zwrot?",null,null,null,null,null,null,null,null,null,null,null,null,null,null,null,null,null,null,null,null,null,null,null,null,"tak",null,null,"nie"]
[]
[]
[null,"D. Informacje dotyczące działalności gospodarczej prowadzonej przez podmiot, któremu ma być udzielona pomoc publiczna"]
[]
[null,"1. Czy podmiot, któremu ma być udzielona pomoc, prowadzi dzialalność:"]
[null,"a) w sektorze rybołówstwa i akwakultury12)?",null,null,null,null,null,null,null,null,null,null,null,null,null,null,null,null,null,null,null,null,null,null,null,null,"tak",null,null,"nie"]
[null,"b) w zakresie produkcji podstawowej produktów rolnych wymienionych w załączniku I do Traktatu o funkcjonowaniu Unii Europejskiej?",null,null,null,null,null,null,null,null,null,null,null,null,null,null,null,null,null,null,null,null,null,null,null,null,"tak",null,null,"nie"]
[]
[null,"c) w zakresie przetwarzania i wprowadzania do obrotu produktów rolnych wymienionych w załączniku I do Traktatu o funkcjonowaniu Unii Europejskiej?",null,null,null,null,null,null,null,null,null,null,null,null,null,null,null,null,null,null,null,null,null,null,null,null,"tak",null,null,"nie"]
[]
[null,"d) w sektorze hutnictwa żelaza i stali13)?",null,null,null,null,null,null,null,null,null,null,null,null,null,null,null,null,null,null,null,null,null,null,null,null,"tak",null,null,"nie"]
[null,"e) w sektorze budownictwa okrętowego14)?",null,null,null,null,null,null,null,null,null,null,null,null,null,null,null,null,null,null,null,null,null,null,null,null,"tak",null,null,"nie"]
[null,"f) w sektorze włókien syntetycznych15)?",null,null,null,null,null,null,null,null,null,null,null,null,null,null,null,null,null,null,null,null,null,null,null,null,"tak",null,null,"nie"]
[null,"g) w sektorze transportu16) lub związanej z nim infrastruktury?",null,null,null,null,null,null,null,null,null,null,null,null,null,null,null,null,null,null,null,null,null,null,null,null,"tak",null,null,"nie"]
[null,"h) w sektorze wytwarzania energii, jej dystrybucji i infrastruktury energetycznej17)?",null,null,null,null,null,null,null,null,null,null,null,null,null,null,null,null,null,null,null,null,null,null,null,null,"tak",null,null,"nie"]
[null,"i) w sektorze węglowym18)?",null,null,null,null,null,null,null,null,null,null,null,null,null,null,null,null,null,null,null,null,null,null,null,null,"tak",null,null,"nie"]
[null,"j) w sektorze finansowym19)?",null,null,null,null,null,null,null,null,null,null,null,null,null,null,null,null,null,null,null,null,null,null,null,null,"tak",null,null,"nie"]
[null,"2. Czy wnioskowana pomoc przeznaczona będzie na działalność wskazaną w pkt 1 lit. a-j?",null,null,null,null,null,null,null,null,null,null,null,null,null,null,null,null,null,null,null,null,null,null,null,null,"tak",null,null,"nie"]
[null,"3. W przypadku zaznaczenia odpowiedzi twierdzącej w pkt 1 lit. a, b lub d-j, czy zapewniona jest rozdzielność rachunkowa20) uniemożliwiająca przeniesienie na wskazaną w tych punktach działalność korzyści wynikających z uzyskanej pomocy (w jaki sposób)?",null,null,null,null,null,null,null,null,null,null,null,null,null,null,null,null,null,null,null,null,null,null,null,null,"tak",null,null,"nie"]
[null,null,null,null,null,null,null,null,null,null,null,null,null,null,null,null,null,null,null,null,null,null,null,null,null,null,"nie dotyczy"]
[]
[]
[]
[]
[]
[]
[]
[null,"4. Informacje dotyczące planowanego przedsięwzięcia21) na realizację którego podmiot ubiega się o pomoc"]
[null,"a) opis przedsięwzięcia, w tym planowane daty jego rozpoczęcia i zakończenia"]
[]
[null,"b) lokalizacja przedsięwzięcia"]
[]
[null,"c) wykaz kosztów przedsięwzięcia oraz ich wartości nominalne i zdyskontowane"]
[]
[]
[null,"5. w przypadku ubiegania się o regionalną pomoc inwestycyjną udzielaną na waunkach określonych w Wytycznych w sprawie pomocy regionalnej na lata 2014 – 2020 (Dz. Urz. UE C 209 z 23.07.2013, str. 1) lub rozporządzeniu Komisji (UE) nr 651/2014, czy podmiot ubiegający się o pomoc zamknął taką samą lub podobną działalność22) jak wskazana w pkt 4 lit. a na terytorium państwa będącego stroną porozumienia o Europejskim Obszarze Gospodarczym w okresie dwóch lat poprzedzających złożenie wniosku o pomoc lub planuje zamknąć taką działalność w okresie dwóch lat od zakończenia przedsięwzięcia, na realizację którego ubiega sie o pomoc?  ",null,null,null,null,null,null,null,null,null,null,null,null,null,null,null,null,null,null,null,null,null,null,null,null,"tak",null,null,"nie"]
[]
[]
[]
[]
[null,"E. Informacje dotyczące otrzymanej pomocy"]
[null,"1. Czy wnioskowana pomoc zostanie przeznaczona na przedsięwzięcie, na które podmiot otrzymał inną pomoc?",null,null,null,null,null,null,null,null,null,null,null,null,null,null,null,null,null,null,null,null,null,null,null,null,null,"tak",null,null,"nie"]
[]
[null,"2. Czy wnioskowana pomoc zostanie przeznaczona na pokrycie dających się zidentyfikować kosztów?",null,null,null,null,null,null,null,null,null,null,null,null,null,null,null,null,null,null,null,null,null,null,null,null,null,"tak",null,null,"nie"]
[]
[null,"3. W przypadku zaznaczenia odpowiedzi twierdzącej w pkt 2, czy podmiot otrzymał inną pomoc na pokrycie tych samych kosztów, o których mowa w pkt 2?",null,null,null,null,null,null,null,null,null,null,null,null,null,null,null,null,null,null,null,null,null,null,null,null,null,"tak",null,null,"nie"]
[]
[null,"4.  W przypadku ubiegania się o pomoc na ratowanie, restrukturyzację lub tymczasową pomoc na restrukturyzację, czy w okresie 10 lat poprzedzających dzień złożenia wniosku o udzielenie pomocy została udzielona tego rodzaju pomoc lub zakończony został okres restrukturyzacji wspierany pomocą lub wstrzymana została realizacja planu restrukturyzacji wspieranego pomocą?",null,null,null,null,null,null,null,null,null,null,null,null,null,null,null,null,null,null,null,null,null,null,null,null,null,"tak",null,null,"nie"]
[]
[null,null,null,null,null,null,null,null,null,null,null,null,null,null,null,null,null,null,null,null,null,null,null,null,null,null,null,"nie dotyczy"]
[]
[null,"5. W przypadku zaznaczenia odpowiedzi twierdzącej w pkt 1, 3 lub 4 należy wypełnić poniższą tabelę23) w odniesieniu do już otrzymanej pomocy. "]
[null,"Wartość otrzymanej pomocy",null,null,"brutto",null,"6b"]
[]
[]
[]
[]
[null,null,null,null,"nominalna",null,"6a"]
[]
[]
[]
[]
[null,"Forma pomocy",null,null,null,null,5]
[null,"Przeznaczenie pomocy",null,null,null,null,4]
[]
[]
[]
[null,"Podstawa prawna udzielenia pomocy",null,null,"informacje szczegółowe",null,"3b"]
[]
[]
[]
[null,null,null,null,"informacje podstawowe",null,"3a"]
[]
[]
[]
[null,"Podmiot udzielający pomocy",null,null,null,null,2]
[]
[]
[]
[]
[null,"Dzień udzielenia pomocy",null,null,null,null,1]
[]
[]
[]
[null,"Lp.",null,null,null,null,null,null,"1.",null,"2.",null,"3.",null,"4.",null,"5.",null,"6.",null,"7.",null,"8.",null,"9.",null,"10."]
[]
[]
[null,"6.  W przypadku ubiegania się o pomoc w ramach następujących przeznaczeń pomocy:"]
[null,null,"a) na udział mikro-, małych i średnich przedsiębiorców w targach (art. 19 rozporządzenia Komisji (UE) nr 651/2014),"]
[null,null,"b) w formie subsydiowania wynagrodzeń na rekrutację pracowników znajdujących się w szczególnie\nniekorzystnej sytuacji (art. 32 rozporządzenia Komisji (UE) nr 651/2014),"]
[null,null,"c) w formie subsydiowania wynagrodzeń na zatrudnianie pracowników niepełnosprawnych (art. 33 rozporządzenia Komisji (UE) nr 651/2014),"]
[null,null,"d) na rekompensatę dodatkowych kosztów związanych z zatrudnieniem pracowników niepełnosprawnych (art. 34 rozporządzenia Komisji (UE) nr 651/2014),\n"]
[null,null,"e) na rekompensatę kosztów wsparcia udzielanego pracownikom znajdującym się w szczególnie niekorzystnej\nsytuacji (art. 35 rozporządzenia Komisji (UE) nr 651/2014),"]
[null,null,"f) operacyjnej na kulturę i zachowanie dziedzictwa kulturowego (art. 53 rozporządzenia Komisji (UE) nr 651/2014),"]
[null,"należy podać całkowitą wartość w euro24) pomocy  otrzymanej przez podmiot ubiegający się o pomoc oraz powiązane z nim podmioty, których identyfikatory podatkowe są wskazane w części A pkt 9 Formularza w roku, w którym podmiot ubiega się o pomoc, w ramach tego samego przeznaczenia, co przeznaczenie pomocy o którą się ubiega:"]
[]
[null,"7. W przypadku ubiegania się o pomoc na finansowanie ryzyka (art. 21 rozporządzenia Komisji (UE) nr 651/2014) lub pomoc dla przedsiębiorstw rozpoczynających działalność (art. 22 rozporządzenia Komisji (UE) nr 651/2014) należy podać całkowitą wartość w euro24) pomocy otrzymanej przez podmiot ubiegajacy się o pomoc oraz powiązane z nim podmioty, których identyfikatory podatkowe są wskazane wskazane w części A pkt 9 Formularza, w ramach tego samego przeznaczenia, co przeznaczenie pomocy o którą się ubiega:"]
[]
[null,"8. Jeżeli w tabeli zamieszczonej w pkt 5 wykazano jakąkolwiek pomoc, należy dodatkowo podać następujące informacje dotyczące przedzięwzięcia na realizację którego podmiot tę pomoc otrzymał "]
[null,"a) opis przedsięwzięcia25):"]
[]
[null,"b) wykaz kosztów przedsięwzięcia kwalifikujących się do objęcia pomocą oraz ich wartości nominalne i zdyskontowane:"]
[]
[null,"c) lokalizacja przedsięwzięcia:"]
[]
[null,"d) etapy realizacji przedsięwzięcia:"]
[]
[null,"e) data rozpoczęcia i zakończenia realizacji przedsięwzięcia:"]
[]
[null,"F. Informacje dotyczące osoby upoważnionej do przedstawienia informacji"]
[null,"Imię i nazwisko"]
[]
["1)  W przypadku gdy o pomoc wnioskuje wspólnik spółki cywilnej, jawnej albo  partnerskiej albo komplementariusz spółki komandytowej albo komandytowo-akcyjnej niebędący akcjonariuszem, w związku z działalnością prowadzoną w tej spółce, w formularzu podaje się informacje dotyczące tej spółki. W przypadku spółki cywilnej należy podać NIP tej spółki, nazwę pod jaką spółka funkcjonuje na rynku oraz miejsce prowadzenia działalności, a w przypadku braku nazwy i miejsca prowadzenia działalności imiona i nazwiska oraz adresy wszystkich wspólników tej spółki."]
["2) Wypełnia się wyłącznie w przypadku, gdy o pomoc wnioskuje wspólnik spółki cywilnej, jawnej albo partnerskiej albo komplementariusz spółki komandytowej albo komandytowo-akcyjnej niebędący akcjonariuszem, w związku z działalnością prowadzoną w tej spółce (podaje się informacje dotyczące tego wspólnika albo komplementariusza)."]
["3) O ile posiada identyfikator podatkowy NIP."]
["4) Wpisuje się siedmiocyfrowe oznaczenie nadane w sposób określony w rozporządzeniu Rady Ministrów z dnia 15 grudnia 1998 r. w sprawie szczegółowych zasad prowadzenia, stosowania i udostępniania krajowego rejestru urzędowego podziału terytorialnego kraju oraz związanych z tym obowiązków organów administracji rządowej i jednostek samorządu terytorialnego (Dz. U. Nr 157, poz. 1031, z późn. zm.). Lista identyfikatorów gmin znajduje się na stronie internetowej http://www.uokik.gov.pl/sporzadzanie_sprawozdan_z_wykorzystaniem_aplikacji_shrimp.php."]
["5) Zaznacza się właściwą pozycję znakiem X."]
["6) Podaje się klasę działalności, w związku z którą podmiot ubiega się o pomoc. Jeżeli brak jest możliwości ustalenia jednej takiej działalności, podaje się klasę PKD tej działalności, która generuje największy przychód."]
["7) Za rynek pokrewny uważa się rynek dla danego produktu lub usługi znajdujący się bezpośrednio na wyższym lub niższym szczeblu rynku w stosunku do rynku właściwego. "]
["8) Części B formularza nie wypełnia się w przypadku podmiotów, którym pomoc ma być udzielona na podstawie art. 34a ustawy z dnia 8 maja 1997 r. o poręczeniach i gwarancjach udzielanych przez Skarb Państwa oraz niektóre osoby prawne (Dz. U. z 2012 r. poz. 657, z późn. zm.). Ponadto punkty 1 i 2 nie dotyczą mikro-, małych i średnich przedsiębiorców, o których mowa w załączniku I do rozporządzenia Komisji (UE) nr 651/2014, istniejących krócej niż 3 lata (od dnia ich utworzenia do dnia wystąpienia z  wnioskiem o udzielenie pomocy) albo ubiegających się o pomoc udzialaną na warunkach określonych w art. 21 rozporządzenia Komisji (UE) nr 651/2014 w okresie siedmiu lat od daty pierwszej sprzedaży komercyjnej, które kwalifikują się do inwestycji w zakresie finansowania ryzyka w następstwie przeprowadzenia procedury due diligence przez wybranego pośrednika finansowego."]
["9) Warunek jest spełniony, jeśli po odjęciu wartości skumulowanych strat od sumy kapitałów o charakterze rezerwowym (takich jak kapitał zapasowy, rezerwowy oraz kapitał z aktualizacji wyceny) uzyskano wynik ujemny, którego wartość bezwzględna przekracza połowę wartości kapitału zarejestrowanego, tj. akcyjnego lub zakładowego. "]
["10) Wypełnia się jedynie w przypadku podmiotów, którym ma być udzielona pomoc, do obliczenia wartości której konieczne jest ustalenie ich stopy referencyjnej (tj. w formie takiej jak: pożyczki, gwarancje, odroczenia, rozłożenia na raty)."]
["11) Dotyczy wyłącznie producentów."]
["12) Objętych rozporządzeniem Parlamentu Europejskiego i Rady (UE) nr 1379/2013 z dnia 11 grudnia 2013 r. w sprawie wspólnej organizacji rynków produktów rybołówstwa i akwakultury, zmieniającym rozporządzenia Rady (WE) nr 1184/2006 i (WE) nr 1224/2009 oraz uchylającym rozporządzenie Rady (WE) nr 104/2000 (Dz. Urz. UE L 354 z 28.12.2013, str. 1, z późn. zm.)."]
["13) W rozumieniu art. 2 pkt 43 rozporządzenia Komisji (UE) nr 651/2014."]
["14) W rozumieniu Zasad ramowych dotyczacych pomocy państwa dla przemysłu stoczniowego (Dz. Urz. UE C 364 z 14.12.2011, str. 9)."]
["15) W rozumieniu art. 2 pkt 44 rozporządzenia Komisji (UE) nr 651/2014."]
["16) W rozumieniu art. 2 pkt 5 oraz 45 rozporządzenia Komisji (UE) nr 651/2014."]
["17) W rozumieniu art. 2 pkt 130 rozporządzenia Komisji (UE) nr 651/2014."]
["18) W rozumieniu decyzji Rady 2010/787/UE z dnia 10 grudnia 2010 r. w sprawie pomocy państwa ułatwiającej zamykanie niekonkurencyjnych kopalń węgla  (Dz. Urz. UE L 336, z 21.12.2010, str. 24)."]
["19) W rozumieniu rozporządzenia Parlamentu Europejskiego i Rady (UE) nr 575/2013 z dnia 26 czerwca 2013 r. w sprawie wymogów ostrożnościowych dla instytucji kredytowych i firm inwestycyjnych, zmieniającego rozporządzenie (UE) nr 648/2012 (Dz. Urz. UE L 176 z 27.6.2013, str. 1, z późn. zm.)."]
["20) Rozdzielność rachunkowa określonej działalności gospodarczej polega na prowadzeniu odrębnej ewidencji dla tej działalności gospodarczej oraz prawidłowym przypisywaniu przychodów i kosztów na podstawie konsekwentnie stosowanych i mających obiektywne uzasadnienie metod, a także określeniu w dokumentacji, o której mowa w art. 10 ustawy z dnia 29 września 1994 r. o rachunkowości (Dz. U. z 2013 r. poz. 330, z późn zm.), zasad prowadzenia odrębnej ewidencji oraz metod przypisywania kosztów i przychodów."]
["21) Przez przedsięwzięcie należy rozumieć w szczególności projekt, inwestycję, działanie lub usługę świadczoną w ogólnym interesie gospodarczym."]
["22) Przez taką samą lub podobną działalność należy rozumieć działalność wskazaną w art. 2 pkt 50 rozporządzenia Komisji (UE) nr 651/2014."]
["23) Wypełnia się zgodnie z Instrukcją zawartą w części G formularza. "]
["24) Podaje się wartość pomocy w euro obliczoną zgodnie z art. 11 ust. 3 ustawy z dnia 30 kwietnia 2004 r. o postępowaniu w sprawach dotyczących pomocy publicznej."]
["25) W przypadku otrzymania pomocy stanowiącej rekompensatę z tytułu świadczenia usług w ogólnym interesie gospodarczym, należy podać opis usługi, w związku z którą podmiot otrzymywał rekompensatę. Podaje się informacje pozwalające na zidentyfikowanie konkretnej usługi świadczonej przez podmiot, tj. pozwalające odróżnić tę usługę od innych usług świadczonych przez podmiot oraz usług świadczonych przez inne podmioty, np. nazwa usługi świadczonej w ogólnym interesie gospodarczym, sektor w jakim jest świadczona, okres oraz obszar jej wykonywania."]
["G. Instrukcja wypełnienia tabeli w części E formularza "]
["Należy podać informacje o pomocy otrzymanej w odniesieniu do tego samego przedsięwzięcia w związku z realizacją którego wnioskodawca ubiega się o pomoc publiczną, lub pomocy na ratowanie, restrukturyzację lub tymczasową pomoc na restrukturyzację. Na przykład, jeżeli podmiot ubiegający się o pomoc otrzymał w przeszłości pomoc w związku z realizacją inwestycji, należy wykazać jedynie pomoc przeznaczoną na te same koszty kwalifikujące się do objęcia pomocą, na pokrycie których ma być udzielona wnioskowana pomoc."]
["1. Dzień udzielenia pomocy (kol. 1) - należy podać dzień udzielenia pomocy w rozumieniu art. 2 pkt 11 ustawy z dnia 30 kwietnia 2004 r. o postępowaniu w sprawach dotyczących pomocy publicznej."]
["2. Podmiot udzielający pomocy (kol. 2) - należy podać pełną nazwę i adres podmiotu, który udzielił pomocy. W przypadku gdy podmiot uzyskał pomoc na podstawie aktu normatywnego, który uzależnia nabycie prawa do otrzymania pomocy wyłącznie od spełnienia przesłanek w nim określonych, bez konieczności wydania decyzji albo zawarcia umowy, należy pozostawić to miejsce niewypełnione."]
["3. Podstawa prawna otrzymanej pomocy (kol. 3a i 3b)"]
["Uwaga: istnieją następujące możliwości łączenia elementów tworzących podstawę prawną otrzymanej pomocy, które należy wpisać w poszczególnych kolumnach tabeli w sposób przedstawiony poniżej."]
["Podstawa prawna - informacje podstawowe",null,null,null,null,null,null,null,null,null,null,null,null,null," Podstawa prawna - informacje szczegółowe"]
["3a",null,null,null,null,null,null,null,null,null,null,null,null,null," 3b"]
[]
["przepis ustawy",null,null,null,null,null,null,null,null,null,null,null,null,null,"brak*"]
["przepis ustawy",null,null,null,null,null,null,null,null,null,null,null,null,null,"przepis aktu wykonawczego"]
["przepis ustawy",null,null,null,null,null,null,null,null,null,null,null,null,null,"przepis aktu wykonawczego "]
[null,null,null,null,null,null,null,null,null,null,null,null,null,null,"decyzja/uchwała/"]
[null,null,null,null,null,null,null,null,null,null,null,null,null,null,"umowa – symbol"]
["przepis ustawy",null,null,null,null,null,null,null,null,null,null,null,null,null,"decyzja/uchwała/umowa – symbol"]
[]
["* W przypadku braku aktu wykonawczego, decyzji, uchwały i umowy należy wpisać określenie „brak”."]
["Kol. 3a Podstawa prawna - informacje podstawowe - należy podać w następującej kolejności: datę i tytuł oraz oznaczenie roku (numeru) i pozycji Dziennika Ustaw, w którym ustawa została opublikowana oraz oznaczenie przepisu ustawy będącego podstawą udzielenia pomocy (w kolejności: artykuł, ustęp, punkt, litera, tiret)."]
["Kol. 3b Podstawa prawna - informacje szczegółowe - jeżeli podstawą udzielenia pomocy był akt wykonawczy do ustawy, należy podać w następującej kolejności: nazwę organu wydającego akt, datę aktu i tytuł aktu oraz oznaczenie roku (numeru) i pozycji Dziennika Ustaw, w którym akt został opublikowany oraz przepis aktu wykonawczego będącego podstawą udzielenia pomocy (w kolejności: paragraf, ustęp, punkt, litera, tiret). Akt powinien być aktem wykonawczym do ustawy wskazanej w kol. 3a. W przypadku braku aktu wykonawczego będącego podstawą prawną udzielenia pomocy, należy wstawić określenie „brak”. Jeżeli podstawą udzielenia pomocy była decyzja, uchwała lub umowa, należy podać symbol określający ten akt; w przypadku decyzji - numer decyzji, w przypadku uchwały - numer uchwały, w przypadku umowy – numer, przedmiot oraz strony umowy. W przypadku braku decyzji, uchwały lub umowy będącej podstawą prawną udzielenia pomocy, należy wstawić określenie „brak”."]
["4. Przeznaczenie pomocy publicznej (kol. 4) - należy podać kod wskazujący przeznaczenie otrzymanej pomocy według poniższej tabeli."]
["W przypadku pomocy de minimis:",null,null,null,null,null,null,null,null,null,null,null,null,null,null,null,null,null,null,null,null,null,null,null,null,null,null,null,"Kod"]
["pomoc de minimis",null,null,null,null,null,null,null,null,null,null,null,null,null,null,null,null,null,null,null,null,null,null,null,null,null,null,null,"e1"]
["pomoc de minimis w sektorze transportu drogowego udzielana zgodnie z rozporządzeniem Komisji nr 1998/2006 oraz pomoc de minimis w sektorze transportu drogowego towarów udzielana zgodnie z rozporządzeniem Komisji nr 1407/2013",null,null,null,null,null,null,null,null,null,null,null,null,null,null,null,null,null,null,null,null,null,null,null,null,null,null,null,"e1t"]
["pomoc de minimis stanowiąca rekompensatę za realizację usług świadczonych w ogólnym interesie gospodarczym udzielana zgodnie z rozporządzeniem Komisji nr 360/2012",null,null,null,null,null,null,null,null,null,null,null,null,null,null,null,null,null,null,null,null,null,null,null,null,null,null,null,"e1c"]
["W przypadku pomocy publicznej:",null,null,null,null,null,null,null,null,null,null,null,null,null,null,null,null,null,null,null,null,null,null,null,null,null,null,null,"Kod"]
["A. POMOC HORYZONTALNA"]
["Pomoc na działalność badawczą, rozwojową i innowacyjną"]
["pomoc na projekty badawczo-rozwojowe: badania podstawowe",null,null,null,null,null,null,null,null,null,null,null,null,null,null,null,null,null,null,null,null,null,null,null,null,null,null,null,"a1.1.1"]
["pomoc na projekty badawczo-rozwojowe: badania przemysłowe",null,null,null,null,null,null,null,null,null,null,null,null,null,null,null,null,null,null,null,null,null,null,null,null,null,null,null,"a1.1.2"]
["pomoc na projekty badawczo-rozwojowe: eksperymentalne prace rozwojowe",null,null,null,null,null,null,null,null,null,null,null,null,null,null,null,null,null,null,null,null,null,null,null,null,null,null,null,"a1.1.3"]
["pomoc dla małych i średnich przedsiębiorstw na wspieranie innowacyjności",null,null,null,null,null,null,null,null,null,null,null,null,null,null,null,null,null,null,null,null,null,null,null,null,null,null,null,"a1.2"]
["pomoc na studia wykonalności",null,null,null,null,null,null,null,null,null,null,null,null,null,null,null,null,null,null,null,null,null,null,null,null,null,null,null,"a1.3"]
["pomoc na innowacje procesowe i organizacyjne",null,null,null,null,null,null,null,null,null,null,null,null,null,null,null,null,null,null,null,null,null,null,null,null,null,null,null,"a1.4"]
["pomoc dla klastrów innowacyjnych",null,null,null,null,null,null,null,null,null,null,null,null,null,null,null,null,null,null,null,null,null,null,null,null,null,null,null,"a1.7"]
["pomoc inwestycyjna na infrastrukturę badawczą",null,null,null,null,null,null,null,null,null,null,null,null,null,null,null,null,null,null,null,null,null,null,null,null,null,null,null,"a1.9"]
["pomoc na dzialalność badawczo-rozwojową w sektorze rybołówstwa i akwakultury",null,null,null,null,null,null,null,null,null,null,null,null,null,null,null,null,null,null,null,null,null,null,null,null,null,null,null,"a.1.10"]
["Pomoc na ochronę środowiska i cele związane z energią"]
["pomoc inwestycyjna umożliwiająca przedsiębiorstwom dostosowanie do norm unijnych (zgodnie z załącznikiem XII Traktatu o przystąpieniu Rzeczpospolitej Polskiej do Unii Europejskiej), zastosowanie norm surowszych niż normy unijne w zakresie ochrony środowiska lub podniesienie poziomu ochrony środowiska w przypadku braku norm unijnych",null,null,null,null,null,null,null,null,null,null,null,null,null,null,null,null,null,null,null,null,null,null,null,null,null,null,null,"a2.1"]
["pomoc na wcześniejsze dostosowanie przedsiębiorstw do przyszłych norm unijnych",null,null,null,null,null,null,null,null,null,null,null,null,null,null,null,null,null,null,null,null,null,null,null,null,null,null,null,"a2.3"]
["pomoc inwestycyjna na środki wspierające efektywność energetyczną",null,null,null,null,null,null,null,null,null,null,null,null,null,null,null,null,null,null,null,null,null,null,null,null,null,null,null,"a2.4"]
["pomoc inwestycyjna na projekty wspierające efektywność energetyczną w budynkach ",null,null,null,null,null,null,null,null,null,null,null,null,null,null,null,null,null,null,null,null,null,null,null,null,null,null,null,"a2.4.1"]
["pomoc na wysokosprawną kogenerację",null,null,null,null,null,null,null,null,null,null,null,null,null,null,null,null,null,null,null,null,null,null,null,null,null,null,null,"a2.5"]
["pomoc inwestycyjna na propagowanie energii ze źródeł odnawialnych",null,null,null,null,null,null,null,null,null,null,null,null,null,null,null,null,null,null,null,null,null,null,null,null,null,null,null,"a2.6.1"]
["pomoc operacyjna na propagowanie energii ze źródeł odnawialnych",null,null,null,null,null,null,null,null,null,null,null,null,null,null,null,null,null,null,null,null,null,null,null,null,null,null,null,"a2.6.2"]
["pomoc operacyjna na propagowanie energii ze źródeł odnawialnych w instalacjach działających na małą skalę",null,null,null,null,null,null,null,null,null,null,null,null,null,null,null,null,null,null,null,null,null,null,null,null,null,null,null,"a2.6.3"]
["pomoc na badania środowiska",null,null,null,null,null,null,null,null,null,null,null,null,null,null,null,null,null,null,null,null,null,null,null,null,null,null,null,"a2.7"]
["pomoc w formie ulg podatkowych na ochronę środowiska na mocy dyrektywy 2003/96/WE",null,null,null,null,null,null,null,null,null,null,null,null,null,null,null,null,null,null,null,null,null,null,null,null,null,null,null,"a2.8"]
["pomoc w formie ulg podatkowych na odnawialne źródła energii",null,null,null,null,null,null,null,null,null,null,null,null,null,null,null,null,null,null,null,null,null,null,null,null,null,null,null,"a2.8.1"]
["pomoc inwestycyjna na efektywny energetycznie system ciepłowniczy i chłodniczy",null,null,null,null,null,null,null,null,null,null,null,null,null,null,null,null,null,null,null,null,null,null,null,null,null,null,null,"a2.9"]
["pomoc na gospodarowanie odpadami",null,null,null,null,null,null,null,null,null,null,null,null,null,null,null,null,null,null,null,null,null,null,null,null,null,null,null,"a2.10"]
["pomoc inwestycyjna na rekultywację zanieczyszczonych terenów",null,null,null,null,null,null,null,null,null,null,null,null,null,null,null,null,null,null,null,null,null,null,null,null,null,null,null,"a2.11"]
["pomoc na relokację przedsiębiorstw",null,null,null,null,null,null,null,null,null,null,null,null,null,null,null,null,null,null,null,null,null,null,null,null,null,null,null,"a2.12"]
["pomoc w postaci systemów przydziałów emisji gazów cieplarnianych ",null,null,null,null,null,null,null,null,null,null,null,null,null,null,null,null,null,null,null,null,null,null,null,null,null,null,null,"a2.13"]
["pomoc na wychwytywanie i składowanie dwutlenku węgla",null,null,null,null,null,null,null,null,null,null,null,null,null,null,null,null,null,null,null,null,null,null,null,null,null,null,null,"a2.14"]
["pomoc inwestycyjna na infrastrukturę energetyczną",null,null,null,null,null,null,null,null,null,null,null,null,null,null,null,null,null,null,null,null,null,null,null,null,null,null,null,"a2.15"]
["pomoc na zapewnienie wystarczalności mocy wytwórczych",null,null,null,null,null,null,null,null,null,null,null,null,null,null,null,null,null,null,null,null,null,null,null,null,null,null,null,"a2.16"]
["Pomoc dla małych i średnich przedsiębiorstw"]
["pomoc inwestycyjna",null,null,null,null,null,null,null,null,null,null,null,null,null,null,null,null,null,null,null,null,null,null,null,null,null,null,null,"a3"]
["pomoc na usługi doradcze",null,null,null,null,null,null,null,null,null,null,null,null,null,null,null,null,null,null,null,null,null,null,null,null,null,null,null,"a5"]
["pomoc na udział w targach",null,null,null,null,null,null,null,null,null,null,null,null,null,null,null,null,null,null,null,null,null,null,null,null,null,null,null,"a6"]
["pomoc na udział w projektach w ramach Europejskiej Współpracy Terytorialnej",null,null,null,null,null,null,null,null,null,null,null,null,null,null,null,null,null,null,null,null,null,null,null,null,null,null,null,"a25"]
["Pomoc dla pracowników znajdujących się w szczególnie niekorzystnej sytuacji oraz pracowników niepełnosprawnych"]
["pomoc w formie subsydiów płacowych na rekrutację pracowników znajdujących się w szczególnie niekorzystnej sytuacji",null,null,null,null,null,null,null,null,null,null,null,null,null,null,null,null,null,null,null,null,null,null,null,null,null,null,null,"a11"]
["pomoc na rekompensatę kosztów wsparcia udzielanego pracownikom znajdującym się w szczególnie niekorzystnej sytuacji",null,null,null,null,null,null,null,null,null,null,null,null,null,null,null,null,null,null,null,null,null,null,null,null,null,null,null,"a11.1"]
["pomoc w formie subsydiowania wynagrodzeń na rekrutację pracowników niepełnosprawnych",null,null,null,null,null,null,null,null,null,null,null,null,null,null,null,null,null,null,null,null,null,null,null,null,null,null,null,"a12"]
["pomoc na rekompensatę dodatkowych kosztów związanych z zatrudnianiem pracowników niepełnosprawnych",null,null,null,null,null,null,null,null,null,null,null,null,null,null,null,null,null,null,null,null,null,null,null,null,null,null,null,"a13"]
["Pomoc szkoleniowa",null,null,null,null,null,null,null,null,null,null,null,null,null,null,null,null,null,null,null,null,null,null,null,null,null,null,null,"a14"]
["Pomoc na ratowanie",null,null,null,null,null,null,null,null,null,null,null,null,null,null,null,null,null,null,null,null,null,null,null,null,null,null,null,"a15"]
["Pomoc na restrukturyzację",null,null,null,null,null,null,null,null,null,null,null,null,null,null,null,null,null,null,null,null,null,null,null,null,null,null,null,"a16"]
["Tymczasowa pomoc na restrukturyzację",null,null,null,null,null,null,null,null,null,null,null,null,null,null,null,null,null,null,null,null,null,null,null,null,null,null,null,"a16.1"]
["Pomoc udzielana na naprawienie szkód wyrządzonych przez klęski żywiołowe lub inne nadzwyczajne zdarzenia",null,null,null,null,null,null,null,null,null,null,null,null,null,null,null,null,null,null,null,null,null,null,null,null,null,null,null,"a17"]
["Pomoc udzielana na zapobieżenie lub likwidację poważnych zakłóceń w gospodarce o charakterze ponadsektorowym",null,null,null,null,null,null,null,null,null,null,null,null,null,null,null,null,null,null,null,null,null,null,null,null,null,null,null,"a18"]
["Pomoc udzielana na wsparcie krajowych przedsiębiorców działających w ramach przedsięwzięcia gospodarczego podejmowanego w interesie europejskim",null,null,null,null,null,null,null,null,null,null,null,null,null,null,null,null,null,null,null,null,null,null,null,null,null,null,null,"a19"]
["Pomoc na wspieranie kultury i zachowanie dziedzictwa kulturowego",null,null,null,null,null,null,null,null,null,null,null,null,null,null,null,null,null,null,null,null,null,null,null,null,null,null,null,"a20"]
["Pomoc o charakterze socjalnym dla indywidualnych konsumentów",null,null,null,null,null,null,null,null,null,null,null,null,null,null,null,null,null,null,null,null,null,null,null,null,null,null,null,"a21"]
["Pomoc w formie kapitału podwyższonego ryzyka",null,null,null,null,null,null,null,null,null,null,null,null,null,null,null,null,null,null,null,null,null,null,null,null,null,null,null,"a22"]
["Pomoc na dostęp małych i średnich przedsiębiorstw do finansowania"]
["pomoc na finansowanie ryzyka",null,null,null,null,null,null,null,null,null,null,null,null,null,null,null,null,null,null,null,null,null,null,null,null,null,null,null,"a22.1"]
["pomoc dla przedsiębiorstw rozpoczynających działalność",null,null,null,null,null,null,null,null,null,null,null,null,null,null,null,null,null,null,null,null,null,null,null,null,null,null,null,"a22.2"]
["pomoc na rzecz alternatywnych platform specjalizujących się w małych i średnich \nprzedsiębiorstwach\n",null,null,null,null,null,null,null,null,null,null,null,null,null,null,null,null,null,null,null,null,null,null,null,null,null,null,null,"a22.3"]
["pomoc na koszty rozpoznania",null,null,null,null,null,null,null,null,null,null,null,null,null,null,null,null,null,null,null,null,null,null,null,null,null,null,null,"a22.4"]
["Pomoc przeznaczona na ułatwianie rozwoju niektórych działań gospodarczych lub niektórych regionów gospodarczych, o ile nie zmienia warunków wymiany handlowej w zakresie sprzecznym z rynkiem wewnętrznym",null,null,null,null,null,null,null,null,null,null,null,null,null,null,null,null,null,null,null,null,null,null,null,null,null,null,null,"a23"]
["Pomoc inwestycyjna na infrastrukturę lokalną",null,null,null,null,null,null,null,null,null,null,null,null,null,null,null,null,null,null,null,null,null,null,null,null,null,null,null,"a26"]
["Pomoc na działalność sportową i rekreacyjną",null,null,null,null,null,null,null,null,null,null,null,null,null,null,null,null,null,null,null,null,null,null,null,null,null,null,null,"a27"]
["B. POMOC REGIONALNA"]
["pomoc inwestycyjna",null,null,null,null,null,null,null,null,null,null,null,null,null,null,null,null,null,null,null,null,null,null,null,null,null,null,null,"b1"]
["pomoc operacyjna",null,null,null,null,null,null,null,null,null,null,null,null,null,null,null,null,null,null,null,null,null,null,null,null,null,null,null,"b4"]
["pomoc regionalna na rzecz rozwoju obszarów miejskich",null,null,null,null,null,null,null,null,null,null,null,null,null,null,null,null,null,null,null,null,null,null,null,null,null,null,null,"b6"]
["C. INNE PRZEZNACZENIE"]
["pomoc stanowiąca rekompensatę za realizację usług świadczonych w ogólnym interesie \ngospodarczym lub rekompensatę za realizację usług publicznych w sektorze transportu \nlądowego",null,null,null,null,null,null,null,null,null,null,null,null,null,null,null,null,null,null,null,null,null,null,null,null,null,null,null,"c5"]
["D. POMOC W SEKTORACH - przeznaczenia szczególne"]
["SEKTOR GÓRNICTWA WĘGLA"]
["pomoc na pokrycie kosztów nadzwyczajnych",null,null,null,null,null,null,null,null,null,null,null,null,null,null,null,null,null,null,null,null,null,null,null,null,null,null,null,"d3.1"]
["pomoc na zamknięcie",null,null,null,null,null,null,null,null,null,null,null,null,null,null,null,null,null,null,null,null,null,null,null,null,null,null,null,"d3.2"]
["SEKTOR TRANSPORTU"]
["ŻEGLUGA MORSKA"]
["pomoc inwestycyjna",null,null,null,null,null,null,null,null,null,null,null,null,null,null,null,null,null,null,null,null,null,null,null,null,null,null,null,"d4.1"]
["pomoc na poprawę konkurencyjności",null,null,null,null,null,null,null,null,null,null,null,null,null,null,null,null,null,null,null,null,null,null,null,null,null,null,null,"d4.2"]
["pomoc na repatriację marynarzy",null,null,null,null,null,null,null,null,null,null,null,null,null,null,null,null,null,null,null,null,null,null,null,null,null,null,null,"d4.3"]
["pomoc na wsparcie żeglugi bliskiego zasięgu",null,null,null,null,null,null,null,null,null,null,null,null,null,null,null,null,null,null,null,null,null,null,null,null,null,null,null,"d4.4"]
["LOTNICTWO"]
["pomoc inwestycyjna na rzecz portów lotniczych",null,null,null,null,null,null,null,null,null,null,null,null,null,null,null,null,null,null,null,null,null,null,null,null,null,null,null,"d5.1"]
["pomoc na rozpoczęcie działalności dla przedsiębiorstw lotniczych",null,null,null,null,null,null,null,null,null,null,null,null,null,null,null,null,null,null,null,null,null,null,null,null,null,null,null,"d5.3"]
["pomoc operacyjna dla portów lotniczych",null,null,null,null,null,null,null,null,null,null,null,null,null,null,null,null,null,null,null,null,null,null,null,null,null,null,null,"d5.4"]
["pomoc o charakterze socjalnym dla indywidualnych konsumentów",null,null,null,null,null,null,null,null,null,null,null,null,null,null,null,null,null,null,null,null,null,null,null,null,null,null,null,"d5.5"]
["SEKTOR KOLEJOWY"]
["pomoc regionalna w celu zakupu lub modernizacji taboru",null,null,null,null,null,null,null,null,null,null,null,null,null,null,null,null,null,null,null,null,null,null,null,null,null,null,null,"d6.1"]
["pomoc w celu anulowania długów",null,null,null,null,null,null,null,null,null,null,null,null,null,null,null,null,null,null,null,null,null,null,null,null,null,null,null,"d6.2"]
["pomoc na koordynację transportu",null,null,null,null,null,null,null,null,null,null,null,null,null,null,null,null,null,null,null,null,null,null,null,null,null,null,null,"d6.3"]
["TRANSPORT MULTIMODALNY I INTERMODALNY",null,null,null,null,null,null,null,null,null,null,null,null,null,null,null,null,null,null,null,null,null,null,null,null,null,null,null,"d7"]
["INNA POMOC W SEKTORZE TRANSPORTU",null,null,null,null,null,null,null,null,null,null,null,null,null,null,null,null,null,null,null,null,null,null,null,null,null,null,null,"t"]
["SEKTOR ENERGETYKI",null,null,null,null,null,null,null,null,null,null,null,null,null,null,null,null,null,null,null,null,null,null,null,null,null,null,null,"d8"]
["pomoc na pokrycie kosztów powstałych u wytwórców w związku z przedterminowym rozwiązaniem umów długoterminowych sprzedaży mocy i energii elektrycznej"]
["SEKTOR KINEMATOGRAFII",null,null,null,null,null,null,null,null,null,null,null,null,null,null,null,null,null,null,null,null,null,null,null,null,null,null,null,"d9"]
["pomoc dotycząca kinematografii i innych przedsięwzięć audio-wizualnych"]
["SEKTOR TELEKOMUNIKACYJNY",null,null,null,null,null,null,null,null,null,null,null,null,null,null,null,null,null,null,null,null,null,null,null,null,null,null,null,"d10"]
["SEKTOR BANKOWY",null,null,null,null,null,null,null,null,null,null,null,null,null,null,null,null,null,null,null,null,null,null,null,null,null,null,null,"d11"]
["5. Forma pomocy (kol. 5) - należy podać wyłącznie kod oznaczający właściwą formę pomocy.",null,null,null,null,null,null,null,null,null,null,null,null,null,null,null,null,null,null,null,null,null,null,null,null,null,null,null,"Kod"]
["dotacja i inne bezzwrotne świadczenia",null,null,null,null,null,null,null,null,null,null,null,null,null,null,null,null,null,null,null,null,null,null,null,null,null,null,null,"A1.1"]
["dopłaty do oprocentowania kredytów bankowych (bezpośrednio dla przedsiębiorców)",null,null,null,null,null,null,null,null,null,null,null,null,null,null,null,null,null,null,null,null,null,null,null,null,null,null,null,"A1.2"]
["inne wydatki związane z funkcjonowaniem jednostek budżetowych lub realizacją ich zadań statutowych",null,null,null,null,null,null,null,null,null,null,null,null,null,null,null,null,null,null,null,null,null,null,null,null,null,null,null,"A1.3"]
["refundacja",null,null,null,null,null,null,null,null,null,null,null,null,null,null,null,null,null,null,null,null,null,null,null,null,null,null,null,"A1.4"]
["rekompensata",null,null,null,null,null,null,null,null,null,null,null,null,null,null,null,null,null,null,null,null,null,null,null,null,null,null,null,"A1.5"]
["zwolnienie z podatku",null,null,null,null,null,null,null,null,null,null,null,null,null,null,null,null,null,null,null,null,null,null,null,null,null,null,null,"A2.1"]
["odliczenie od podatku",null,null,null,null,null,null,null,null,null,null,null,null,null,null,null,null,null,null,null,null,null,null,null,null,null,null,null,"A2.2"]
["obniżka lub zmniejszenie, powodujące obniżenie podstawy opodatkowania lub wysokości podatku",null,null,null,null,null,null,null,null,null,null,null,null,null,null,null,null,null,null,null,null,null,null,null,null,null,null,null,"A2.3"]
["obniżenie wysokości opłaty",null,null,null,null,null,null,null,null,null,null,null,null,null,null,null,null,null,null,null,null,null,null,null,null,null,null,null,"A2.4"]
["zwolnienie z opłaty",null,null,null,null,null,null,null,null,null,null,null,null,null,null,null,null,null,null,null,null,null,null,null,null,null,null,null,"A2.5"]
["zaniechanie poboru podatku",null,null,null,null,null,null,null,null,null,null,null,null,null,null,null,null,null,null,null,null,null,null,null,null,null,null,null,"A2.6"]
["zaniechanie poboru opłaty",null,null,null,null,null,null,null,null,null,null,null,null,null,null,null,null,null,null,null,null,null,null,null,null,null,null,null,"A2.7"]
["umorzenie w całości lub w części zaległości podatkowej wraz z odsetkami",null,null,null,null,null,null,null,null,null,null,null,null,null,null,null,null,null,null,null,null,null,null,null,null,null,null,null,"A2.8"]
["umorzenie w całości lub w części odsetek od zaległości podatkowej",null,null,null,null,null,null,null,null,null,null,null,null,null,null,null,null,null,null,null,null,null,null,null,null,null,null,null,"A2.9"]
["umorzenie opłaty (składki, wpłaty)",null,null,null,null,null,null,null,null,null,null,null,null,null,null,null,null,null,null,null,null,null,null,null,null,null,null,null,"A2.10"]
["umorzenie w całości lub w części odsetek za zwłokę z tytułu opłaty (składki, wpłaty, kary)",null,null,null,null,null,null,null,null,null,null,null,null,null,null,null,null,null,null,null,null,null,null,null,null,null,null,null,"A2.11"]
["umorzenie kar",null,null,null,null,null,null,null,null,null,null,null,null,null,null,null,null,null,null,null,null,null,null,null,null,null,null,null,"A2.12"]
["oddanie do korzystania mienia będącego własnością Skarbu Państwa albo jednostek samorządu terytorialnego lub ich związków na warunkach korzystniejszych dla przedsiębiorcy od oferowanych na rynku",null,null,null,null,null,null,null,null,null,null,null,null,null,null,null,null,null,null,null,null,null,null,null,null,null,null,null,"A2.13"]
["zbycie mienia będącego własnością Skarbu Państwa albo jednostek samorządu terytorialnego lub ich związków na warunkach korzystniejszych od oferowanych na rynku",null,null,null,null,null,null,null,null,null,null,null,null,null,null,null,null,null,null,null,null,null,null,null,null,null,null,null,"A2.14"]
["umorzenie kosztów egzekucyjnych",null,null,null,null,null,null,null,null,null,null,null,null,null,null,null,null,null,null,null,null,null,null,null,null,null,null,null,"A2.15"]
["jednorazowa amortyzacja",null,null,null,null,null,null,null,null,null,null,null,null,null,null,null,null,null,null,null,null,null,null,null,null,null,null,null,"A2.16"]
["umorzenie kosztów procesu sądowego",null,null,null,null,null,null,null,null,null,null,null,null,null,null,null,null,null,null,null,null,null,null,null,null,null,null,null,"A2.17"]
["wniesienie kapitału",null,null,null,null,null,null,null,null,null,null,null,null,null,null,null,null,null,null,null,null,null,null,null,null,null,null,null,"B1.1"]
["konwersja wierzytelności na akcje lub udziały",null,null,null,null,null,null,null,null,null,null,null,null,null,null,null,null,null,null,null,null,null,null,null,null,null,null,null,"B2.1"]
["pożyczka preferencyjna",null,null,null,null,null,null,null,null,null,null,null,null,null,null,null,null,null,null,null,null,null,null,null,null,null,null,null,"C1.1"]
["kredyt preferencyjny",null,null,null,null,null,null,null,null,null,null,null,null,null,null,null,null,null,null,null,null,null,null,null,null,null,null,null,"C1.2"]
["dopłaty do oprocentowania kredytów bankowych (dla banków)",null,null,null,null,null,null,null,null,null,null,null,null,null,null,null,null,null,null,null,null,null,null,null,null,null,null,null,"C1.3"]
["pożyczki warunkowo umorzone",null,null,null,null,null,null,null,null,null,null,null,null,null,null,null,null,null,null,null,null,null,null,null,null,null,null,null,"C1.4"]
["odroczenie terminu płatności podatku",null,null,null,null,null,null,null,null,null,null,null,null,null,null,null,null,null,null,null,null,null,null,null,null,null,null,null,"C2.1"]
["odroczenie terminu zapłaty zaległości podatkowej lub zaległości podatkowej wraz z odsetkami",null,null,null,null,null,null,null,null,null,null,null,null,null,null,null,null,null,null,null,null,null,null,null,null,null,null,null,"C2.1.2"]
["rozłożenie na raty płatności podatku",null,null,null,null,null,null,null,null,null,null,null,null,null,null,null,null,null,null,null,null,null,null,null,null,null,null,null,"C2.2"]
["rozłożenie na raty płatności zaległości podatkowej lub zaległości podatkowej wraz z odsetkami",null,null,null,null,null,null,null,null,null,null,null,null,null,null,null,null,null,null,null,null,null,null,null,null,null,null,null,"C2.3.1"]
["odroczenie terminu płatności opłaty (składki, wpłaty)",null,null,null,null,null,null,null,null,null,null,null,null,null,null,null,null,null,null,null,null,null,null,null,null,null,null,null,"C2.4"]
["odroczenie terminu zapłaty zaległej opłaty (składki, wpłaty, kary) lub zaległej opłaty (składki, wpłaty, kary) wraz z odsetkami",null,null,null,null,null,null,null,null,null,null,null,null,null,null,null,null,null,null,null,null,null,null,null,null,null,null,null,"C2.4.1"]
["rozłożenie na raty opłaty (składki, wpłaty)",null,null,null,null,null,null,null,null,null,null,null,null,null,null,null,null,null,null,null,null,null,null,null,null,null,null,null,"C2.5"]
["rozłożenie na raty płatności zaległej opłaty (składki, wpłaty, kary) lub zaległej opłaty (składki, wpłaty, kary) wraz z odsetkami",null,null,null,null,null,null,null,null,null,null,null,null,null,null,null,null,null,null,null,null,null,null,null,null,null,null,null,"C2.5.1"]
["odroczenie terminu płatności kary",null,null,null,null,null,null,null,null,null,null,null,null,null,null,null,null,null,null,null,null,null,null,null,null,null,null,null,"C2.6"]
["rozłożenie na raty kary",null,null,null,null,null,null,null,null,null,null,null,null,null,null,null,null,null,null,null,null,null,null,null,null,null,null,null,"C2.7"]
["rozłożenie na raty kosztów egzekucyjnych",null,null,null,null,null,null,null,null,null,null,null,null,null,null,null,null,null,null,null,null,null,null,null,null,null,null,null,"C2.8"]
["rozłożenie na raty odsetek",null,null,null,null,null,null,null,null,null,null,null,null,null,null,null,null,null,null,null,null,null,null,null,null,null,null,null,"C2.9"]
["odroczenie terminu płatności kosztów egzekucyjnych",null,null,null,null,null,null,null,null,null,null,null,null,null,null,null,null,null,null,null,null,null,null,null,null,null,null,null,"C2.10"]
["odroczenie terminu płatności odsetek",null,null,null,null,null,null,null,null,null,null,null,null,null,null,null,null,null,null,null,null,null,null,null,null,null,null,null,"C2.11"]
["odroczenie terminu płatności kosztów procesu sądowego",null,null,null,null,null,null,null,null,null,null,null,null,null,null,null,null,null,null,null,null,null,null,null,null,null,null,null,"C2.12"]
["rozłożenie na raty kosztów procesu sądowego",null,null,null,null,null,null,null,null,null,null,null,null,null,null,null,null,null,null,null,null,null,null,null,null,null,null,null,"C2.13"]
["poręczenie",null,null,null,null,null,null,null,null,null,null,null,null,null,null,null,null,null,null,null,null,null,null,null,null,null,null,null,"D1.1"]
["gwarancja",null,null,null,null,null,null,null,null,null,null,null,null,null,null,null,null,null,null,null,null,null,null,null,null,null,null,null,"D1.2"]
["inne",null,null,null,null,null,null,null,null,null,null,null,null,null,null,null,null,null,null,null,null,null,null,null,null,null,null,null,"E"]
["6. Wartość otrzymanej pomocy publicznej lub pomocy de minimis (kol. 6a i 6b) - należy podać: "]
["a) wartość nominalną pomocy (jako całkowitą wielkość środków finansowych będących podstawą do obliczania wielkości udzielonej pomocy, np. kwota udzielonej pożyczki lub kwota odroczonego podatku) oraz"]
["b) wartość brutto (jako ekwiwalent dotacji brutto obliczony zgodnie z rozporządzeniem Rady Ministrów wydanym na podstawie art. 11 ust. 2  ustawy z dnia 30 kwietnia 2004 r. o postępowaniu w sprawach dotyczących pomocy publicznej oraz właściwymi przepisami unijnymi)."]

{"sheet":"Formularz pomocy de minimis","index":17,"n_rows":237,"n_cols":31,"rows_kept":237,"cut":false,"hidden":false,"merged":[[231,0,231,31],[232,0,232,31],[233,0,233,31],[234,0,234,31],[235,0,235,31],[236,0,236,31],[226,0,228,13],[226,14,226,26],[227,14,227,26],[228,14,228,26],[229,0,230,13],[229,14,230,26],[222,0,223,13],[222,14,223,26],[224,0,224,13],[224,14,224,26],[225,0,225,13],[225,14,225,26],[217,0,217,31],[218,0,218,31],[219,0,219,31],[220,0,220,31],[221,0,221,13],[221,14,221,26],[211,0,211,31],[212,0,212,31],[213,0,213,31],[214,0,214,31],[215,0,215,31],[216,0,216,31],[205,0,205,31],[206,0,206,31],[207,0,207,31],[208,0,208,31],[209,0,209,31],[210,0,210,31],[199,1,199,30],[200,1,200,30],[201,0,201,31],[202,0,202,31],[203,0,203,31],[204,0,204,31],[193,1,193,30],[194,1,194,30],[195,1,195,30],[196,1,196,30],[197,1,197,30],[198,1,198,30],[187,1,187,30],[188,1,188,30],[189,1,189,30],[190,1,190,30],[191,1,191,30],[192,1,192,30],[182,22,183,23],[182,24,183,25],[182,26,183,27],[184,1,184,30],[185,1,185,30],[186,1,186,30],[178,1,181,5],[178,6,181,7],[178,8,181,9],[178,10,181,11],[178,12,181,13],[178,26,181,27],[182,1,183,5],[182,6,183,7],[182,8,183,9],[182,10,183,11],[182,12,183,13],[182,14,183,15],[182,16,183,17],[182,18,183,19],[182,20,183,21],[178,14,181,15],[178,16,181,17],[178,18,181,19],[178,20,181,21],[178,22,181,23],[178,24,181,25],[165,10,168,11],[165,12,168,13],[169,22,172,23],[169,24,172,25],[169,26,172,27],[173,1,177,5],[173,6,177,7],[173,8,177,9],[173,10,177,11],[173,12,177,13],[173,14,177,15],[173,16,177,17],[165,1,172,3],[173,18,177,19],[173,20,177,21],[173,22,177,23],[173,24,177,25],[173,26,177,27],[161,26,164,27],[156,20,160,21],[156,22,160,23],[156,24,160,25],[156,26,160,27],[165,26,168,27],[169,4,172,5],[169,6,172,7],[169,8,172,9],[169,10,172,11],[169,12,172,13],[169,14,172,15],[169,16,172,17],[169,18,172,19],[169,20,172,21],[165,14,168,15],[165,16,168,17],[165,18,168,19],[165,20,168,21],[165,22,168,23],[165,24,168,25],[165,4,168,5],[165,6,168,7],[165,8,168,9],[151,16,155,17],[151,18,155,19],[151,20,155,21],[151,22,155,23],[161,16,164,17],[161,18,164,19],[161,20,164,21],[161,22,164,23],[161,24,164,25],[147,26,150,27],[151,1,160,3],[151,4,155,5],[151,6,155,7],[151,8,155,9],[151,10,155,11],[161,1,164,5],[161,6,164,7],[161,8,164,9],[161,10,164,11],[161,12,164,13],[161,14,164,15],[151,24,155,25],[151,26,155,27],[156,4,160,5],[156,6,160,7],[156,8,160,9],[156,10,160,11],[156,12,160,13],[156,14,160,15],[156,16,160,17],[156,18,160,19],[151,12,155,13],[151,14,155,15],[142,1,143,23],[144,1,145,24],[146,1,146,25],[147,1,150,5],[147,6,150,7],[147,8,150,9],[147,10,150,11],[147,12,150,13],[147,14,150,15],[147,16,150,17],[147,18,150,19],[147,20,150,21],[147,22,150,23],[147,24,150,25],[126,1,127,24],[128,1,129,24],[130,1,133,23],[133,26,133,29],[134,2,139,30],[141,1,141,30],[112,1,116,29],[118,1,118,30],[119,1,119,29],[120,1,120,24],[122,1,123,24],[124,1,125,24],[104,1,104,15],[105,1,105,15],[106,1,106,15],[107,1,108,15],[109,1,110,15],[111,1,111,29],[91,1,96,24],[98,1,98,24],[99,1,99,15],[100,1,100,15],[101,1,102,15],[103,1,103,15],[84,2,84,16],[84,17,84,30],[85,2,85,16],[85,17,85,30],[87,1,87,30],[88,1,89,24],[75,1,75,28],[76,1,77,15],[78,1,79,15],[78,17,78,30],[80,1,81,30],[82,2,83,16],[82,17,82,30],[64,1,64,20],[66,1,66,30],[67,2,68,16],[67,17,71,30],[73,2,74,16],[73,17,73,30],[56,1,57,17],[56,19,56,30],[59,1,59,30],[61,1,61,18],[62,1,62,10],[63,1,63,20],[42,1,43,25],[44,1,45,24],[46,1,47,24],[48,1,50,24],[51,1,52,24],[54,1,54,18],[54,19,54,30],[32,3,32,9],[33,3,33,15],[35,1,35,30],[37,1,37,9],[40,1,40,12],[41,1,41,30],[20,3,22,29],[23,3,24,28],[26,4,26,30],[28,1,29,30],[30,3,30,8],[31,3,31,9],[11,1,11,14],[11,19,11,30],[12,1,12,28],[16,3,16,14],[17,3,17,23],[18,3,19,28],[8,1,8,14],[8,19,8,30],[9,1,9,16],[9,19,9,31],[10,1,10,14],[10,19,10,30],[0,0,1,31],[2,0,2,31],[3,1,3,16],[3,19,3,30],[5,1,5,14],[7,1,7,14]]}
["Formularz informacji przedstawianych przy ubieganiu się o pomoc de minimis "]
[]
["Stosuje się do pomocy de minimis udzielanej na warunkach określonych w rozporządzeniu Komisji (UE) 2023/2831\nz dnia 13 grudnia 2023 r. w sprawie stosowania art. 107 i 108 Traktatu o funkcjonowaniu Unii Europejskiej\ndo pomocy de minimis (Dz. Urz. UE L 2023/2831)"]
[null,"A. Informacje dotyczące podmiotu któremu ma być udzielona pomoc de minimis1)",null,null,null,null,null,null,null,null,null,null,null,null,null,null,null,null,null,"A1. Informacje dotyczące wnioskodawcy niebędącego podmiotem, któremu ma być udzielona pomoc de minimis2)"]
[]
[null,"1) Identyfikator podatkowy NIP podmiotu",null,null,null,null,null,null,null,null,null,null,null,null,null,null,null,null,null,"1a) Identyfikator podatkowy NIP wnioskodawcy3)"]
[]
[null,"2) Imię i nazwisko albo nazwa podmiotu",null,null,null,null,null,null,null,null,null,null,null,null,null,null,null,null,null,"2a) Imię i nazwisko albo nazwa wnioskodawcy"]
[]
[null,"3) Adres miejsca zamieszkania albo adres siedziby\npodmiotu",null,null,null,null,null,null,null,null,null,null,null,null,null,null,null,null,null,"3a) Adres miejsca zamieszkania albo adres siedziby wnioskodawcy"]
[]
[]
[null,"4) Identyfikator gminy, w której podmiot ma miejsce zamieszkania albo siedzibę4)"]
[]
[]
[null,"5) Forma prawna podmiotu5)"]
[null,null,null,"przedsiębiorstwo państwowe"]
[null,null,null,"jednoosobowa spółka Skarbu Państwa"]
[null,null,null,"jednoosobowa spółka jednostki samorządu terytorialnego, w rozumieniu ustawy\nz dnia 20 grudnia 1996 r. o gospodarce komunalnej (Dz. U. z 2021 r. poz. 679)"]
[]
[null,null,null,"spółka akcyjna albo spółka z ograniczoną odpowiedzialnością, w stosunku do których\nSkarb Państwa, jednostka samorządu terytorialnego, przedsiębiorstwo państwowe lub jednoosobowa spółka Skarbu Państwa są podmiotami, które posiadają uprawnienia takie,\njak przedsiębiorcy dominujący w rozumieniu przepisów ustawy z dnia 16 lutego 2007 r.\no ochronie konkurencji i konsumentów (Dz. U. z 2024 r. poz. 594)"]
[]
[]
[null,null,null,"jednostka sektora finansów publicznych w rozumieniu przepisów ustawy\nz dnia 27 sierpnia 2009 r. o finansach publicznych (Dz. U. z 2023 r. poz. 1270, z późn. zm.)"]
[]
[null,null,null,"inna (podać jaka)"]
[]
[]
[null,"6) Wielkość podmiotu, zgodnie z załącznikiem I do rozporządzenia Komisji (UE) nr 651/2014\nz dnia 17 czerwca 2014 r. uznającego niektóre rodzaje pomocy za zgodne z rynkiem wewnętrznym w zastosowaniu art. 107 i 108 Traktatu (Dz. Urz. UE L 187 z 26.06.2014, str. 1, z późn. zm.)5)"]
[]
[null,null,null,"mikroprzedsiębiorca"]
[null,null,null,"mały przedsiębiorca"]
[null,null,null,"średni przedsiębiorca"]
[null,null,null,"inny przedsiębiorca"]
[]
[null,"7) Klasa działalności, zgodnie z rozporządzeniem Rady Ministrów z dnia 24 grudnia 2007 r. w sprawie Polskiej Klasyfikacji Działalności (PKD) (Dz. U. Nr 251, poz. 1885, z późn. zm.)6)"]
[]
[null,"8) Data utworzenia podmiotu"]
[null,null,null," - ",null,null," - "]
[]
[null,"9) Powiązania z innymi przedsiębiorcami7)"]
[null,"Czy pomiędzy podmiotem a innymi przedsiębiorcami istnieją powiązania polegające na tym, że:"]
[null,"a) jeden przedsiębiorca posiada większość praw głosu akcjonariuszy lub wspólników drugiego przedsiębiorcy?",null,null,null,null,null,null,null,null,null,null,null,null,null,null,null,null,null,null,null,null,null,null,null,null,null,"tak",null,null,"nie"]
[]
[null,"b) jeden przedsiębiorca ma prawo powołać lub odwołać większość członków organu zarządzającego lub nadzorującego innego przedsiębiorcy?",null,null,null,null,null,null,null,null,null,null,null,null,null,null,null,null,null,null,null,null,null,null,null,null,null,"tak",null,null,"nie"]
[]
[null,"c) jeden przedsiębiorca ma prawo wywierać dominujący wpływ na innego przedsiębiorcę zgodnie z umową zawartą z tym przedsiębiorcą lub zgodnie z jego dokumentami założycielskimi?",null,null,null,null,null,null,null,null,null,null,null,null,null,null,null,null,null,null,null,null,null,null,null,null,null,"tak",null,null,"nie"]
[]
[null,"d) jeden przedsiębiorca, który jest akcjonariuszem lub wspólnikiem innego przedsiębiorcy lub jego członkiem, zgodnie z porozumieniem z innymi akcjonariuszami, wspólnikami lub członkami tego przedsiębiorcy, samodzielnie kontroluje większość praw głosu u tego przedsiębiorcy?",null,null,null,null,null,null,null,null,null,null,null,null,null,null,null,null,null,null,null,null,null,null,null,null,null,"tak",null,null,"nie"]
[]
[]
[null,"e) przedsiębiorca pozostaje w jakimkolwiek ze stosunków opisanych powyżej poprzez jednego innego przedsiębiorcę lub kilku innych przedsiębiorców?",null,null,null,null,null,null,null,null,null,null,null,null,null,null,null,null,null,null,null,null,null,null,null,null,null,"tak",null,null,"nie"]
[]
[null,"W przypadku zaznaczenia przynajmniej jednej odpowiedzi twierdzącej należy podać:"]
[null,"a) identyfikator podatkowy NIP wszystkich powiązanych\nz podmiotem przedsiębiorców"]
[]
[null,"b) łączną wartość pomocy de minimis udzielonej w okresie minionych 3 lat wszystkim powiązanym z podmiotem przedsiębiorcom8)"]
[]
[]
[null,"10) Informacja o utworzeniu wnioskodawcy w wyniku podziału innego przedsiębiorcy lub połączenia z innym przedsiębiorcą, w tym przez przejęcie innego przedsiębiorcy, lub przekształcenia przedsiębiorcy"]
[null,"Czy podmiot w okresie minionych 3 lat:"]
[null,"a) powstał wskutek połączenia się innych przedsiębiorców?",null,null,null,null,null,null,null,null,null,null,null,null,null,null,null,null,null,null,null,null,null,null,null,null,null,"tak",null,null,"nie"]
[null,"b) przejął innego przedsiębiorcę?",null,null,null,null,null,null,null,null,null,null,null,null,null,null,null,null,null,null,null,null,null,null,null,null,null,"tak",null,null,"nie"]
[null,"c) powstał w wyniku podziału innego przedsiębiorcy?",null,null,null,null,null,null,null,null,null,null,null,null,null,null,null,null,null,null,null,null,null,null,null,null,null,"tak",null,null,"nie"]
[null,"d) powstał w wyniku przekształcenia przedsiębiorcy?",null,null,null,null,null,null,null,null,null,null,null,null,null,null,null,null,null,null,null,null,null,null,null,null,null,"tak",null,null,"nie"]
[]
[null,"W przypadku zaznaczenia odpowiedzi twierdzącej w lit. a) lub b) należy podać:"]
[null,null,"a) identyfikator podatkowy NIP wszystkich połączonych lub przejętych przedsiębiorców"]
[]
[]
[]
[]
[]
[null,null,"b) łączną wartość pomocy de minimis udzielonej w okresie minionych 3 lat przedsiębiorcy istniejącemu przed podziałem lub przekształceniem w odniesieniu do działalności przejmowanej przez podmiot8)"]
[]
[null,"W przypadku zaznaczenia odpowiedzi twierdzącej w lit. c lub d należy podać:"]
[null,"a) identyfikator podatkowy NIP przedsiębiorcy\nprzed podziałem lub przekształceniem"]
[]
[null,"b) łączną wartość pomocy de minimis udzielonej\nw okresie minionych 3 lat przedsiębiorcy istniejącemu przed podziałem lub przekształceniem w odniesieniu do działalności przejmowanej\nprzez podmiot8)"]
[]
[null,"Jeśli nie jest możliwe ustalenie, jaka część pomocy de minimis uzyskanej przez przedsiębiorcę przed podziałem była przeznaczona na działalność przejętą przez podmiot, należy podać:"]
[]
[null,null,"–  łączną wartość pomocy de minimis udzielonej\nw okresie minionych 3 lat przedsiębiorcy przed\npodziałem8)"]
[]
[null,null,"– wartość kapitału przedsiębiorcy przed podziałem (w PLN)"]
[null,null,"– wartość kapitału podmiotu na moment podziału\n(w PLN)"]
[]
[null,"B. Informacje dotyczące sytuacji ekonomicznej podmiotu któremu ma być udzielona pomoc de minimis9)"]
[null,"1) Czy podmiot spełnia kryteria kwalifikujące go do objęcia postępowaniem upadłościowym? ",null,null,null,null,null,null,null,null,null,null,null,null,null,null,null,null,null,null,null,null,null,null,null,null,null,"tak",null,null,"nie"]
[]
[]
[null,"2) Czy podmiot będący przedsiębiorcą innym niż mikro-, mały lub średni- albo\nw przypadku, o którym mowa w art. 4 ust. 7 rozporządzenia Komisji (UE) 2023/2831\nz dnia 13 grudnia 2023 w sprawie stosowania art. 107 i 108 Traktatu\no funkcjonowaniu Unii Europejskiej do pomocy de minimis, będący każdym przedsiębiorcą - znajduje się w sytuacji gorszej niż sytuacja kwalifikująca się\ndo oceny kredytowej B-10)?",null,null,null,null,null,null,null,null,null,null,null,null,null,null,null,null,null,null,null,null,null,null,null,null,null,"tak",null,null,"nie"]
[]
[null,null,null,null,null,null,null,null,null,null,null,null,null,null,null,null,null,null,null,null,null,null,null,null,null,null,null,"nie dotyczy"]
[]
[]
[]
[]
[null,"3) Czy w odniesieniu do okresu ostatnich 3 lat poprzedzających dzień wystąpienia z wnioskiem o udzielenie pomocy de minimis:"]
[null,"a) podmiot odnotowuje rosnące straty?",null,null,null,null,null,null,null,null,null,null,null,null,null,null,null,"tak",null,null,"nie"]
[null,"b) obroty podmiotu maleją? ",null,null,null,null,null,null,null,null,null,null,null,null,null,null,null,"tak",null,null,"nie"]
[null,"c) zwiększeniu ulegają zapasy podmiotu lub niewykorzystany potencjał do świadczenia usług?",null,null,null,null,null,null,null,null,null,null,null,null,null,null,null,"tak",null,null,"nie"]
[]
[null,"d) podmiot ma nadwyżki produkcji11)?",null,null,null,null,null,null,null,null,null,null,null,null,null,null,null,"tak",null,null,"nie"]
[null,"e) zmniejsza się przepływ środków finansowych?",null,null,null,null,null,null,null,null,null,null,null,null,null,null,null,"tak",null,null,"nie"]
[null,"f) zwiększa się suma zadłużenia podmiotu?",null,null,null,null,null,null,null,null,null,null,null,null,null,null,null,"tak",null,null,"nie"]
[null,"g) rosną kwoty odsetek od zobowiązań podmiotu?",null,null,null,null,null,null,null,null,null,null,null,null,null,null,null,"tak",null,null,"nie"]
[null,"h) wartość aktywów netto podmiotu zmniejsza się lub jest zerowa?\n",null,null,null,null,null,null,null,null,null,null,null,null,null,null,null,"tak",null,null,"nie"]
[]
[null,"i) zaistniały inne okoliczności wskazujące na trudności w zakresie płynności finansowej?",null,null,null,null,null,null,null,null,null,null,null,null,null,null,null,"tak",null,null,"nie"]
[]
[null,"Jeśli tak, należy wskazać jakie:"]
[]
[]
[]
[]
[]
[]
[null,"C. Informacje dotyczące działalności gospodarczej prowadzonej przez podmiot któremu ma być udzielona pomoc de minimis"]
[null,"Czy podmiot, któremu ma być udzielona pomoc de minimis, prowadzi działalność:"]
[null,"1) w sektorze produkcji podstawowej produktów rybołówstwa i akwakultury12)?",null,null,null,null,null,null,null,null,null,null,null,null,null,null,null,null,null,null,null,null,null,null,null,null,"tak",null,null,"nie"]
[]
[null,"2) w dziedzinie produkcji podstawowej produktów rolnych wymienionych\nw załączniku I do Traktatu o funkcjonowaniu Unii Europejskiej?",null,null,null,null,null,null,null,null,null,null,null,null,null,null,null,null,null,null,null,null,null,null,null,null,"tak",null,null,"nie"]
[]
[null,"3) w dziedzinie przetwarzania i wprowadzania do obrotu produktów rolnych\nwymienionych w załączniku I do Traktatu o funkcjonowaniu Unii Europejskiej?",null,null,null,null,null,null,null,null,null,null,null,null,null,null,null,null,null,null,null,null,null,null,null,null,"tak",null,null,"nie"]
[]
[null,"4) w dziedzinie przetwarzania i wprowadzania do obrotu produktów rybołówstwa\ni akwakultury12)?",null,null,null,null,null,null,null,null,null,null,null,null,null,null,null,null,null,null,null,null,null,null,null,null,"tak",null,null,"nie"]
[]
[null,"5) Czy wnioskowana pomoc de minimis będzie przeznaczona na działalność wskazaną w pkt 1–4?",null,null,null,null,null,null,null,null,null,null,null,null,null,null,null,null,null,null,null,null,null,null,null,null,"tak",null,null,"nie"]
[]
[null,"6) W przypadku zaznaczenia odpowiedzi twierdzącej w pkt 1 lub 2:\nczy zapewniona jest rozdzielność rachunkowa13) uniemożliwiająca przeniesienie na wskazaną w tych punktach działalność korzyści wynikających z uzyskanej pomocy de minimis (w jaki sposób)?",null,null,null,null,null,null,null,null,null,null,null,null,null,null,null,null,null,null,null,null,null,null,null,null,"tak",null,null,"nie"]
[]
[null,null,null,null,null,null,null,null,null,null,null,null,null,null,null,null,null,null,null,null,null,null,null,null,null,null,"nie dotyczy"]
[]
[]
[]
[]
[]
[]
[]
[]
[null,"D. Informacje dotyczące pomocy otrzymanej w odniesieniu do tych samych kosztów, na pokrycie których ma być przeznaczona wnioskowana pomoc de minimis"]
[null,"1) Czy wnioskowana pomoc de minimis zostanie przeznaczona na pokrycie dających się zidentyfikować kosztów?",null,null,null,null,null,null,null,null,null,null,null,null,null,null,null,null,null,null,null,null,null,null,null,null,null,"tak",null,null,"nie"]
[]
[null,"2) Jeśli tak, to czy na pokrycie tych samych kosztów, o których mowa powyżej, \npodmiot otrzymał pomoc inną niż pomoc de minimis ?",null,null,null,null,null,null,null,null,null,null,null,null,null,null,null,null,null,null,null,null,null,null,null,null,null,"tak",null,null,"nie"]
[]
[null,"3) Jeśli tak, należy wypełnić poniższą tabelę14) w odniesieniu do ww. pomocy\ninnej niż de minimis oraz pomocy de minimis na te same koszty."]
[null,"Przeznaczenie pomocy",null,null,null,null,6]
[]
[]
[]
[null,"Wartość otrzymanej pomocy",null,null,"brutto",null,"5b"]
[]
[]
[]
[]
[null,null,null,null,"nominalna",null,"5a"]
[]
[]
[]
[]
[null,"Forma pomocy",null,null,null,null,4]
[]
[]
[]
[null,"Podstawa prawna udzielenia pomocy",null,null,"informacje szczegółowe",null,"3b"]
[]
[]
[]
[null,null,null,null,"informacje podstawowe",null,"3a"]
[]
[]
[]
[null,"Podmiot udzielający pomocy",null,null,null,null,2]
[]
[]
[]
[]
[null,"Dzień udzielenia pomocy",null,null,null,null,1]
[]
[]
[]
[null,"Lp.",null,null,null,null,null,null,"1.",null,"2.",null,"3.",null,"4.",null,"5.",null,"6.",null,"7.",null,"8.",null,"9.",null,"10."]
[]
[null,"Jeżeli w tabeli wykazano otrzymaną pomoc inną niż pomoc de minimis, należy dodatkowo wypełnić pkt 1-8 poniżej: "]
[null,"1) opis przedsięwzięcia"]
[]
[null,"2) koszty kwalifikujące się do objęcia pomocą w wartości nominalnej i zdyskontowanej oraz ich rodzaje"]
[]
[null,"3) maksymalna dopuszczalna intensywność pomocy"]
[]
[null,"4) intensywność pomocy już udzielonej w związku z kosztami, o których mowa w pkt 2"]
[]
[null,"5) lokalizacja przedsięwzięcia"]
[]
[null,"6) cele, które mają być osiągnięte w związku z realizacją przedsięwzięcia"]
[]
[null,"7) etapy realizacji przedsięwzięcia"]
[]
[null,"8) data rozpoczęcia i zakończenia realizacji przedsięwzięcia"]
[]
["1) W przypadku gdy o pomoc de minimis wnioskuje wspólnik spółki cywilnej, jawnej albo partnerskiej, komplementariusz spółki komandytowej albo komandytowo-akcyjnej niebędący akcjonariuszem, wspólnik jednoosobowej spółki z ograniczoną odpowiedzialnością albo akcjonariusz prostej spółki akcyjnej lub inny podmiot, na który została przeniesiona odpowiedzialność podatkowa, w związku z działalnością prowadzoną w tej spółce, podaje się informacje dotyczące tej spółki. W przypadku spółki cywilnej należy podać NIP tej spółki, nazwę, pod jaką spółka funkcjonuje na rynku, oraz miejsce prowadzenia działalności, a w przypadku braku nazwy i miejsca prowadzenia działalności - imiona i nazwiska oraz adresy wszystkich wspólników tej spółki"]
["2) Wypełnia się w przypadku, gdy o pomoc de minimis wnioskuje wspólnik spółki cywilnej, jawnej albo partnerskiej, komplementariusz spółki komandytowej albo komandytowo-akcyjnej niebędący akcjonariuszem, wspólnik jednoosobowej spółki z ograniczoną odpowiedzialnością albo akcjonariusz prostej spółki akcyjnej lub inny podmiot, na który została przeniesiona odpowiedzialność podatkowa, w związku z działalnością prowadzoną w tej spółce (podaje się informacje dotyczące tego wspólnika, akcjonariusza albo komplementariusza lub osoby trzeciej, na którą przeniesiono odpowiedzialność podatkową). "]
["3) O ile posiada identyfikator podatkowy NIP."]
["4) Wpisuje się siedmiocyfrowe oznaczenie nadane w sposób określony w rozporządzeniu Rady Ministrów z dnia 15 grudnia 1998 r. w sprawie szczegółowych zasad prowadzenia, stosowania i udostępniania krajowego rejestru urzędowego podziału terytorialnego kraju oraz związanych z tym obowiązków organów administracji rządowej i jednostek samorządu terytorialnego (Dz. U. poz. 1031, z późn. zm.)"]
["5) Zaznacza się właściwą pozycję znakiem X"]
["6) Podaje się klasę działalności, w związku z którą podmiot ubiega się o pomoc de minimis. Jeżeli nie jest możliwe ustalenie jednej takiej działalności, podaje się klasę PKD tej działalności, która generuje największy przychód."]
["7) Za powiązane nie uważa się podmiotów, w przypadku których powiązanie występuje wyłącznie za pośrednictwem organu publicznego, np. Skarbu Państwa, jednostki samorządu terytorialnego"]
["8) Podaje się wartość pomocy w euro obliczoną zgodnie z art. 11 ust. 3 ustawy z dnia 30 kwietnia 2004 r. o postępowaniu w sprawach dotyczących pomocy publicznej (Dz. U. z 2023 r. poz. 702), rozporządzeniem Rady Ministrów wydanym na podstawie art. 11 ust. 2 tej ustawy oraz właściwymi przepisami unijnymi."]
["9) Wypełnia się jedynie w przypadku podmiotów, którym ma być udzielona pomoc de minimis, do obliczenia wartości której konieczne jest ustalenie ich stopy referencyjnej (tj. w formie takiej jak: pożyczki, gwarancje, odroczenia, rozłożenia na raty), z wyjątkiem podmiotów, którym pomoc de minimis ma być udzielona na podstawie art. 34a ustawy z dnia 8 maja 1997 r. o poręczeniach i gwarancjach udzielanych przez Skarb Państwa oraz niektóre osoby prawne (Dz. U. z 2004 r. poz. 291), oraz będących osobami fizycznymi, które na dzień złożenia informacji określonych w niniejszym rozporządzeniu nie rozpoczęły prowadzenia działalności gospodarczej."]
["10) Ocena kredytowa B- oznacza wysokie ryzyko kredytowe. Zdolność do obsługi zobowiązań istnieje jedynie przy sprzyjających warunkach zewnętrznych. Poziom odzyskania wierzytelności w przypadku wystąpienia niewypłacalności jest średni lub niski."]
["11) Dotyczy wyłącznie producentów."]
["12) Objętych rozporządzeniem Parlamentu Europejskiego i Rady (UE) nr 1379/2013 z dnia 11 grudnia 2013 r. w sprawie wspólnej organizacji rynków produktów rybołówstwa i akwakultury, zmieniającym rozporządzenia Rady (WE) nr 1184/2006 i (WE) nr 1224/2009 oraz uchylającym rozporządzenie Rady (WE) nr 104/2000 (Dz. Urz. UE L 354 z 28.12.2013, str. 1, z późn. zm.)."]
["13) Rozdzielność rachunkowa określonej działalności gospodarczej polega na prowadzeniu odrębnej ewidencji dla tej działalności gospodarczej oraz prawidłowym przypisywaniu przychodów i kosztów na podstawie konsekwentnie stosowanych i mających obiektywne uzasadnienie metod, a także na określeniu w dokumentacji, o której mowa w art. 10 ustawy z dnia 29 września 1994 r. o rachunkowości (Dz. U. z 2023 r. poz. 120, z późn. zm.), zasad prowadzenia odrębnej ewidencji oraz metod przypisywania kosztów i przychodów."]
["14) Wypełnia się zgodnie z Instrukcją wypełnienia tabeli w części D formularza."]
["Instrukcja wypełnienia tabeli w części D formularza "]
["Należy podać informacje o dotychczas otrzymanej pomocy, w odniesieniu do tych samych kosztów kwalifikujących się do objęcia pomocą, na pokrycie których udzielana będzie pomoc de minimis. Na przykład jeżeli podmiot ubiegający się o pomoc de minimis otrzymał w przeszłości pomoc w związku z realizacją inwestycji, należy wykazać jedynie pomoc przeznaczoną na te same koszty kwalifikujące się do \nobjęcia pomocą, na pokrycie których ma być udzielona pomoc de minimis."]
["1. Dzień udzielenia pomocy (kol. 1) - należy podać dzień udzielenia pomocy w rozumieniu art. 2 pkt 11 ustawy z dnia 30 kwietnia 2004 r. o postępowaniu w sprawach dotyczących pomocy publicznej."]
["2. Podmiot udzielający pomocy (kol. 2) - należy podać pełną nazwę i adres podmiotu, który udzielił pomocy. W przypadku gdy podmiot uzyskał pomoc na podstawie aktu normatywnego, który uzależnia nabycie prawa do otrzymania pomocy wyłącznie od spełnienia przesłanek w nim określonych, bez konieczności wydania decyzji albo zawarcia umowy, należy pozostawić to miejsce niewypełnione."]
["3. Podstawa prawna otrzymanej pomocy (kol. 3a i 3b)"]
["Uwaga: istnieją następujące możliwości łączenia elementów tworzących podstawę prawną otrzymanej pomocy, które należy wpisać w poszczególnych kolumnach tabeli w sposób przedstawiony poniżej."]
["Podstawa prawna - informacje podstawowe",null,null,null,null,null,null,null,null,null,null,null,null,null," Podstawa prawna - informacje szczegółowe"]
["3a",null,null,null,null,null,null,null,null,null,null,null,null,null," 3b"]
[]
["przepis ustawy",null,null,null,null,null,null,null,null,null,null,null,null,null,"brak*"]
["przepis ustawy",null,null,null,null,null,null,null,null,null,null,null,null,null,"przepis aktu wykonawczego"]
["przepis ustawy",null,null,null,null,null,null,null,null,null,null,null,null,null,"przepis aktu wykonawczego "]
[null,null,null,null,null,null,null,null,null,null,null,null,null,null,"decyzja/uchwała/"]
[null,null,null,null,null,null,null,null,null,null,null,null,null,null,"umowa – symbol"]
["przepis ustawy",null,null,null,null,null,null,null,null,null,null,null,null,null,"decyzja/uchwała/umowa – symbol"]
[]
["* W przypadku braku aktu wykonawczego, decyzji, uchwały i umowy należy wpisać określenie „brak”."]
["Kol. 3a Podstawa prawna – informacje podstawowe – należy podać kolejno: datę i tytuł aktu oraz oznaczenie roku (numeru) i pozycji Dziennika Ustaw, w którym ustawa została opublikowana, oraz oznaczenie przepisu ustawy będącego podstawą udzielenia pomocy (w kolejności: artykuł, ustęp, punkt, litera, tiret)."]
["Kol. 3b Podstawa prawna – informacje szczegółowe – jeżeli podstawą udzielenia pomocy był akt wykonawczy do ustawy, należy podać kolejno: nazwę organu wydającego akt, datę i tytuł aktu oraz oznaczenie roku (numeru) i pozycji Dziennika Ustaw, w którym akt został opublikowany, oraz przepis aktu wykonawczego będącego podstawą udzielenia pomocy (w kolejności: paragraf, ustęp, punkt, litera, tiret). \nAkt powinien być aktem wykonawczym do ustawy wskazanej w kol. 3a. W przypadku braku aktu wykonawczego będącego podstawą prawną udzielenia pomocy należy wpisać określenie „brak”. Jeżeli podstawą udzielenia pomocy była decyzja, uchwała lub umowa, należy podać symbol określający ten akt: w przypadku decyzji – numer decyzji, w przypadku uchwały – numer uchwały, w przypadku umowy – numer, przedmiot oraz strony umowy. W przypadku braku decyzji, uchwały lub umowy będącej podstawą prawną udzielenia pomocy należy wpisać określenie „brak”."]
["4. Forma pomocy (kol. 4) - należy podać kod oznaczający właściwą formę pomocy określony w załączniku nr 1 do rozporządzenia Rady Ministrów z dnia 7 sierpnia 2008 r. w sprawie sprawozdań o udzielonej pomocy publicznej, informacji o nieudzieleniu takiej pomocy oraz sprawozdań o zaległościach przedsiębiorców we wpłatach świadczeń należnych na rzecz sektora finansów publicznych (Dz. U. z 2024 r.\npoz. 161)."]
["5. Wartość otrzymanej pomocy (kol. 5a i 5b) – należy podać wartość otrzymanej pomocy publicznej lub pomocy de minimis:\na) wartość nominalną pomocy (jako całkowitą wielkość środków finansowych będących podstawą do obliczania wielkości udzielonej pomocy, np. kwotę udzielonej pożyczki lub kwotę odroczonego podatku) oraz\nb) wartość brutto (jako ekwiwalent dotacji brutto obliczony zgodnie z rozporządzeniem Rady Ministrów wydanym na podstawie art. 11 ust. 2 ustawy z dnia 30 kwietnia 2004 r. o postępowaniu w sprawach dotyczących pomocy publicznej oraz z właściwymi przepisami unijnymi).\n"]
["6. Przeznaczenie pomocy (kol. 6) – należy podać kod wskazujący przeznaczenie otrzymanej pomocy określony zgodnie z rozporządzeniem Rady Ministrów z dnia 7 sierpnia 2008 r. w sprawie sprawozdań o udzielonej pomocy publicznej, informacji o nieudzieleniu takiej pomocy oraz sprawozdań o zaległościach przedsiębiorców we wpłatach świadczeń należnych na rzecz sektora finansów publicznych."]

{"sheet":"Pomoc de minimis","index":18,"n_rows":21,"n_cols":4,"rows_kept":21,"cut":false,"hidden":false,"merged":[]}
["OŚWIADCZENIE O UZYSKANEJ POMOCY DE MINIMIS"]
["W wierszu poniżej należy wybrać czy wnioskodawca lub którykolwiek z podmiotów powiązanych stanowiący z nim „jedno przedsiębiorstwo” w rozumieniu Rozporządzenia Komisji (UE) nr 2023/2831 z dnia 13 grudnia 2023 r. w sprawie stosowania art. 107 i 108 Traktatu o funkcjonowaniu Unii Europejskiej do pomocy de minimis otrzymał pomoc de minimis w okresie minionych trzech lat - trzy lata liczone wstecz od dnia przedstawiania informacji w przedmiotowym załączniku."]
[]
["Jeżeli wnioskodawca lub którykolwiek z podmiotów stanowiący z wnioskodawcą „jedno przedsiębiorstwo” w rozumieniu Rozporządzenia Komisji (UE) nr 2023/2831 w okresie minionych trzech lat uzyskał pomoc de minimis, należy wypełnić poniższą tabelę (istnieje możliwość dodawania wierszy, przy czym należy zwrócić uwagę aby wiersze dodane były w tabeli, a nie pod nią)"]
["Nazwa podmiotu (należy wskazać wnioskodawcę oraz wszystkie pozostałe podmioty stanowiące jedno przedsiębiorstwo z wnioskodawcą, które uzyskały pomoc de minimis)","Nazwa podmiotu udzielającego pomocy","Data udzielenia pomocy","Wartość pomocy brutto w Euro"]
[]
[]
[]
[]
[]
[]
[]
[]
[]
[]
[]
[]
[]
[]
[]
[null,null,"SUMA",{"$f":"SUM(D6:D20)","v":0}]

{"sheet":"Kumulacja pomocy","index":19,"n_rows":9,"n_cols":1,"rows_kept":9,"cut":false,"hidden":false,"merged":[]}
["Oświadczenie dotyczące kumulacji pomocy"]
["W związku z ubieganiem się o dofinansowanie projektu złożonego w ramach programu Fundusze Europejskie dla Lubelskiego 2021-2027 oświadczam, że (należy wybrać odpowiedź w poniższym wierszu z listy):"]
[]
["o takim samym lub podobnym zakresie rzeczowym w ramach wdrażanych przez LAWP Działań lub w ramach innego programu finansowanego ze środków publicznych"]
["oraz (należy wybrać odpowiedź w poniższym wierszu z listy):"]
[]
["Jednocześnie, w związku z ubieganiem się o dofinansowanie projektu, złożonego w ramach programu Fundusze Europejskie dla Lubelskiego 2021-2027 oświadczam, że w odniesieniu do kosztów kwalifikowalnych ujętych w projekcie, pokrywających się częściowo lub w całości (należy wybrać odpowiedź w poniższym wierszu z listy):"]
[]
["W przypadku gdy wnioskodawca przedkładał wniosek o dofinansowanie o takim samym lub podobnym zakresie do niniejszego projektu, będącego przedmiotem oceny, w celu uzyskania finansowania ze środków publicznych, należy złożyć szczegółowe wyjaśnienia na temat tego wniosku m.in. numer wniosku, zakres wniosku, informacje o pokrywających się kosztach."]

{"sheet":"Tajemnica przedsiębiorstwa","index":20,"n_rows":4,"n_cols":1,"rows_kept":4,"cut":false,"hidden":false,"merged":[]}
["Oświadczenie dotyczące tajemnicy przedsiębiorstwa"]
["W związku z ubieganiem się o dofinansowanie projektu oświadczam, że informacje zawarte we wniosku posiadają wartość gospodarczą i są prawnie zastrzeżone jako informacje poufne lub podjęto w przedsiębiorstwie niezbędne działania w celu zachowania ich poufności oraz nie są informacjami powszechnie dostępnymi i w związku z tym stanowią tajemnicę przedsiębiorstwa w rozumieniu art. 11 ust. 4 ustawy z dnia 16 kwietnia 1993 r. o zwalczaniu nieuczciwej konkurencji. Wyrażam zgodę na udostępnienie ww. danych wyłącznie, jeżeli konieczność ich udostępnienia będzie wynikać z przepisów obowiązującego prawa, w niezbędnym do powyższego zakresie. Jednocześnie wyrażam zgodę na wykorzystanie ww. informacji w celu wykonywania czynności niezbędnych do oceny dokumentacji aplikacyjnej, rozliczenia oraz kontroli projektu."]
[]
["W przypadku wyboru opcji \"TAK\" w polu poniżej należy wskazać punkty we wniosku oraz załącznikach, w których zawarto informacje stanowiące prawnie chronioną tajemnicę przedsiębiorstwa. Jeżeli w pytaniu powyżej wybrano opcję \"NIE\" pole opisowe należy pozostawić niewypełnione."]

{"sheet":"Oświadczenia","index":21,"n_rows":21,"n_cols":2,"rows_kept":21,"cut":false,"hidden":false,"merged":[]}
["Oświadczenia wnioskodawcy","Potwierdzam złożenie oświadczenia"]
["Zakładka Oświadczenia wnioskodawcy służy do potwierdzenia przez wnioskodawcę prawdziwości zawartych danych we wniosku i załącznikach (stanowiących jego integralną część) oraz przyjęcia pełnej odpowiedzialności za realizację projektu dofinansowanego z funduszy europejskich i wszystkich konsekwencji wynikających z tego faktu, co odbywa się poprzez zapoznanie się i zaakceptowanie każdego z poniższych warunków realizacji projektu w ramach programu Fundusze Europejskie dla Lubelskiego 2021-2027, poprzez wybór opcji \"TAK\" lub \"NIE DOTYCZY\" w kolumnie \"Potwierdzam złożenie oświadczenia\" (brak wyboru opcji \"TAK\" lub \"NIE DOTYCZY\" jest równoznacznych z brakiem złożenia danego oświadczenia przez wnioskodawcę)."]
["Oświadczam, że dane zawarte we wniosku o dofinansowanie złożonym w WOD2021 są zgodne z rzeczywistym stanem faktycznym i prawnym."]
["Oświadczam, że dane zawarte w niniejszej Informacji do wniosku o dofinansowanie oraz wszystkich pozostałych załącznikach składanych wraz z wnioskiem o dofinansowanie w WOD2021 są zgodne ze stanem faktycznym i prawnym."]
["Oświadczam, że jestem świadomy/świadoma odpowiedzialności karnej, o której mowa w art. 233 § 1 ustawy z dnia 6 czerwca 1997 r. Kodeks karny, za podanie fałszywych danych lub złożenie fałszywych oświadczeń, w ramach dokumentacji niezbędnej do oceny projektu lub objęcia go dofinansowaniem."]
["Oświadczam, że jestem świadomy/świadoma odpowiedzialności karnej, za przedkładanie podrobionych, przerobionych, poświadczających nieprawdę albo nierzetelnych dokumentów oraz za składanie nierzetelnych, pisemnych oświadczeń co do okoliczności o istotnym znaczeniu dla uzyskania wsparcia, a także odpowiedzialności karnej za niepowiadomienie LAWP o powstaniu sytuacji mogącej mieć wpływ na wstrzymanie albo ograniczenie wysokości udzielonego wsparcia."]
["Oświadczam, że nie podlegam wykluczeniu z możliwości ubiegania się o wsparcie z funduszy strukturalnych na podstawie art. 207 ust. 4 Ustawy z dnia 27 sierpnia 2009 r. o finansach publicznych, art. 12 ust. 1 pkt 1 Ustawy z dnia 15 czerwca 2012 r. o skutkach powierzenia wykonywania pracy cudzoziemcom przebywającym wbrew przepisom na terenie Rzeczypospolitej Polskiej, art. 9 ust. 1 pkt 2a Ustawy z dnia 28 października 2002 r. o odpowiedzialności podmiotów zbiorowych za czyny zabronione pod groźbą kary."]
["Oświadczam, że w stosunku do członków organu zarządzającego wnioskodawcy nie toczy się postępowanie karne lub karne skarbowe za przestępstwo składania fałszywych zeznań, przekupstwa, przeciwko mieniu, wiarygodności dokumentów, obrotowi pieniędzmi i papierami wartościowymi, obrotowi gospodarczemu, systemowi bankowemu albo inne związane z wykonywaniem działalności gospodarczej lub popełnione w celu osiągnięcia korzyści majątkowych, w związku z dofinansowaniem, które zostało udzielone ze środków publicznych na realizację projektu temu wnioskodawcy, podmiotowi powiązanemu z nim osobowo lub kapitałowo lub członkowi organów zarządzających tego wnioskodawcy lub podmiotu."]
["Oświadczam, że nie ciąży na mnie obowiązek zwrotu pomocy wynikający z decyzji Komisji Europejskiej uznającej taką pomoc za niezgodną z prawem oraz z rynkiem wewnętrznym."]
["Oświadczam, że zgodnie z art. 66 Rozporządzenia Parlamentu Europejskiego i Rady (UE) nr 2021/1060 z dnia 24 czerwca 2021 r. projekt nie dotyczy przeniesienia produkcji oraz spełnia warunki, o których mowa w art. 73 ust. 2 lit. i ww. Rozporządzenia."]
["Oświadczam, że nie zostałem wykluczony z możliwości ubiegania się o dofinansowanie na podstawie Ustawy z dnia 13 kwietnia 2022 r. o szczególnych rozwiązaniach w zakresie przeciwdziałania wspieraniu agresji na Ukrainę oraz służących ochronie bezpieczeństwa narodowego."]
["Oświadczam, że projekt nie dotyczy rodzajów działalności wykluczonych, o których mowa w art. 7 ust. 1 Rozporządzenia Parlamentu Europejskiego i Rady (UE) 2021/1058 z dnia 24 czerwca 2021 r. w sprawie Europejskiego Funduszu Rozwoju Regionalnego i Funduszu Spójności."]
["Oświadczam, że zapoznałem/zapoznałam się z Regulaminem wyboru projektów i akceptuję jego zasady."]
["Oświadczam, że projekt jest zgodny z właściwymi przepisami prawa unijnego i polskiego."]
["Oświadczam, że nie pozostaję pod zarządem komisarycznym, nie znajduje się w toku likwidacji lub postępowania upadłościowego."]
["Oświadczam, że nie zalegam w opłacaniu składek na ubezpieczenie społeczne, ubezpieczenie zdrowotne, Fundusz Pracy i Fundusz Gwarantowanych Świadczeń Pracowniczych oraz podatków i innych należności publicznoprawnych."]
["Wyrażam zgodę na udostępnienie niniejszego wniosku podmiotom dokonującym ewaluacji, w tym w szczególności na udzielanie informacji na potrzeby ewaluacji przeprowadzanych przez Instytucję Zarządzającą, Instytucję Pośredniczącą lub inną uprawnioną instytucję lub jednostkę organizacyjną z zastrzeżeniem zapewnienia ochrony informacji w nim zawartych."]
["Wyrażam zgodę na kontrolę przeprowadzaną przez LAWP w miejscu realizacji projektu i/lub siedzibie wnioskodawcy oraz udostępnienie niezbędnych dokumentów."]
["Oświadczam, że projekt w zakresie, którego wsparcie stanowi pomoc publiczną nie dotyczy rodzajów działalności wykluczonych, o których mowa w art. 1 ust. 2 - 5 Rozporządzenia Komisji (UE) Nr 651/2014 z dnia 17 czerwca 2014 r. uznającego niektóre rodzaje pomocy za zgodne z rynkiem wewnętrznym w zastosowaniu art. 107 i 108 Traktatu."]
["Oświadczam, że projekt w zakresie którego wsparcie stanowi pomoc de minimis nie dotyczy rodzajów działalności wykluczonych, o których mowa w art. 1 ust. 1 Rozporządzenia Komisji (UE) Nr 2023/2831 z dnia 13 grudnia 2023 r. w sprawie stosowania art. 107 i 108 Traktatu o funkcjonowaniu Unii Europejskiej do pomocy de minimis."]
["Oświadczam, że  zapoznałem się z klauzulą informacyjną dotyczącą przetwarzania danych osobowych, określoną w Regulaminie wyboru projektów."]

{"sheet":"Słownik 2.7","index":22,"n_rows":24,"n_cols":1,"rows_kept":24,"cut":false,"hidden":true,"merged":[]}
["oświadczam, że uzyskałem dofinansowanie na realizację projektu o takim samym lub podobnym zakresie, o którym mowa powyżej."]
["oświadczam, że nie uzyskałem dofinansowania na realizację projektu o takim samym lub podobnym zakresie, o którym mowa powyżej."]
["została mi przyznana inna pomoc państwa (w tym pomoc de minimis). "]
["nie została  mi przyznana inna pomoc państwa (w tym pomoc de minimis). "]
[]
["TAK"]
["NIE "]
[]
["NIE - Oświadczam, iż nie mogę odzyskać w żaden sposób poniesionego kosztu podatku VAT.\nJednocześnie zobowiązuje się do zwrotu zrefundowanej w ramach projektu części poniesionego VAT, jeżeli zaistnieją przesłanki umożliwiające odzyskanie tego podatku.\nZobowiązuję się także do niezwłocznego poinformowania LAWP o jakichkolwiek zmianach w zakresie kwalifikowalności podatku VAT, jak również zobowiązuję się do udostepnienia dokumentacji finansowo-księgowej oraz udzielenia uprawnionym organom kontrolnym informacji umożliwiających weryfikację kwalifikowalności podatku VAT."]
["TAK"]
[]
["NIE"]
["TAK"]
[]
["I półrocze 2023 r."]
["II półrocze 2023 r."]
["I półrocze 2024 r."]
["II półrocze 2024 r."]
["I półrocze 2025 r."]
["II półrocze 2025 r."]
["I półrocze 2026 r."]
["II półrocze 2026 r."]
["I półrocze 2027 r."]
["II półrocze 2027 r."]

{"sheet":"słownik RIS","index":23,"n_rows":117,"n_cols":1,"rows_kept":117,"cut":false,"hidden":true,"merged":[]}
["TAK"]
["NIE"]
[]
[]
["I. ŻYWNOŚĆ WYSOKIEJ JAKOŚCI "]
["111 Innowacyjne działania na rzecz poprawy żyzności i produktywności gleb"]
["\n112 Wysokiej jakości materiał siewny, rozmnożeniowy i nasadzeniowy o zwiększonej odporności na choroby i szkodniki oraz warunki suszy rolniczej\n"]
["113 Bezpieczeństwo oraz poprawa jakości surowców roślinnych w zakresie stosowania nawozów i środków ochrony roślin\n"]
["114 Innowacyjne technologie i maszyny dla rolnictwa, w tym precyzyjnego"]
["121 Zdrowa żywność, w tym ekologiczna, tradycyjna i regionalna"]
["122 Innowacyjne sieci dystrybucji zdrowej, lokalnej i sezonowej żywności tzw.kooperatywy spożywcze"]
["123 Technologie przetwórstwa rolno-spożywczego ograniczające zużycie energii i wody"]
["124 Technologie podnoszące jakość, trwałość, funkcjonalność i bezpieczeństwo produktów pochodzenia roślinnego i zwierzęcego\n"]
["125 Zrównoważona produkcja, przetwórstwo i przechowalnictwo"]
["126 Innowacyjne systemy i oprogramowanie oraz inteligentne metody i narzędzia zarządzania i monitorowania przebiegu procesu produkcji oraz oceny jakości surowców i produktów gotowych                                                                                                                                                                                                                                                                                                                                                                                                                                                \n\n"]
["127 Rozwijanie narzędzi i nowoczesnych technik badawczych oraz markerów jakości żywności"]
["128 Innowacyjne systemy, układy, sensory i detektory elektroniczne i fotoniczne do zastosowań rolno-spożywczych "]
["129 Technologie cyfrowe, w tym rozwiązania informatyczne służące do gromadzenia i analizy danych, wspomagających procesy produkcyjne w sektorze rolno-spożywczym\n"]
["130 Technologie w zakresie transportu i przechowywania żywności"]
["131 Innowacyjne modele marketingowe w promocji żywności wysokiej jakości"]
[]
["II. ZIELONA GOSPODARKA"]
["211 Efektywne zarządzanie zasobami obejmujące ich przetwarzanie, produkcję, sprzedaż, użytkowanie i zagospodarowanie odpadów\n"]
["212 Wykorzystywanie biomasy do produkcji materiałów zastępujących inne nieodnawialne surowce"]
["213 Obniżanie emisyjności przemysłu"]
["214 Technologie i systemy przeciwdziałające zagrożeniom środowiskowym oraz monitoring poziomu zanieczyszczeń"]
["215 Biodegradowalność surowców oraz optymalizacja zagospodarowania odpadów poprodukcyjnych (technologie, procesy, produkty)\n"]
["216 Zero waste food"]
["217 Biotechnologie w inżynierii i ochronie środowiska"]
["218 Innowacyjne systemy, układy, sensory i detektory elektroniczne i fotoniczne do zastosowań w ochronie środowiska"]
["219 Metody ochrony i rekultywacji gleb oraz oczyszczanie ścieków"]
["220 Oszczędna i efektywna gospodarka wodna"]
["221 Czyste technologie węglowe"]
["222 Substancje bioaktywne przeznaczone do wytwarzania środków ochrony roślin, nawozów i leków, w tym leków weterynaryjnych \n"]
["223 (Bio)polimery i (bio)tworzywa"]
["231 Zwiększenie wykorzystania odnawialnych źródeł energii"]
["232 Energia z odpadów i paliw alternatywnych"]
["233 Poprawa efektywności konwersji energii"]
["234 Innowacyjne systemy wytwarzania, zarządzania, przesyłu, dystrybucji energii\n"]
["235 Inteligentne rozwiązania w sieciach elektroenergetycznych"]
["236 Metody i technologie magazynowania energii"]
["237 Smart mettering i inteligentne liczniki energii"]
["238 Nowoczesne systemy ciepłownicze i chłodnicze"]
["239 Systemy izolacyjne sprzyjające energooszczędności"]
["240 Systemy dystrybucji energii w budynkach"]
["241 Inteligentne, energooszczędne systemy oświetleniowe"]
["242 Rozwój infrastruktury sprzyjającej elektromobilności"]
[]
["III. ZDROWE SPOŁECZEŃSTWO"]
["311 Promocja zdrowego stylu życia, w tym rozwój branży wellness"]
["312 Profilaktyka chorób cywilizacyjnych i przeciwdziałanie zagrożeniom epidemiologicznym, w tym nowe innowacyjne metody leczenia i profilaktyki"]
["313 Turystyka, w tym turystyka zdrowotna i prozdrowotna"]
["314 Wykorzystanie zasobów (walorów) naturalnych regionu w funkcji uzdrowiskowej\n"]
["315 Rozwój usług i produktów skierowanych do osób starszych, z niepełnosprawnościami, sprzyjających utrzymaniu ich samodzielności i aktywności"]
["316 Nowe leki, innowacyjne suplementy diety, żywność funkcjonalna i środki spożywcze specjalnego przeznaczenia żywieniowego"]
["317 Innowacyjne kosmetyki"]
["318 Innowacyjne substancje biologicznie czynne jako potencjalne leki nowej generacji"]
["321 Diagnostyka i terapia genowa"]
["322 Medycyna spersonalizowana"]
["323 Zintegrowana opieka medyczna"]
["324 Chirurgia minimalnie inwazyjna"]
["325 Medycyna regeneracyjna i inżynieria tkankowa"]
["326 Medycyna translacyjna"]
["331 Teleopieka i telemedycyna"]
["332 Nowoczesne technologie materiałowe i materiały w medycynie i rehabilitacji"]
["333 Informatyczne narzędzia medyczne do gromadzenia i analizy danych medycznych w celach diagnostycznych, terapeutycznych i rehabilitacyjnych"]
["334 Innowacyjne systemy, układy, sensory i detektory elektroniczne i fotoniczne do zastosowań medycznych"]
["335 Biosensory"]
["336 Algorytmy sztucznej inteligencji do zastosowania medycznego"]
["337 Robotyka medyczna"]
["338 Rzeczywistość wirtualna i technologie symulacyjne w medycynie"]
[]
["IV. CYFROWE SPOŁECZEŃSTWO"]
["411 Gromadzenie i przechowywanie danych, dygitalizaja zasobów, chmury"]
["412 Aplikacje i analizy potencjału rynku"]
["413 Projektowanie, zarządzanie, optymalizacja i sterowanie procesami produkcyjnymi"]
["414 Technologie i systemy służące świadczeniu usług dla biznesu"]
["415 Technologie i inteligentne systemy telekomunikacyjne i teleinformatyczne, w tym internet rzeczy"]
["416 Systemy służące sprzedaży oraz obsłudze klienta, platformy e-zakupowe, telemarketing"]
["417 Systemy i usługi płatnicze i finansowe (e-commerce)"]
["421 Systemy wykorzystywane w transporcie, w tym systemy sterowania ruchem"]
["422 Inteligentne bezzałogowe statki latające"]
["423 Systemy i urządzenia sterowane numerycznie"]
["431 Bezpieczeństwo i systemy ochrony cyberprzestrzeni"]
["432 Cyberbezpieczeństwo systemów energetycznych"]
["433 Systemy przewidywania i zapobiegania awariom"]
["434 Przestrzenne systemy nawigacje i monitorowania, w tym rozwiązania stosowane w obiektach zamkniętych"]
["435 Zintegrowane systemy zarządzania budynkami"]
["436 Systemy bezinwazyjnego pomiaru i detekcji"]
["437 Projektowanie, w tym projektowanie wnętrz i zabudowy"]
["438 Rzeczywistość wirtualna i technologie symulacyjne"]
["441 Wykorzystanie TIK na rzecz rozwoju edukacji w obszarze umiejętności cyfrowych w celu stworzenia warunków do edukacji zdalnej (na odległość)"]
["442 Innowacyjne produkty i technologie stosowane w upowszechnianiu kultury i dziedzictwa narodowego oraz zabezpieczaniu zbiorów i ich konserwacji"]
["443 Innowacyjne produkty i technologie stosowane w sporcie, rozrywce, reklamie i multimediach"]
["444 Rozwój oprogramowania i technologii związanych ze sztuczną inteligencją i uczeniem maszynowym"]
[]
["V. TECHNOLOGIE MATERIAŁOWE, PROCESY PRODUKCYJNE I LOGISTYCZNE"]
["511 Materiały o podwyższonych parametrach konstrukcyjnych i izolacyjnych, trwałości oraz charakteryzujące się wysoką odpornością na zużycie i czynniki degradujące"]
["512 Niskoodpadowe technologie i linie produkcyjne wykorzystywane w procesach produkcyjnych"]
["513 Innowacyjne maszyny i urządzenia zmniejszające energochłonność i pracochłonność  produkcji oraz zwiększające bezpieczeństwo pracy"]
["514 Technologie i linie produkcyjne do wytwarzania materiałów i wyrobów z zastosowaniem surowców towarzyszących, produktów ubocznych i odpadów"]
["515 Nowoczesne technologie i materiały dla sektora lotniczego"]
["516 Inżynieria mechaniczna w zakresie nowoczesnych metod wytwarzania"]
["517 Innowacyjne metody i narzędzia stosowane do oceny jakości wykonanych produktów\n"]
["521 Nowoczesne technologie budowy dróg i mostów"]
["522 Innowacyjne konstrukcje nośne z zastosowaniem nowoczesnych materiałów konstrukcyjnych, w tym kompozytów"]
["523 Technologie i systemy sprzyjające racjonalnemu wykorzystaniu ciepła i wody w procesach produkcyjnych"]
["524 Ponowne wykorzystanie materiałów oraz elementów budowlanych (recykling w budoownictwie)"]
["531 Innowacyjne pokrycia dachowe oraz zawansowane technologicznie okna i drzwi\n"]
["532 Innowacyjne systemy, układy, sensory i detektory elektroniczne i fotoniczne do  zastosowań w procesach produkcyjnych i logistycznych, energetyce i budownictwie"]
["533 Innowacyjne technologie VR do zastosowań w procesach produkcyjnych i budownictwie"]
["541 Automatyka przemysłowa i usługowa"]
["542 Inteligentne opakowania umożliwiające monitoring jakości i zawartości otoczenia\n\n\n"]
["543 Inteligentne magazyny z wysoce zautomatyzowanymi procesami logistycznymi"]
["544 Nowoczesne opakowania, w tym biodegradowalne i wielokrotnego użytku"]
["545 Zarządzanie procesami technologicznymi i logistycznymi, w tym sterowanie łańcuchem dostaw"]
["546 Systemy i rozwiązania stosowane w usługach spedytorskich i dyspozytorskich"]

{"sheet":"słownik koszty 1.3","index":24,"n_rows":20,"n_cols":20,"rows_kept":20,"cut":false,"hidden":true,"merged":[]}
["KOSZTY B+R",null,null,null,null,"Wspólny",null,null,"Zadania",null,null,null,null,null,null,null,null,null,null,"I półrocze 2023 r."]
["Personel Projektu",null,null,null,null,"Personel Projektu (tylko komponent B+R)",null,null,"Badania przemysłowe",null,null,null,null,null,null,null,null,null,null,"II półrocze 2023 r."]
["Usługi zewnętrzne",null,null,null,null,"Usługi zewnętrzne (nie dotyczy wdrożenia)",null,null,"Eksperymentalne prace rozwojowe",null,null,null,null,null,null,null,null,null,null,"I półrocze 2024 r."]
["Amortyzacja",null,null,null,null,"Amortyzacja (tylko komponent B+R)",null,null,"Prace przedwdrożeniowe",null,null,null,null,null,null,null,null,null,null,"II półrocze 2024 r."]
["Nieruchomości",null,null,null,null,"Nieruchomości (nie dotyczy prac przedwdrożeniowych)",null,null,"Bezpośrednie wdrożenie ",null,null,null,null,null,null,null,null,null,null,"I półrocze 2025 r."]
["Dostawy (inne niż środki trwałe)",null,null,null,null,"Dostawy (inne niż środki trwałe) (tylko komponent B+R)",null,null,null,null,null,null,null,null,null,null,null,null,null,"II półrocze 2025 r."]
["Podatki i opłaty",null,null,null,null,"Podatki i opłaty",null,null,null,null,null,null,null,null,null,null,null,null,null,"I półrocze 2026 r."]
[null,null,null,null,null,"Roboty budowlane (tylko wdrożenie)",null,null,null,null,null,null,null,null,null,null,null,null,null,"II półrocze 2026 r."]
["Komponent wdrożeniowy",null,null,null,null,"Środki trwałe/Dostawy (tylko wdrożenie)",null,null,null,null,null,null,null,null,null,null,null,null,null,"I półrocze 2027 r."]
[null,null,null,null,null,"Wartości niematerialne i prawne (tylko wdrożenie)",null,null,null,null,null,null,null,null,null,null,null,null,null,"II półrocze 2027 r."]
["Prace przedwdrożeniowe"]
["Usługi zewnętrzne"]
["Podatki i opłaty"]
[]
["Wdrożenie"]
["Nieruchomości"]
["Roboty budowlane"]
["Środki trwałe"]
["Wartości niematerialne i prawne"]
["Podatki i opłaty"]

{"sheet":"Słownik","index":25,"n_rows":31,"n_cols":1,"rows_kept":31,"cut":false,"hidden":true,"merged":[]}
["uzyskałem dofinansowanie na jego realizację."]
["nie uzyskałem dofinansowania na jego realizację."]
["została mi przyznana inna pomoc państwa (w tym pomoc de minimis). "]
["nie została  mi przyznana inna pomoc państwa (w tym pomoc de minimis). "]
[]
["TAK"]
["NIE "]
[]
["NIE - \nOświadczam, iż nie mogę odzyskać w żaden sposób poniesionego kosztu podatku VAT.\nJednocześnie zobowiązuje się do zwrotu zrefundowanej w ramach projektu części poniesionego VAT, jeżeli zaistnieją przesłanki umożliwiające odzyskanie tego podatku.\nZobowiązuję się także do niezwłocznego poinformowania LAWP o jakichkolwiek zmianach w zakresie kwalifikowalności podatku VAT, jak również zobowiązuję się do udostepnienia dokumentacji finansowo-księgowej oraz udzielenia uprawnionym organom kontrolnym informacji umożliwiających weryfikację kwalifikowalności podatku VAT."]
["TAK."]
[]
["NIE"]
["TAK"]
[]
["I półrocze 2023 r."]
["II półrocze 2023 r."]
["I półrocze 2024 r."]
["II półrocze 2024 r."]
["I półrocze 2025 r."]
["II półrocze 2025 r."]
["I półrocze 2026 r."]
["II półrocze 2026 r."]
["I półrocze 2027 r."]
["II półrocze 2027 r."]
[]
[]
[]
["Utworzenie nowego zakładu"]
["Zwiększenie zdolności produkcyjnej istniejącego zakładu"]
["Dywersyfikacja produkcji zakładu poprzez wprowadzenie produktów lub usług dotąd niewytwarzanych lub nieświadczonych przez ten zakład"]
["Zasadnicza zmiana całościowego procesu produkcji produktu lub produktów, których dotyczy inwestycja w ten zakład"]